Workbook

Sheet Sheet1
D1: Solid-Vapor Equilibrium with the Peng-Robinson Equation of State | R1: =COLUMN() -> 18 | Y1: =COLUMN() -> 25
E2: Version 2.0 | I2: For Educational Use Only! | M2: 10786x + 33.959
F3: Report errors to R. L. Smith; Email: smith@scf.che.tohoku.ac.jp
D5: Pure component properties | M5: Solid Properties | Q5: Binary Interaction
M6: ln(Psub [Pa] )=A+B/(t[K]+C) | Q6: Parameters
A7: No. | B7: solvent/co-solvent moles used for mole ratios- these do not need to sum to 100 and can be set equal to zero except for the solvent. | C7: Substance Name | D7: Formula | E7: MW | F7: Tc / K | G7: Pc/ Pa | H7: Acentric factor | I7: Role | J7: Tmelt [C] | K7: Density [kg/m3] | L7: Solid Molar Volume (cm3/mol) | M7: A | N7: B | O7: C | Q7: amix term k(i,j) | R7: j=1 | S7: 2 | T7: 3 | U7: 4 | V7: 5 | X7: bmix term l(i,j) | Y7: j=1 | Z7: 2 | AA7: 3 | AB7: 4 | AC7: 5 | BU7: T [C] | BV7: P [MPa]
A8: 1 | B8: 96.5 | C8: Carbon Dioxide | D8: CO2 | E8: 44.01 | F8: 304.1 | G8: 7380000 | H8: 0.225 | I8: solvent | Q8: i=1 | R8: 0 | S8: 0 | T8: 0 | U8: 0 | V8: 0 | X8: i=1 | Y8: 0 | Z8: 0 | AA8: 0 | AB8: 0 | AC8: 0 | BU8: 40 | BV8: 10 | BW8: =SVE_PREoS_moli_Mwi_Tci_Pci_wi_Vs_AntA_AntB_AntC_kijm_lijm_TinC_PinPa($B$8:$B$12,$E$8:$E$12,$F$8:$F$12,$G$8:$G$12,$H$8:$H$12,$L$9,$M$9,$N$9,$O$9,$R$8:$V$12,$Y$8:$AC$12,BU8,BV8*1000000) -> 0.8911766611 | BX8: 1270.008319 | BY8: 0.00333538769 | BZ8: 0.8911766611 | CA8: 716.8095339 | CB8: 6.159697643e-08 | CC8: 54148.56188 | CD8: 6
A9: 2 | C9: Benzoic acid | D9: C7H6O2 | E9: 122.124 | F9: 752 | G9: 4560000 | H9: 0.62 | I9: solid solute | J9: 122.4 | K9: =1/L9*E9*1000 -> 1270.008319 | L9: 96.16 | M9: 33.959 | N9: -10786 | O9: 0 | Q9: 2 | R9: =S8 -> 0 | S9: 0 | T9: -0.05 | U9: 0 | V9: 0 | X9: 2 | Y9: =Z8 -> 0 | Z9: 0 | AA9: 0 | AB9: 0 | AC9: 0 | BU9: 40 | BV9: 0.1 | BW9: =SVE_PREoS_moli_Mwi_Tci_Pci_wi_Vs_AntA_AntB_AntC_kijm_lijm_TinC_PinPa($B$8:$B$12,$E$8:$E$12,$F$8:$F$12,$G$8:$G$12,$H$8:$H$12,$L$9,$M$9,$N$9,$O$9,$R$8:$V$12,$Y$8:$AC$12,BU9,BV9*1000000) -> 0.6182490092 | BX9: 1270.008319 | BY9: 6.46180548e-06 | BZ9: 0.6182490092 | CA9: 1.68293271 | CB9: 6.159697643e-06 | CC9: 1.049045887 | CD9: 2
A10: 3 | B10: 3.5 | C10: Methanol | D10: CH4O | E10: 32.042 | F10: 512.6 | G10: 8090000 | H10: 0.556 | I10: co-solvent | Q10: 3 | R10: =T8 -> 0 | S10: =T9 -> -0.05 | T10: 0 | U10: 0 | V10: 0 | X10: 3 | Y10: =AA8 -> 0 | Z10: =AA9 -> 0 | AA10: 0 | AB10: 0 | AC10: 0 | BU10: 40 | BV10: 0.2 | BW10: =SVE_PREoS_moli_Mwi_Tci_Pci_wi_Vs_AntA_AntB_AntC_kijm_lijm_TinC_PinPa($B$8:$B$12,$E$8:$E$12,$F$8:$F$12,$G$8:$G$12,$H$8:$H$12,$L$9,$M$9,$N$9,$O$9,$R$8:$V$12,$Y$8:$AC$12,BU10,BV10*1000000) -> 0.6205367021 | BX10: 1270.008319 | BY10: 3.39032466e-06 | BZ10: 0.6205367021 | CA10: 3.383316823 | CB10: 3.079848821e-06 | CC10: 1.100808792 | CD10: 2
A11: 4 | C11: Hydrogen | D11: H2 | E11: 2.016 | F11: 33.2 | G11: 1296640 | H11: -0.22 | I11: co-solvent | Q11: 4 | R11: =U8 -> 0 | S11: =U9 -> 0 | T11: =U10 -> 0 | U11: 0 | V11: 0 | X11: 4 | Y11: =AB8 -> 0 | Z11: =AB9 -> 0 | AA11: =AB10 -> 0 | AB11: 0 | AC11: 0 | BU11: 40 | BV11: 0.3 | BW11: =SVE_PREoS_moli_Mwi_Tci_Pci_wi_Vs_AntA_AntB_AntC_kijm_lijm_TinC_PinPa($B$8:$B$12,$E$8:$E$12,$F$8:$F$12,$G$8:$G$12,$H$8:$H$12,$L$9,$M$9,$N$9,$O$9,$R$8:$V$12,$Y$8:$AC$12,BU11,BV11*1000000) -> 0.6228328601 | BX11: 1270.008319 | BY11: 2.372430044e-06 | BZ11: 0.6228328601 | CA11: 5.101575336 | CB11: 2.053232548e-06 | CC11: 1.155460957 | CD11: 2
A12: 5 | C12: n-Hexane | D12: C6H12 | E12: 86.178 | F12: 507.5 | G12: 3010000 | H12: 0.299 | I12: co-solvent | Q12: 5 | R12: =V8 -> 0 | S12: =V9 -> 0 | T12: =V10 -> 0 | U12: =V11 -> 0 | V12: 0 | X12: 5 | Y12: =AC8 -> 0 | Z12: =AC9 -> 0 | AA12: =AC10 -> 0 | AB12: =AC11 -> 0 | AC12: 0 | BU12: 40 | BV12: 5 | BW12: =SVE_PREoS_moli_Mwi_Tci_Pci_wi_Vs_AntA_AntB_AntC_kijm_lijm_TinC_PinPa($B$8:$B$12,$E$8:$E$12,$F$8:$F$12,$G$8:$G$12,$H$8:$H$12,$L$9,$M$9,$N$9,$O$9,$R$8:$V$12,$Y$8:$AC$12,BU12,BV12*1000000) -> 0.7409034117 | BX12: 1270.008319 | BY12: 2.391786546e-06 | BZ12: 0.7409034117 | CA12: 120.4709941 | CB12: 1.231939529e-07 | CC12: 19.41480479 | CD12: 2
A13: Total | B13: =B8+B10+B11+B12 -> 100 | BU13: 40 | BV13: 10 | BW13: =SVE_PREoS_moli_Mwi_Tci_Pci_wi_Vs_AntA_AntB_AntC_kijm_lijm_TinC_PinPa($B$8:$B$12,$E$8:$E$12,$F$8:$F$12,$G$8:$G$12,$H$8:$H$12,$L$9,$M$9,$N$9,$O$9,$R$8:$V$12,$Y$8:$AC$12,BU13,BV13*1000000) -> 0.8911766611 | BX13: 1270.008319 | BY13: 0.00333538769 | BZ13: 0.8911766611 | CA13: 716.8095339 | CB13: 6.159697643e-08 | CC13: 54148.56188 | CD13: 6
D14: Temperature: | E14: 35 | F14: oC | X14: This is the function that is solved for ONE set of conditions
D15: Calculation range | J15: Data Table for Calculations | U15: T [C] | V15: 35 | X15: Vary the temperature and/or pressure and see how the function F(ln(y2)) changes. The zero point is the solubility. | AW15: T [C] | AX15: 40 | BB15: 40 | BF15: 40
D16: Pstart: | E16: 0.1 | F16: MPa | N16: Enhancement | O16: Number of | U16: P [MPa] | V16: 6.7 | X16: The y2 points in yellow can be changed to different values as needed. See some of the plots to the right of this for a sample of how the function changes. | AW16: P [MPa]: | AX16: 0.1 | BB16: 5 | BF16: 10
D17: Pend: | E17: 30 | F17: MPa | H17: Solid phase properties | L17: Vapor phase properties | N17: Factor | O17: Iterations | P17: Notes
D18: Pinc: | E18: 0.2 | F18: MPa | G18: P [MPa] | H18: fs [Pa] | I18: rho [kg/m3] | J18: y(2) [-] | K18: fv (2)[Pa] | L18: rho [kg/m3] | M18: y(2)ideal [-] | N18: E [-] | O18: N | Q18: ln(y2) | R18: y(2)ideal*Poynting | T18: y1 | U18: y2 | V18: y3 | W18: y4 | X18: y5 | Y18: ysum | Z18: F1 | AA18: ln phi | AB18: ln (y2) | AC18: Psub [Pa] | AD18: -(Poynting+ln(Psub/P)) | AX18: F1 | AY18: ln phi | AZ18: ln (y2) | BB18: F1 | BC18: ln phi | BD18: ln (y2) | BF18: F1 | BG18: ln phi | BH18: ln (y2)
G19: 0.1 | H19: 0.3535676234 | I19: 1270.008319 | J19: 3.702907996e-06 | K19: 0.3535676234 | L19: 1.710678037 | M19: 3.522430426e-06 | N19: 1.05123666 | O19: 2 | P19: Number of substances: 3 | Q19: =LN(J19) -> -12.5063921 | R19: =M19*EXP(G19*$L$9/(8.314*($E$14+273.15))) -> 3.535676281e-06 | T19: =$B$8/$B$13*(1-U19) -> 0.9649999903 | U19: 1e-08 | V19: =$B$10/$B$13*(1-U19) -> 0.03499999965 | W19: =$B$11/$B$13*(1-U19) -> 0 | X19: =$B$12/$B$13*(1-U19) -> 0 | Y19: =SUM(T19:X19) -> 1 | Z19: =AA19+AB19+AD19 -> -7.363016192 | AA19: =LnPhiV_i_Tci_Pci_wi_kijm_lijm_T_P_xyi(2,$F$8:$F$12,$G$8:$G$12,$H$8:$H$12,$R$8:$V$12,$Y$8:$AC$12,$V$15,$V$16*1000000,T19:X19) -> -5.451911123 | AB19: =LN(U19) -> -18.42068074 | AC19: =EXP($M$9+$N$9/($V$15+273.15+$O$9)) -> 0.3522430426 | AD19: =-($L$9/1000000*($V$16*1000000-AC19)/(8.314*(273.15+$V$15))+LN(AC19/($V$16*1000000))) -> 16.50957568 | AX19: -10.77333694 | AY19: -0.03430720836 | AZ19: -18.42068074 | BB19: -9.102471208 | BC19: -2.03343147 | BD19: -18.42068074 | BF19: -13.04720928 | BG19: -6.424344262 | BH19: -18.42068074
D20: Convergence Criteria: | G20: 0.3 | H20: 0.356231756 | I20: 1270.008319 | J20: 1.365337035e-06 | K20: 0.356231756 | L20: 5.18851425 | M20: 1.174143475e-06 | N20: 1.162836624 | O20: 2 | Q20: =LN(J20) -> -13.50410925 | R20: =M20*EXP(G20*$L$9/(8.314*($E$14+273.15))) -> 1.187439202e-06 | T20: =$B$8/$B$13*(1-U20) -> 0.96499035 | U20: 1e-05 | V20: =$B$10/$B$13*(1-U20) -> 0.03499965 | W20: =$B$11/$B$13*(1-U20) -> 0 | X20: =$B$12/$B$13*(1-U20) -> 0 | Y20: =SUM(T20:X20) -> 1 | Z20: =AA20+AB20+AD20 -> -0.457973601 | AA20: =LnPhiV_i_Tci_Pci_wi_kijm_lijm_T_P_xyi(2,$F$8:$F$12,$G$8:$G$12,$H$8:$H$12,$R$8:$V$12,$Y$8:$AC$12,$V$15,$V$16*1000000,T20:X20) -> -5.454623811 | AB20: -11.51292546 | AC20: =EXP($M$9+$N$9/($V$15+273.15+$O$9)) -> 0.3522430426 | AD20: 16.50957568 | AX20: -3.865583031 | AY20: -0.03430858188 | AZ20: -11.51292546 | BB20: -2.194843282 | BC20: -2.033558822 | BD20: -11.51292546 | BF20: -6.140127919 | BG20: -6.425018175 | BH20: -11.51292546
D21: Mole fraction, Dy/y: | E21: 0.001 | G21: 0.5 | H21: 0.3589159629 | I21: 1270.008319 | J21: 9.073784354e-07 | K21: 0.3589159629 | L21: 8.744860937 | M21: 7.044860853e-07 | N21: 1.288000508 | O21: 2 | Q21: -13.91270624 | R21: 7.178319352e-07 | T21: 0.9649035 | U21: 0.0001 | V21: =$B$10/$B$13*(1-U21) -> 0.0349965 | W21: 0 | X21: 0 | Y21: 1 | Z21: =AA21+AB21+AD21 -> 1.819450346 | AA21: -5.479784957 | AB21: -9.210340372 | AC21: 0.3522430426 | AD21: 16.50957568 | AX21: -1.563010311 | AY21: -0.0343209554 | AZ21: -9.210340372 | BB21: 0.1065940127 | BC21: -2.034706621 | BD21: -9.210340372 | BF21: -3.843601434 | BG21: -6.431076783 | BH21: -9.210340372
D22: Equilibrium function, F1: | E22: 0.01 | G22: 0.7 | H22: 0.3616203952 | I22: 1270.008319 | J22: 7.188950659e-07 | K22: 0.3616203952 | L22: 12.38380698 | M22: 5.032043466e-07 | N22: 1.428634452 | O22: 2 | Q22: -14.14555043 | R22: 5.166005714e-07 | T22: 0.964807 | U22: 0.0002 | V22: 0.034993 | W22: 0 | X22: 0 | Y22: 1 | Z22: 2.482945022 | AA22: -5.509437462 | AB22: -8.517193191 | AC22: 0.3522430426 | AD22: 16.50957568 | AX22: -0.8698768779 | AY22: -0.03433470255 | AZ22: -8.517193191 | BB22: 0.798464852 | BC22: -2.035982962 | BD22: -8.517193191 | BF22: -3.157159355 | BG22: -6.437781885 | BH22: -8.517193191
G23: 0.9 | H23: 0.3643452055 | I23: 1270.008319 | J23: 6.211048286e-07 | K23: 0.3643452055 | L23: 16.10979451 | M23: 3.913811585e-07 | N23: 1.586956386 | O23: 2 | Q23: -14.29176596 | R23: 4.048280114e-07 | T23: 0.9647105 | U23: 0.0003 | V23: 0.0349895 | W23: 0 | X23: 0 | Y23: 1 | Z23: 2.856653287 | AA23: -5.541194305 | AB23: -8.111728083 | AC23: 0.3522430426 | AD23: 16.50957568 | AX23: -0.4644255157 | AY23: -0.03434844843 | AZ23: -8.111728083 | BB23: 1.202652553 | BC23: -2.037260369 | BD23: -8.111728083 | BF23: -2.758370628 | BG23: -6.444458266 | BH23: -8.111728083
G24: 1.1 | H24: 0.3670905472 | I24: 1270.008319 | J24: 5.653678761e-07 | K24: 0.3670905472 | L24: 19.92766249 | M24: 3.202209479e-07 | N24: 1.765555564 | O24: 2 | Q24: -14.38578921 | R24: 3.337186837e-07 | T24: 0.964614 | U24: 0.0004 | V24: 0.034986 | W24: 0 | X24: 0 | Y24: 1 | Z24: 3.110032586 | AA24: -5.575497078 | AB24: -7.824046011 | AC24: 0.3522430426 | AD24: 16.50957568 | AX24: -0.1767571878 | AY24: -0.03436219305 | AZ24: -7.824046011 | BB24: 1.48905615 | BC24: -2.038538845 | BD24: -7.824046011 | BF24: -2.477338128 | BG24: -6.451107838 | BH24: -7.824046011
G25: 1.3 | H25: 0.369856575 | I25: 1270.008319 | J25: 5.330969164e-07 | K25: 0.369856575 | L25: 23.84269744 | M25: 2.709561866e-07 | N25: 1.967465379 | O25: 2 | Q25: -14.4445626 | R25: 2.845050615e-07 | T25: 0.9645175 | U25: 0.0005 | V25: 0.0349825 | W25: 0 | X25: 0 | Y25: 1 | Z25: 3.295709446 | AA25: -5.61296377 | AB25: -7.60090246 | AC25: 0.3522430426 | AD25: 16.50957568 | AX25: 0.04637262012 | AY25: -0.0343759364 | AZ25: -7.60090246 | BB25: 1.710920155 | BC25: -2.039818392 | BD25: -7.60090246 | BF25: -2.260816396 | BG25: -6.457729657 | BH25: -7.60090246
G26: 1.5 | H26: 0.3726434449 | I26: 1270.008319 | J26: 5.157431975e-07 | K26: 0.3726434449 | L26: 27.86069271 | M26: 2.348286951e-07 | N26: 2.196252878 | O26: 2 | Q26: -14.47765687 | R26: 2.484289666e-07 | T26: 0.964462495 | U26: 0.000557 | V26: 0.034980505 | W26: 0 | X26: 0 | Y26: 1 | Z26: 3.380563193 | AA26: -5.636067164 | AB26: -7.492945318 | AC26: 0.3522430426 | AD26: 16.50957568 | AX26: 0.1543219285 | AY26: -0.03438376954 | AZ26: -7.492945318 | BB26: 1.818147474 | BC26: -2.040548214 | BD26: -7.492945318 | BF26: -2.156621334 | BG26: -6.461491737 | BH26: -7.492945318
G27: 1.7 | H27: 0.3754513139 | I27: 1270.008319 | J27: 5.089144236e-07 | K27: 0.3754513139 | L27: 31.98801816 | M27: 2.072017898e-07 | N27: 2.456129477 | O27: 2 | Q27: -14.49098596 | R27: 2.20853717e-07 | T27: 0.9643245 | U27: 0.0007 | V27: 0.0349755 | W27: 0 | X27: 0 | Y27: 1 | Z27: 3.543575624 | AA27: -5.701569828 | AB27: -7.264430223 | AC27: 0.3522430426 | AD27: 16.50957568 | AX27: 0.3828173738 | AY27: -0.0344034193 | AZ27: -7.264430223 | BB27: 2.04483007 | BC27: -2.042380713 | BD27: -7.264430223 | BF27: -1.937505174 | BG27: -6.470890672 | BH27: -7.264430223
G28: 1.9 | H28: 0.3782803401 | I28: 1270.008319 | J28: 5.102126876e-07 | K28: 0.3782803401 | L28: 36.23170261 | M28: 1.853910751e-07 | N28: 2.752088726 | O28: 2 | Q28: -14.48843816 | R28: 1.990949185e-07 | T28: 0.964228 | U28: 0.0008 | V28: 0.034972 | W28: 0 | X28: 0 | Y28: 1 | Z28: 3.621963725 | AA28: -5.75671312 | AB28: -7.13089883 | AC28: 0.3522430426 | AD28: 16.50957568 | AX28: 0.5163350269 | AY28: -0.03441715885 | AZ28: -7.13089883 | BB28: 2.177078683 | BC28: -2.043663493 | BD28: -7.13089883 | BF28: -1.810513295 | BG28: -6.477430186 | BH28: -7.13089883
G29: 2.1 | H29: 0.3811306831 | I29: 1270.008319 | J29: 5.183137112e-07 | K29: 0.3811306831 | L29: 40.59953186 | M29: 1.677347822e-07 | N29: 3.0900789 | O29: 2 | Q29: -14.47268516 | R29: 1.814908039e-07 | T29: 0.9641315 | U29: 0.0009 | V29: 0.0349685 | W29: 0 | X29: 0 | Y29: 1 | Z29: 3.671098407 | AA29: -5.825361474 | AB29: -7.013115795 | AC29: 0.3522430426 | AD29: 16.50957568 | AX29: 0.6341043243 | AY29: -0.03443089714 | AZ29: -7.013115795 | BB29: 2.293577854 | BC29: -2.044947357 | BD29: -7.013115795 | BF29: -1.699242658 | BG29: -6.483942585 | BH29: -7.013115795
G30: 2.3 | H30: 0.3840025034 | I30: 1270.008319 | J30: 5.325334046e-07 | K30: 0.3840025034 | L30: 45.1001663 | M30: 1.53149149e-07 | N30: 3.477220789 | O30: 2 | Q30: -14.44562021 | R30: 1.669576124e-07 | T30: 0.964035 | U30: 0.001 | V30: 0.034965 | W30: 0 | X30: 0 | Y30: 1 | Z30: 3.677217613 | AA30: -5.924602783 | AB30: -6.907755279 | AC30: 0.3522430426 | AD30: 16.50957568 | AX30: 0.7394511029 | AY30: -0.03444463416 | AZ30: -6.907755279 | BB30: 2.397653419 | BC30: -2.046232307 | BD30: -6.907755279 | BF30: -1.600367588 | BG30: -6.49042803 | BH30: -6.907755279
G31: 2.5 | H31: 0.3868959629 | I31: 1270.008319 | J31: 5.526108108e-07 | K31: 0.3868959629 | L31: 49.74328268 | M31: 1.408972171e-07 | N31: 3.92208464 | O31: 2 | Q31: -14.40861186 | R31: 1.547583872e-07 | T31: 0.9639385 | U31: 0.0011 | V31: 0.0349615 | W31: 0 | X31: 0 | Y31: 1 | Z31: -0.1188666142 | AA31: -9.81599719 | AB31: -6.812445099 | AC31: 0.3522430426 | AD31: 16.50957568 | AX31: 0.834747547 | AY31: -0.03445836991 | AZ31: -6.812445099 | BB31: 2.491677558 | BC31: -2.047518348 | BD31: -6.812445099 | BF31: -1.511516062 | BG31: -6.496886684 | BH31: -6.812445099
G32: 2.7 | H32: 0.3898112246 | I32: 1270.008319 | J32: 5.785977329e-07 | K32: 0.3898112246 | L32: 54.53974687 | M32: 1.304603862e-07 | N32: 4.43504538 | O32: 2 | Q32: -14.36265836 | R32: 1.443745295e-07 | T32: 0.963842 | U32: 0.0012 | V32: 0.034958 | W32: 0 | X32: 0 | Y32: 1 | Z32: -0.04986611528 | AA32: -9.834008068 | AB32: -6.725433722 | AC32: 0.3522430426 | AD32: 16.50957568 | AX32: 0.9217451895 | AY32: -0.0344721044 | AZ32: -6.725433722 | BB32: 2.577401801 | BC32: -2.048805482 | BD32: -6.725433722 | BF32: -1.43093671 | BG32: -6.503318709 | BH32: -6.725433722
G33: 2.9 | H33: 0.3927484528 | I33: 1270.008319 | J33: 6.108067307e-07 | K33: 0.3927484528 | L33: 59.50182574 | M33: 1.214631182e-07 | N33: 5.028742387 | O33: 2 | Q33: -14.30848524 | R33: 1.354305028e-07 | T33: 0.96307 | U33: 0.002 | V33: 0.03493 | W33: 0 | X33: 0 | Y33: 1 | Z33: 0.3274979933 | AA33: -9.967469584 | AB33: -6.214608098 | AC33: 0.3522430426 | AD33: 16.50957568 | AX33: 1.432460983 | AY33: -0.03458193471 | AZ33: -6.214608098 | BB33: 3.077890623 | BC33: -2.059142284 | BD33: -6.214608098 | BF33: -0.9706282396 | BG33: -6.553835862 | BH33: -6.214608098
G34: 3.1 | H34: 0.395707813 | I34: 1270.008319 | J34: 6.497953158e-07 | K34: 0.395707813 | L34: 64.64345001 | M34: 1.136267879e-07 | N34: 5.71868067 | O34: 2 | Q34: -14.24660842 | R34: 1.276476833e-07 | T34: 0.962105 | U34: 0.003 | V34: 0.034895 | W34: 0 | X34: 0 | Y34: 1 | Z34: 0.5869900745 | AA34: -10.11344261 | AB34: -5.80914299 | AC34: 0.3522430426 | AD34: 16.50957568 | AX34: 1.837788917 | AY34: -0.03471910867 | AZ34: -5.80914299 | BB34: 3.470333571 | BC34: -2.072164445 | BD34: -5.80914299 | BF34: -0.6260552192 | BG34: -6.61472795 | BH34: -5.80914299
G35: 3.3 | H35: 0.398689472 | I35: 1270.008319 | J35: 6.963765589e-07 | K35: 0.398689472 | L35: 69.98054335 | M35: 1.06740316e-07 | N35: 6.524025647 | O35: 2 | Q35: -14.17737529 | R35: 1.208149931e-07 | T35: 0.96114 | U35: 0.004 | V35: 0.03486 | W35: 0 | X35: 0 | Y35: 1 | Z35: 0.7456616776 | AA35: -10.24245308 | AB35: -5.521460918 | AC35: 0.3522430426 | AD35: 16.50957568 | AX35: 2.125333942 | AY35: -0.03485615609 | AZ35: -5.521460918 | BB35: 3.744877988 | BC35: -2.0853021 | BD35: -5.521460918 | BF35: -0.3969113527 | BG35: -6.673266156 | BH35: -5.521460918
G36: 3.5 | H36: 0.4016935978 | I36: 1270.008319 | J36: 7.51653121e-07 | K36: 0.4016935978 | L36: 75.53143966 | M36: 1.006408693e-07 | N36: 7.468666816 | O36: 2 | Q36: -14.10099089 | R36: 1.147696009e-07 | T36: 0.960175 | U36: 0.005 | V36: 0.034825 | W36: 0 | X36: 0 | Y36: 1 | Z36: 0.8526907742 | AA36: -10.35856753 | AB36: -5.298317367 | AC36: 0.3522430426 | AD36: 16.50957568 | AX36: 2.348340573 | AY36: -0.03499307699 | AZ36: -5.298317367 | BB36: 3.954764935 | BC36: -2.098558704 | BD36: -5.298317367 | BF36: -0.2301085583 | BG36: -6.729606913 | BH36: -5.298317367
G37: 3.7 | H37: 0.4047203597 | I37: 1270.008319 | J37: 8.170763481e-07 | K37: 0.4047203597 | L37: 81.31741863 | M37: 9.520082233e-08 | N37: 8.582660612 | O37: 2 | Q37: -14.0175333 | R37: 1.093838825e-07 | T37: 0.95921 | U37: 0.006 | V37: 0.03479 | W37: 0 | X37: 0 | Y37: 1 | Z37: 0.9290685081 | AA37: -10.46451136 | AB37: -5.11599581 | AC37: 0.3522430426 | AD37: 16.50957568 | AX37: 2.530525335 | AY37: -0.03512987142 | AZ37: -5.11599581 | BB37: 4.12370733 | BC37: -2.111937866 | BD37: -5.11599581 | BF37: -0.1020787454 | BG37: -6.783898657 | BH37: -5.11599581
G38: 3.9 | H38: 0.4077699283 | I38: 1270.008319 | J38: 8.945362979e-07 | K38: 0.4077699283 | L38: 87.36340246 | M38: 9.031872888e-08 | N38: 9.904217088 | O38: 2 | Q38: -13.92696036 | R38: 1.045563933e-07 | T38: 0.959143415 | U38: 0.006069 | V38: 0.034787585 | W38: 0 | X38: 0 | Y38: 1 | Z38: 0.9335168738 | AA38: -10.47149737 | AB38: -5.104561432 | AC38: 0.3522430426 | AD38: 16.50957568 | AX38: 2.541950278 | AY38: -0.03513930557 | AZ38: -5.104561432 | BB38: 4.13421393 | BC38: -2.112865643 | BD38: -5.104561432 | BF38: -0.09431852512 | BG38: -6.787572814 | BH38: -5.104561432
G39: 4.1 | H39: 0.4108424754 | I39: 1270.008319 | J39: 9.864941611e-07 | K39: 0.4108424754 | L39: 93.69888847 | M39: 8.591293723e-08 | N39: 11.48248672 | O39: 2 | Q39: -13.82910843 | R39: 1.002054831e-07 | T39: 0.95728 | U39: 0.008 | V39: 0.03472 | W39: 0 | X39: 0 | Y39: 1 | Z39: 1.028409589 | AA39: -10.65285235 | AB39: -4.828313737 | AC39: 0.3522430426 | AD39: 16.50957568 | AX39: 2.817934198 | AY39: -0.03540308099 | AZ39: -4.828313737 | BB39: 4.384248135 | BC39: -2.139079133 | BD39: -4.828313737 | BF39: 0.08262043565 | BG39: -6.886881548 | BH39: -4.828313737
G40: 4.3 | H40: 0.4139381741 | I40: 1270.008319 | J40: 1.096174456e-06 | K40: 0.4139381741 | L40: 100.3591774 | M40: 8.191698666e-08 | N40: 13.38152806 | O40: 2 | Q40: -13.72368421 | R40: 9.626469292e-08 | T40: 0.956315 | U40: 0.009 | V40: 0.034685 | W40: 0 | X40: 0 | Y40: 1 | Z40: 1.061403153 | AA40: -10.73764182 | AB40: -4.710530702 | AC40: 0.3522430426 | AD40: 16.50957568 | AX40: 2.935580818 | AY40: -0.03553949621 | AZ40: -4.710530702 | BB40: 4.488260985 | BC40: -2.152849319 | BD40: -4.710530702 | BF40: 0.1514638337 | BG40: -6.935821186 | BH40: -4.710530702
G41: 4.5 | H41: 0.4170571989 | I41: 1270.008319 | J41: 1.227850087e-06 | K41: 0.4170571989 | L41: 107.3871098 | M41: 7.82762317e-08 | N41: 15.68611647 | O41: 2 | Q41: -13.61024581 | R41: 9.267937875e-08 | T41: 0.95535 | U41: 0.01 | V41: 0.03465 | W41: 0 | X41: 0 | Y41: 1 | Z41: 1.087084979 | AA41: -10.81732051 | AB41: -4.605170186 | AC41: 0.3522430426 | AD41: 16.50957568 | AX41: 3.040805045 | AY41: -0.03567578509 | AZ41: -4.605170186 | BB41: 4.579712572 | BC41: -2.166758248 | BD41: -4.605170186 | BF41: 0.2094364252 | BG41: -6.98320911 | BH41: -4.605170186
G42: 4.7 | H42: 0.4201997255 | I42: 1270.008319 | J42: 1.387269854e-06 | K42: 0.4201997255 | L42: 114.835481 | M42: 7.494532822e-08 | N42: 18.5104247 | O42: 2 | Q42: -13.48817288 | R42: 8.94041981e-08 | T42: 0.954385 | U42: 0.011 | V42: 0.034615 | W42: 0 | X42: 0 | Y42: 1 | Z42: 1.107191163 | AA42: -10.89252451 | AB42: -4.509860006 | AC42: 0.3522430426 | AD42: 16.50957568 | AX42: 3.135979062 | AY42: -0.03581194768 | AZ42: -4.509860006 | BB42: 4.660970535 | BC42: -2.180810464 | BD42: -4.509860006 | BF42: 0.2588097216 | BG42: -7.029145993 | BH42: -4.509860006
G43: 4.9 | H43: 0.4233659311 | I43: 1270.008319 | J43: 1.582319779e-06 | K43: 0.4233659311 | L43: 122.7705635 | M43: 7.188633523e-08 | N43: 22.01141251 | O43: 2 | Q43: -13.35661857 | R43: 8.640121158e-08 | T43: 0.9457 | U43: 0.02 | V43: 0.0343 | W43: 0 | X43: 0 | Y43: 1 | Z43: 1.16698544 | AA43: -11.43056723 | AB43: -3.912023005 | AC43: 0.3522430426 | AD43: 16.50957568 | AX43: 3.732596277 | AY43: -0.03703173349 | AZ43: -3.912023005 | BB43: 5.125014127 | BC43: -2.314603873 | BD43: -3.912023005 | BF43: 0.495572176 | BG43: -7.39022054 | BH43: -3.912023005
G44: 5.1 | H44: 0.4265559941 | I44: 1270.008319 | J44: 1.82408031e-06 | K44: 0.4265559941 | L44: 131.2773967 | M44: 6.906726326e-08 | N44: 26.41020107 | O44: 2 | Q44: -13.21443464 | R44: 8.363843132e-08 | T44: 0.9464293869 | U44: 0.01924415863 | V44: =$B$10/$B$13*(1-U44) -> 0.03432645445 | W44: 0 | X44: 0 | Y44: 1 | Z44: =AA44+AB44+AD44 -> 1.166442387 | AA44: -11.39258558 | AB44: -3.950547712 | AC44: 0.3522430426 | AD44: 16.50957568 | AX44: 3.694173618 | AY44: -0.03692968573 | AZ44: -3.950547712 | BB44: 5.09829106 | BC44: -2.302802233 | BD44: -3.950547712 | BF44: 0.4843502415 | BG44: -7.362917767 | BH44: -3.950547712
G45: 5.3 | H45: 0.4297700942 | I45: 1270.008319 | J45: 2.128588505e-06 | K45: 0.4297700942 | L45: 140.46806 | M45: 6.646095144e-08 | N45: 32.02765623 | O45: 2 | Q45: -13.06005147 | R45: 8.108869809e-08 | T45: 0.9264 | U45: 0.04 | V45: 0.0336 | W45: 0 | X45: 0 | Y45: 1 | Z45: 1.114035165 | AA45: -12.17666469 | AB45: -3.218875825 | AC45: 0.3522430426 | AD45: 16.50957568 | AX45: 4.423069312 | AY45: -0.03970587956 | AZ45: -3.218875825 | BB45: 5.448085943 | BC45: -2.684679238 | BD45: -3.218875825 | BF45: 0.5945746253 | BG45: -7.984365271 | BH45: -3.218875825
G46: 5.5 | H46: 0.4330084126 | I46: 1270.008319 | J46: 2.519930829e-06 | K46: 0.4330084126 | L46: 150.4952754 | M46: 6.404418957e-08 | N46: 39.34675176 | O46: 2 | Q46: -12.89127911 | R46: 7.872880332e-08 | T46: 0.921575 | U46: 0.045 | V46: 0.033425 | W46: 0 | X46: 0 | Y46: 1 | Z46: 1.096474782 | AA46: -12.3120081 | AB46: -3.101092789 | AC46: 0.3522430426 | AD46: 16.50957568 | AX46: 4.540191651 | AY46: -0.04036657539 | AZ46: -3.101092789 | BB46: 5.445565374 | BC46: -2.804982842 | BD46: -3.101092789 | BF46: 0.5916488626 | BG46: -8.105074069 | BH46: -3.101092789
G47: 5.7 | H47: 0.4362711316 | I47: 1270.008319 | J47: 3.036035597e-06 | K47: 0.4362711316 | L47: 161.5761963 | M47: 6.179702502e-08 | N47: 49.12915461 | O47: 2 | Q47: -12.70495797 | R47: 7.653879604e-08 | T47: 0.91675 | U47: 0.05 | V47: 0.03325 | W47: 0 | X47: 0 | Y47: 1 | Z47: 1.079803208 | AA47: -12.43404019 | AB47: -2.995732274 | AC47: 0.3522430426 | AD47: 16.50957568 | AX47: 4.6448946 | AY47: -0.04102414283 | AZ47: -2.995732274 | BB47: 5.409229204 | BC47: -2.946679528 | BD47: -2.995732274 | BF47: 0.5842619532 | BG47: -8.217821494 | BH47: -2.995732274
G48: 5.9 | H48: 0.4395584353 | I48: 1270.008319 | J48: 3.740508088e-06 | K48: 0.4395584353 | L48: 174.0378791 | M48: 5.970221062e-08 | N48: 62.6527569 | O48: 2 | Q48: -12.4962891 | R48: 7.45014307e-08 | T48: 0.9071 | U48: 0.06 | V48: 0.0329 | W48: 0 | X48: 0 | Y48: 1 | Z48: 1.050267959 | AA48: -12.645897 | AB48: -2.813410717 | AC48: 0.3522430426 | AD48: 16.50957568 | AX48: 4.825910392 | AY48: -0.04232990755 | AZ48: -2.813410717 | BB48: 5.152804727 | BC48: -3.385425562 | BD48: -2.813410717 | BF48: 0.5612659855 | BG48: -8.423139019 | BH48: -2.813410717
G49: 6.1 | H49: 0.4428705088 | I49: 1270.008319 | J49: 4.749687109e-06 | K49: 0.4428705088 | L49: 188.4131173 | M49: 5.774476109e-08 | N49: 82.25312599 | O49: 2 | Q49: -12.25743181 | R49: 7.260172372e-08 | T49: 0.89745 | U49: 0.07 | V49: 0.03255 | W49: 0 | X49: 0 | Y49: 1 | Z49: 1.026347188 | AA49: -12.82396845 | AB49: -2.659260037 | AC49: 0.3522430426 | AD49: 16.50957568 | AX49: 4.978767776 | AY49: -0.04362320292 | AZ49: -2.659260037 | BB49: 0.8191549687 | BC49: -7.873226 | BD49: -2.659260037 | BF49: 0.5324694743 | BG49: -8.60608621 | BH49: -2.659260037
G50: 6.3 | H50: 0.4462075388 | I50: 1270.008319 | J50: 6.306291033e-06 | K50: 0.4462075388 | L50: 205.6822386 | M50: 5.591159407e-08 | N50: 112.7903995 | O50: 2 | Q50: -11.97396285 | R50: 7.08265944e-08 | T50: 0.882975 | U50: 0.085 | V50: 0.032025 | W50: 0 | X50: 0 | Y50: 1 | Z50: 1.000538898 | AA50: -13.04393275 | AB50: -2.465104022 | AC50: 0.3522430426 | AD50: 16.50957568 | AX50: 5.171007167 | AY50: -0.04553982623 | AZ50: -2.465104022 | BB50: 0.684458996 | BC50: -8.202077987 | BD50: -2.465104022 | BF50: 0.485802643 | BG50: -8.846909055 | BH50: -2.465104022
G51: 6.5 | H51: 0.4495697133 | I51: 1270.008319 | J51: 9.0451928e-06 | K51: 0.4495697133 | L51: 228.069114 | M51: 5.419123733e-08 | N51: 166.9124612 | O51: 2 | Q51: -11.61327712 | R51: 6.91645722e-08 | T51: 0.87815 | U51: 0.09 | V51: 0.03185 | W51: 0 | X51: 0 | Y51: 1 | Z51: 0.9943624262 | AA51: =LnPhiV_i_Tci_Pci_wi_kijm_lijm_T_P_xyi(2,$F$8:$F$12,$G$8:$G$12,$H$8:$H$12,$R$8:$V$12,$Y$8:$AC$12,$V$15,$V$16*1000000,T51:X51) -> -13.10726764 | AB51: =LN(U51) -> -2.407945609 | AC51: 0.3522430426 | AD51: =-($L$9/1000000*($V$16*1000000-AC51)/(8.314*(273.15+$V$15))+LN(AC51/($V$16*1000000))) -> 16.50957568 | AX51: 5.227532912 | AY51: -0.04617249513 | AZ51: -2.407945609 | BB51: 0.6488512753 | BC51: -8.294844122 | BD51: -2.407945609 | BF51: 0.4702577061 | BG51: -8.919612406 | BH51: -2.407945609
G52: 6.7 | H52: 0.4529572219 | I52: 1270.008319 | J52: 1.583384737e-05 | K52: 0.4529572219 | L52: 263.9530855 | M52: 5.257358845e-08 | N52: 301.1749405 | O52: 3 | Q52: -11.05336067 | R52: 6.760555639e-08 | T52: 0.873325 | U52: 0.095 | V52: 0.031675 | W52: 0 | X52: 0 | Y52: 1 | Z52: 0.989276897 | AA52: -13.16642039 | AB52: -2.353878387 | AC52: 0.3522430426 | AD52: 16.50957568 | AX52: 5.280970562 | AY52: -0.04680206643 | AZ52: -2.353878387 | BB52: 0.6164427398 | BC52: -8.381319878 | BD52: -2.353878387 | BF52: 0.4549535329 | BG52: -8.988983801 | BH52: -2.353878387
G53: 6.9 | H53: 0.4563702552 | I53: 1270.008319 | J53: 0.001509440655 | K53: 0.4563702552 | L53: 647.5925281 | M53: 5.104971632e-08 | N53: 29568.05177 | O53: 6 | Q53: -6.496016124 | R53: 6.614061758e-08 | T53: 0.8685 | U53: 0.1 | V53: 0.0315 | W53: 0 | X53: 0 | Y53: 1 | Z53: 0.9852099826 | AA53: -13.2217806 | AB53: -2.302585093 | AC53: 0.3522430426 | AD53: 16.50957568 | AX53: 5.33163738 | AY53: -0.04742854313 | AZ53: -2.302585093 | BB53: 0.5867259574 | BC53: -8.462329955 | BD53: -2.302585093 | BF53: 0.4399856528 | BG53: -9.055244975 | BH53: -2.302585093
G54: 7.1 | H54: 0.4598090058 | I54: 1270.008319 | J54: 0.001722637562 | K54: 0.4598090058 | L54: 662.5344846 | M54: 4.961169615e-08 | N54: 34722.40814 | O54: 4 | Q54: -6.363898696 | R54: 6.476183267e-08 | T54: 0.863675 | U54: 0.105 | V54: 0.031325 | W54: 0 | X54: 0 | Y54: 1 | Z54: 0.98209212 | AA54: -13.27368863 | AB54: -2.253794929 | AC54: 0.3522430426 | AD54: 16.50957568 | AX54: 5.379804159 | AY54: -0.04805192808 | AZ54: -2.253794929 | BB54: 0.5593274106 | BC54: -8.538518666 | BD54: -2.253794929 | BF54: 0.4254192082 | BG54: -9.118601584 | BH54: -2.253794929
G55: 7.3 | H55: 0.4632736674 | I55: 1270.008319 | J55: 0.001925322537 | K55: 0.4632736674 | L55: 675.366688 | M55: 4.825247159e-08 | N55: 39901.01384 | O55: 4 | Q55: -6.252661774 | R55: 6.346214706e-08 | T55: 0.85885 | U55: 0.11 | V55: 0.03115 | W55: 0 | X55: 0 | Y55: 1 | Z55: 0.9798571716 | AA55: -13.32244359 | AB55: -2.207274913 | AC55: 0.3522430426 | AD55: 16.50957568 | AX55: 5.425703879 | AY55: -0.0486722241 | AZ55: -2.207274913 | BB55: 0.5339606796 | BC55: -8.610405413 | BD55: -2.207274913 | BF55: 0.4113075084 | BG55: -9.179233299 | BH55: -2.207274913
G56: 7.5 | H56: 0.4667644353 | I56: 1270.008319 | J56: 0.002120427242 | K56: 0.4667644353 | L56: 686.6976627 | M56: 4.696573902e-08 | N56: 45148.38447 | O56: 4 | Q56: -6.156137681 | R56: 6.223525886e-08 | T56: 0.854025 | U56: 0.115 | V56: 0.030975 | W56: 0 | X56: 0 | Y56: 1 | Z56: 0.9784427463 | AA56: -13.36830978 | AB56: -2.162823151 | AC56: 0.3522430426 | AD56: 16.50957568 | AX56: 5.469538432 | AY56: -0.04928943388 | AZ56: -2.162823151 | BB56: 0.5104007468 | BC56: -8.678417108 | BD56: -2.162823151 | BF56: 0.3976884707 | BG56: -9.2373041 | BH56: -2.162823151
G57: 7.7 | H57: 0.470281506 | I57: 1270.008319 | J57: 0.002309823266 | K57: 0.470281506 | L57: 696.898681 | M57: 4.574584969e-08 | N57: 50492.52077 | O57: 4 | Q57: -6.070584266 | R57: 6.107552107e-08 | T57: 0.8492 | U57: 0.12 | V57: 0.0308 | W57: 0 | X57: 0 | Y57: 1 | Z57: 0.9777903023 | AA57: -13.41152184 | AB57: -2.120263536 | AC57: 0.3522430426 | AD57: 16.50957568 | AX57: 5.51148392 | AY57: -0.04990356004 | AZ57: -2.120263536 | BB57: 0.4884669143 | BC57: -8.742910555 | BD57: -2.120263536 | BF57: 0.3845890614 | BG57: -9.292963123 | BH57: -2.120263536
G58: 7.9 | H58: 0.4738250779 | I58: 1270.008319 | J58: 0.002494719006 | K58: 0.4738250779 | L58: 706.2115753 | M58: 4.458772692e-08 | N58: 55950.80034 | O58: 4 | Q58: -5.993579179 | R58: 5.997785876e-08 | T58: 0.772 | U58: 0.2 | V58: 0.028 | W58: 0 | X58: 0 | Y58: 1 | Z58: 1.036037524 | AA58: -13.86410024 | AB58: -1.609437912 | AC58: 0.3522430426 | AD58: 16.50957568 | AX58: 6.012901117 | AY58: -0.05931198695 | AZ58: -1.609437912 | BB58: 0.2828079462 | BC58: -9.459395147 | BD58: -1.609437912 | BF58: 0.2475498717 | BG58: -9.940827937 | BH58: -1.609437912
G59: 8.1 | H59: 0.4773953507 | I59: 1270.008319 | J59: 0.002675941697 | K59: 0.4773953507 | L59: 714.8038872 | M59: 4.348679539e-08 | N59: 61534.58018 | O59: 4 | Q59: -5.923453924 | R59: 5.893769839e-08 | T59: 0.7527 | U59: 0.22 | V59: 0.0273 | W59: 0 | X59: 0 | Y59: 1 | Z59: 1.062636516 | AA59: -13.93281143 | AB59: -1.514127733 | AC59: 0.3522430426 | AD59: 16.50957568 | AX59: 6.10598154 | AY59: -0.06154174353 | AZ59: -1.514127733 | BB59: 0.2598711493 | BC59: -9.577642124 | BD59: -1.514127733 | BF59: 0.2320514475 | BG59: -10.05163654 | BH59: -1.514127733
G60: 8.3 | H60: 0.4809925254 | I60: 1270.008319 | J60: 0.002854082955 | K60: 0.4809925254 | L60: 722.7971587 | M60: 4.24389208e-08 | N60: 67251.54414 | O60: 4 | Q60: -5.859004694 | R60: 5.795090744e-08 | T60: 0.7334 | U60: 0.24 | V60: 0.0266 | W60: 0 | X60: 0 | Y60: 1 | Z60: =AA60+AB60+AD60 -> 1.091678248 | AA60: -13.99078107 | AB60: -1.427116356 | AC60: 0.3522430426 | AD60: 16.50957568 | AX60: 6.190811959 | AY60: -0.06372270165 | AZ60: -1.427116356 | BB60: 0.2444560964 | BC60: -9.680068554 | BD60: -1.427116356 | BF60: 0.2224229142 | BG60: -10.14827645 | BH60: -1.427116356
G61: 8.5 | H61: 0.4846168048 | I61: 1270.008319 | J61: 0.003029580425 | K61: 0.4846168048 | L61: 730.2827655 | M61: 4.144035796e-08 | N61: 73107.00424 | O61: 4 | Q61: -5.799331143 | R61: 5.70137425e-08 | T61: 0.7141 | U61: 0.26 | V61: 0.0259 | W61: 0 | X61: 0 | Y61: 1 | Z61: 1.122462576 | AA61: -14.04003945 | AB61: -1.347073648 | AC61: 0.3522430426 | AD61: 16.50957568 | AX61: 6.268722478 | AY61: -0.06585489018 | AZ61: -1.347073648 | BB61: 0.2353367466 | BC61: -9.769230611 | BD61: -1.347073648 | BF61: 0.2178857177 | BG61: -10.23285636 | BH61: -1.347073648
G62: 8.7 | H62: 0.4882683932 | I62: 1270.008319 | J62: 0.003202766641 | K62: 0.4882683932 | L62: 737.3313892 | M62: 4.048770605e-08 | N62: 79104.67036 | O62: 4 | Q62: -5.743740267 | R62: 5.612280456e-08 | T62: 0.6948 | U62: 0.28 | V62: 0.0252 | W62: 0 | X62: 0 | Y62: 1 | Z62: 1.154454114 | AA62: -14.08215589 | AB62: -1.272965676 | AC62: 0.3522430426 | AD62: 16.50957568 | AX62: 6.340747027 | AY62: -0.06793831355 | AZ62: -1.272965676 | BB62: 0.2315083951 | BC62: -9.847166935 | BD62: -1.272965676 | BF62: 0.2177393992 | BG62: -10.30711065 | BH62: -1.272965676
G63: 8.9 | H63: 0.4919474964 | I63: 1270.008319 | J63: 0.003373899811 | K63: 0.4919474964 | L63: 743.9989917 | M63: 3.957786996e-08 | N63: 85247.12964 | O63: 4 | Q63: -5.69168599 | R63: 5.527500032e-08 | T63: 0.6755 | U63: 0.3 | V63: 0.0245 | W63: 0 | X63: 0 | Y63: 1 | Z63: 1.187242016 | AA63: -14.11836085 | AB63: -1.203972804 | AC63: 0.3522430426 | AD63: 16.50957568 | AX63: 6.40770526 | AY63: -0.06997295129 | AZ63: -1.203972804 | BB63: 0.2321378142 | BC63: -9.915530387 | BD63: -1.203972804 | BF63: 0.2213642275 | BG63: -10.37247869 | BH63: -1.203972804
G64: 9.1 | H64: 0.4956543215 | I64: 1270.008319 | J64: 0.003543184047 | K64: 0.4956543215 | L64: 750.3307474 | M64: 3.870802666e-08 | N64: 91536.15807 | O64: 4 | Q64: -5.642729508 | R64: 5.446750858e-08 | T64: 0.6562 | U64: 0.32 | V64: 0.0238 | W64: 0 | X64: 0 | Y64: 1 | Z64: 1.220510025 | AA64: -14.14963137 | AB64: -1.139434283 | AC64: 0.3522430426 | AD64: 16.50957568 | AX64: 6.470257975 | AY64: -0.07195875763 | AZ64: -1.139434283 | BB64: 0.2365285227 | BC64: -9.9756782 | BD64: -1.139434283 | BF64: 0.2282173805 | BG64: -10.43016406 | BH64: -1.139434283
G65: 9.3 | H65: 0.4993890776 | I65: 1270.008319 | J65: 0.003710783122 | K65: 0.4993890776 | L65: 756.3637252 | M65: 3.787559598e-08 | N65: 97972.93022 | O65: 4 | Q65: -5.59651234 | R65: 5.369775099e-08 | T65: 0.6369 | U65: 0.34 | V65: 0.0231 | W65: 0 | X65: 0 | Y65: 1 | Z65: 1.254013949 | AA65: -14.17675206 | AB65: -1.078809661 | AC65: 0.3522430426 | AD65: 16.50957568 | AX65: 6.528945694 | AY65: -0.07389566093 | AZ65: -1.078809661 | BB65: 0.2440949227 | BC65: -10.02873642 | BD65: -1.078809661 | BF65: 0.2378263217 | BG65: -10.48117974 | BH65: -1.078809661
G66: 9.5 | H66: 0.5031519751 | I66: 1270.008319 | J66: 0.003876830112 | K66: 0.5031519751 | L66: 762.1287734 | M66: 3.707821501e-08 | N66: 104558.1647 | O66: 4 | Q66: -5.552737441 | R66: 5.296336651e-08 | T66: 0.6176 | U66: 0.36 | V66: 0.0224 | W66: 0 | X66: 0 | Y66: 1 | Z66: 1.287564947 | AA66: -14.20035948 | AB66: -1.021651248 | AC66: 0.3522430426 | AD66: 16.50957568 | AX66: 6.584216205 | AY66: -0.07578356311 | AZ66: -1.021651248 | BB66: 0.2543424422 | BC66: -10.07564732 | BD66: -1.021651248 | BF66: 0.2497812466 | BG66: -10.52638323 | BH66: -1.021651248
G67: 9.7 | H67: 0.5069432261 | I67: 1270.008319 | J67: 0.004041434323 | K67: 0.5069432261 | L67: 767.651878 | M67: 3.631371574e-08 | N67: 111292.2278 | O67: 4 | Q67: -5.51115562 | R67: 5.226218895e-08 | T67: 0.5983 | U67: 0.38 | V67: 0.0217 | W67: 0 | X67: 0 | Y67: 1 | Z67: 1.321017033 | AA67: -14.22097462 | AB67: -0.9675840263 | AC67: 0.3522430426 | AD67: 16.50957568 | AX67: 6.636444651 | AY67: -0.07762233901 | AZ67: -0.9675840263 | BB67: 0.2668518713 | BC67: -10.11720511 | BD67: -0.9675840263 | BF67: 0.2637275531 | BG67: -10.56650414 | BH67: -0.9675840263
G68: 9.9 | H68: 0.5107630441 | I68: 1270.008319 | J68: 0.004204686371 | K68: 0.5107630441 | L68: 772.9551636 | M68: 3.558010532e-08 | N68: 118175.2087 | O68: 4 | Q68: -5.471555573 | R68: 5.159222736e-08 | T68: 0.4879435484 | U68: 0.4943590172 | V68: 0.0176974344 | W68: 0 | X68: 0 | Y68: 1 | Z68: 1.506138215 | AA68: -14.29894419 | AB68: -0.7044932703 | AC68: 0.3522430426 | AD68: 16.50957568 | AX68: 6.889974185 | AY68: -0.08718356094 | AZ68: -0.7044932703 | BB68: 0.3669439654 | BC68: -10.28020377 | BD68: -0.7044932703 | BF68: 0.3687802703 | BG68: -10.72454218 | BH68: -0.7044932703
G69: 10.1 | H69: 0.5146116445 | I69: 1270.008319 | J69: 0.004366661988 | K69: 0.5146116445 | L69: 778.0576453 | M69: 3.487554878e-08 | N69: 125206.9757 | O69: 4 | Q69: -5.433756409 | R69: 5.095164864e-08 | T69: 0.4859945844 | U69: 0.496378669 | V69: 0.01762674658 | W69: 0 | X69: 0 | Y69: 1 | Z69: 1.509279638 | AA69: -14.29987984 | AB69: -0.7004161979 | AC69: 0.3522430426 | AD69: 16.50957568 | AX69: 6.89389714 | AY69: -0.08733767806 | AZ69: -0.7004161979 | BB69: 0.3690000724 | BC69: -10.28222474 | BD69: -0.7004161979 | BF69: 0.3708910055 | BG69: -10.72650852 | BH69: -0.7004161979
G70: 10.3 | H70: 0.518489244 | I70: 1270.008319 | J70: 0.004527424912 | K70: 0.518489244 | L70: 782.9758031 | M70: 3.419835365e-08 | N70: 132387.2183 | O70: 4 | Q70: -5.397601953 | R70: 5.033876222e-08 | T70: 0.4825 | U70: 0.5 | V70: 0.0175 | W70: 0 | X70: 0 | Y70: 1 | Z70: 1.514899768 | AA70: -14.30152873 | AB70: -0.6931471806 | AC70: 0.3522430426 | AD70: 16.50957568 | AX70: 6.900891115 | AY70: -0.0876127208 | AZ70: -0.6931471806 | BB70: 0.3727030739 | BC70: -10.28579075 | BD70: -0.6931471806 | BF70: 0.3746901116 | BG70: -10.72997843 | BH70: -0.6931471806
G71: 10.5 | H71: 0.5223960613 | I71: 1270.008319 | J71: 0.004687029119 | K71: 0.5223960613 | L71: 787.7240274 | M71: 3.354695644e-08 | N71: 139715.4799 | O71: 4 | Q71: -5.362956347 | R71: 4.97520065e-08 | T71: 0.43425 | U71: 0.55 | V71: 0.01575 | W71: 0 | X71: 0 | Y71: 1 | Z71: 1.590808516 | AA71: -14.32093016 | AB71: -0.5978370008 | AC71: 0.3522430426 | AD71: 16.50957568 | AX71: 6.992575087 | AY71: -0.09123892822 | AZ71: -0.5978370008 | BB71: 0.4256121827 | BC71: -10.32819182 | BD71: -0.5978370008 | BF71: 0.4287004071 | BG71: -10.77127831 | BH71: -0.5978370008
G72: 10.7 | H72: 0.5263323165 | I72: 1270.008319 | J72: 0.004845520567 | K72: 0.5263323165 | L72: 792.3149688 | M72: 3.291991053e-08 | N72: 147191.1828 | O72: 4 | Q72: -5.329700595 | R72: 4.918993677e-08 | T72: 0.386 | U72: 0.6 | V72: 0.014 | W72: 0 | X72: 0 | Y72: 1 | Z72: 1.663507457 | AA72: -14.33524259 | AB72: -0.5108256238 | AC72: 0.3522430426 | AD72: 16.50957568 | AX72: 7.076284362 | AY72: -0.09454103045 | AZ72: -0.5108256238 | BB72: 0.4807626536 | BC72: -10.36005273 | BD72: -0.5108256238 | BF72: 0.4846257219 | BG72: -10.80236438 | BH72: -0.5108256238
G73: 10.9 | H73: 0.5302982313 | I73: 1270.008319 | J73: 0.005002938581 | K73: 0.5302982313 | L73: 796.7598169 | M73: 3.231587547e-08 | N73: 154813.6483 | O73: 4 | Q73: -5.297729823 | R73: 4.865121453e-08 | T73: 0.33775 | U73: 0.65 | V73: 0.01225 | W73: 0 | X73: 0 | Y73: 1 | Z73: 1.733010084 | AA73: -14.34578268 | AB73: -0.4307829161 | AC73: 0.3522430426 | AD73: 16.50957568 | AX73: 7.153356926 | AY73: -0.0975111738 | AZ73: -0.4307829161 | BB73: 0.5369673966 | BC73: -10.38389069 | BD73: -0.4307829161 | BF73: 0.541378135 | BG73: -10.82565467 | BH73: -0.4307829161
G74: 11.1 | H74: 0.5342940293 | I74: 1270.008319 | J74: 0.00515931695 | K74: 0.5342940293 | L74: 801.0685239 | M74: 3.173360744e-08 | N74: 162582.113 | O74: 4 | Q74: -5.266951082 | R74: 4.813459787e-08 | T74: 0.2895 | U74: 0.7 | V74: 0.0105 | W74: 0 | X74: 0 | Y74: 1 | Z74: 1.799411847 | AA74: -14.35348888 | AB74: -0.3566749439 | AC74: 0.3522430426 | AD74: 16.50957568 | AX74: 7.224836313 | AY74: -0.100139759 | AZ74: -0.3566749439 | BB74: 0.5934053447 | BC74: -10.40156072 | BD74: -0.3566749439 | BF74: 0.5982023237 | BG74: -10.84293845 | BH74: -0.3566749439
G75: 11.3 | H75: 0.5383199357 | I75: 1270.008319 | J75: 0.005314684825 | K75: 0.5383199357 | L75: 805.2499868 | M75: 3.117195068e-08 | N75: 170495.7409 | O75: 4 | Q75: -5.237281568 | R75: 4.763893299e-08 | T75: 0.24125 | U75: 0.75 | V75: 0.00875 | W75: 0 | X75: 0 | Y75: 1 | Z75: 1.862851205 | AA75: -14.3590424 | AB75: -0.2876820725 | AC75: 0.3522430426 | AD75: 16.50957568 | AX75: 7.291553752 | AY75: -0.1024151917 | AZ75: -0.2876820725 | BB75: 0.6495101372 | BC75: -10.4144488 | BD75: -0.2876820725 | BF75: 0.6545767506 | BG75: -10.8555569 | BH75: -0.2876820725
G76: 11.5 | H76: 0.5423761773 | I76: 1270.008319 | J76: 0.00546906744 | K76: 0.5423761773 | L76: 809.3121964 | M76: 3.062982979e-08 | N76: 178553.6347 | O76: 4 | Q76: -5.208647163 | R76: 4.716314647e-08 | T76: 0.193 | U76: 0.8 | V76: 0.007 | W76: 0 | X76: 0 | Y76: 1 | Z76: 1.923486664 | AA76: -14.36294546 | AB76: -0.2231435513 | AC76: 0.3522430426 | AD76: 16.50957568 | AX76: 7.354183895 | AY76: -0.1043235699 | AZ76: -0.2231435513 | BB76: 0.7048942793 | BC76: -10.42360318 | BD76: -0.2231435513 | BF76: 0.7101450751 | BG76: -10.86452709 | BH76: -0.2231435513
G77: 11.7 | H77: 0.5464629827 | I77: 1270.008319 | J77: 0.00562248671 | K77: 0.5464629827 | L77: 813.2623601 | M77: 3.010624296e-08 | N77: 186754.8441 | O77: 4 | Q77: -5.180981238 | R77: 4.670623845e-08 | T77: 0.14475 | U77: 0.85 | V77: 0.00525 | W77: 0 | X77: 0 | Y77: 1 | Z77: 1.98148326 | AA77: -14.36557349 | AB77: -0.1625189295 | AC77: 0.3522430426 | AD77: 16.50957568 | AX77: 7.413283799 | AY77: -0.105848288 | AZ77: -0.1625189295 | BB77: 0.7592968448 | BC77: -10.42982523 | BD77: -0.1625189295 | BF77: 0.764668522 | BG77: -10.87062827 | BH77: -0.1625189295
G78: 11.9 | H78: 0.5505805821 | I78: 1270.008319 | J78: 0.005774961722 | K78: 0.5505805821 | L78: 817.1070052 | M78: 2.960025568e-08 | N78: 195098.3729 | O78: 4 | Q78: -5.154223651 | R78: 4.626727642e-08 | T78: 0.0965 | U78: 0.9 | V78: 0.0035 | W78: 0 | X78: 0 | Y78: 1 | Z78: 2.037004628 | AA78: -14.36721053 | AB78: -0.1053605157 | AC78: 0.3522430426 | AD78: 16.50957568 | AX78: 7.469320967 | AY78: -0.1069695337 | AZ78: -0.1053605157 | BB78: 0.8125469171 | BC78: -10.43373357 | BD78: -0.1053605157 | BF78: 0.8179921839 | BG78: -10.87446302 | BH78: -0.1053605157
G79: 12.1 | H79: 0.5547292077 | I79: 1270.008319 | J79: 0.005926509146 | K79: 0.5547292077 | L79: 820.8520641 | M79: 2.911099526e-08 | N79: 203583.1854 | O79: 4 | Q79: -5.128319916 | R79: 4.584538967e-08 | T79: 0.04825 | U79: 0.95 | V79: 0.00175 | W79: 0 | X79: 0 | Y79: 1 | Z79: 2.090208636 | AA79: -14.36807374 | AB79: -0.05129329439 | AC79: 0.3522430426 | AD79: 16.50957568 | AX79: 7.522694082 | AY79: -0.1076636396 | AZ79: -0.05129329439 | BB79: 0.8645379023 | BC79: -10.43580981 | BD79: -0.05129329439 | BF79: 0.8700211792 | BG79: -10.87650125 | BH79: -0.05129329439
G80: 12.3 | H80: 0.5589090931 | I80: 1270.008319 | J80: 0.00607714358 | K80: 0.5589090931 | L80: 824.5029475 | M80: 2.863764574e-08 | N80: 212208.2113 | O80: 4 | Q80: -5.103220499 | R80: 4.543976427e-08 | T80: 0.0386 | U80: 0.96 | V80: 0.0014 | W80: 0 | X80: 0 | Y80: 1 | Z80: 2.100584682 | AA80: -14.368169 | AB80: -0.04082199452 | AC80: 0.3522430426 | AD80: 16.50957568 | AX80: 7.53308022 | AY80: -0.1077488018 | AZ80: -0.04082199452 | BB80: 0.8747790285 | BC80: -10.43603998 | BD80: -0.04082199452 | BF80: 0.8802664454 | BG80: -10.87672728 | BH80: -0.04082199452
G81: 12.5 | H81: 0.5631204741 | I81: 1270.008319 | J81: 0.006226877832 | K81: 0.5631204741 | L81: 828.0646058 | M81: 2.817944341e-08 | N81: 220972.35 | O81: 4 | Q81: -5.078880222 | R81: 4.504963852e-08 | T81: 0.02895 | U81: 0.97 | V81: 0.00105 | W81: 0 | X81: 0 | Y81: 1 | Z81: 2.110875202 | AA81: -14.36824127 | AB81: -0.03045920748 | AC81: 0.3522430426 | AD81: 16.50957568 | AX81: 7.543376299 | AY81: -0.1078155098 | AZ81: -0.03045920748 | BB81: 0.8849669571 | BC81: -10.43621484 | BD81: -0.03045920748 | BF81: 0.8904575032 | BG81: -10.87689901 | BH81: -0.03045920748
G82: 12.7 | H82: 0.5673635877 | I82: 1270.008319 | J82: 0.006375723175 | K82: 0.5673635877 | L82: 831.5415817 | M82: 2.773567265e-08 | N82: 229874.4745 | O82: 4 | Q82: -5.055257755 | R82: 4.467429884e-08 | T82: 0.0193 | U82: 0.98 | V82: 0.0007 | W82: 0 | X82: 0 | Y82: 1 | Z82: 2.121081336 | AA82: -14.36829163 | AB82: -0.02020270732 | AC82: 0.3522430426 | AD82: 16.50957568 | AX82: 7.553584807 | AY82: -0.1078635015 | AZ82: -0.02020270732 | BB82: 0.8951014304 | BC82: -10.43633687 | BD82: -0.02020270732 | BF82: 0.9005941494 | BG82: -10.87701886 | BH82: -0.02020270732
G83: 12.9 | H83: 0.5716386733 | I83: 1270.008319 | J83: 0.006523689545 | K83: 0.5716386733 | L83: 834.9380556 | M83: 2.730566222e-08 | N83: 238913.4346 | O83: 4 | Q83: -5.032315182 | R83: 4.431307603e-08 | T83: 0.00965 | U83: 0.99 | V83: 0.00035 | W83: 0 | X83: 0 | Y83: 1 | Z83: 2.131204205 | AA83: -14.36832113 | AB83: -0.01005033585 | AC83: 0.3522430426 | AD83: =-($L$9/1000000*($V$16*1000000-AC83)/(8.314*(273.15+$V$15))+LN(AC83/($V$16*1000000))) -> 16.50957568 | AX83: 7.563708175 | AY83: -0.1078925049 | AZ83: -0.01005033585 | BB83: 0.9051822355 | BC83: -10.43640843 | BD83: -0.01005033585 | BF83: 0.9106762227 | BG83: -10.87708916 | BH83: -0.01005033585
G84: 13.1 | H84: 0.5759459716 | I84: 1270.008319 | J84: 0.006670785727 | K84: 0.5759459716 | L84: 838.2578842 | M84: 2.688878188e-08 | N84: 248088.0598 | O84: 4 | Q84: =LN(J84) -> -5.010017626 | R84: =M84*EXP(G84*$L$9/(8.314*($E$14+273.15))) -> 4.396534192e-08 | T84: =$B$8/$B$13*(1-U84) -> 0.000965 | U84: 0.999 | V84: =$B$10/$B$13*(1-U84) -> 3.5e-05 | W84: =$B$11/$B$13*(1-U84) -> 0 | X84: =$B$12/$B$13*(1-U84) -> 0 | Y84: =SUM(T84:X84) -> 1 | Z84: =AA84+AB84+AD84 -> 2.140244513 | AA84: -14.36833066 | AB84: -0.001000500334 | AC84: =EXP($M$9+$N$9/($V$15+273.15+$O$9)) -> 0.3522430426 | AD84: 16.50957568 | AX84: 7.572748376 | AY84: -0.1079021396 | AZ84: -0.001000500334 | BB84: 0.914208932 | BC84: -10.43643157 | BD84: -0.001000500334 | BF84: 0.9197033275 | BG84: -10.87711189 | BH84: -0.001000500334
G85: 13.3 | H85: 0.5802857254 | I85: 1270.008319 | J85: 0.006817019503 | K85: 0.5802857254 | L85: 841.5046345 | M85: 2.64844393e-08 | N85: 257397.1617 | O85: 4 | Q85: -4.988332926 | R85: 4.363050625e-08
G86: 13.5 | H86: 0.5846581793 | I86: 1270.008319 | J86: 0.006962397784 | K86: 0.5846581793 | L86: 844.6816135 | M86: 2.609207723e-08 | N86: 266839.5361 | O86: 4 | Q86: -4.967231355 | R86: 4.330801385e-08
G87: 13.7 | H87: 0.5890635796 | I87: 1270.008319 | J87: 0.007106926724 | K87: 0.5890635796 | L87: 847.7918932 | M87: 2.5711171e-08 | N87: 276413.9652 | O87: 4 | Q87: -4.946685376 | R87: 4.299734214e-08
G88: 13.9 | H88: 0.5935021746 | I88: 1270.008319 | J88: 0.007250611821 | K88: 0.5935021746 | L88: 850.8383338 | M88: 2.534122609e-08 | N88: 286119.2191 | O88: 4 | Q88: -4.926669425 | R88: 4.269799874e-08
G89: 14.1 | H89: 0.5979742144 | I89: 1270.008319 | J89: 0.007391502521 | K89: 0.5979742144 | L89: 853.8037131 | M89: 2.498177607e-08 | N89: 295875.7816 | O89: 3 | Q89: -4.907424247 | R89: 4.240951932e-08
G90: 14.3 | H90: 0.6024799511 | I90: 1270.008319 | J90: 0.007533468614 | K90: 0.6024799511 | L90: 856.7303943 | M90: 2.46323806e-08 | N90: 305835.9943 | O90: 3 | Q90: -4.888399704 | R90: 4.213146567e-08
G91: 14.5 | H91: 0.6070196385 | I91: 1270.008319 | J91: 0.007674639756 | K91: 0.6070196385 | L91: 859.6010741 | M91: 2.429262363e-08 | N91: 315924.6969 | O91: 3 | Q91: -4.869833924 | R91: 4.18634239e-08
G92: 14.7 | H92: 0.6115935325 | I92: 1270.008319 | J92: 0.00781498508 | K92: 0.6115935325 | L92: 862.4175912 | M92: 2.396211174e-08 | N92: 326139.247 | O92: 3 | Q92: -4.851712224 | R92: 4.160500276e-08
G93: 14.9 | H93: 0.6162018907 | I93: 1270.008319 | J93: 0.007954507209 | K93: 0.6162018907 | L93: 865.1819952 | M93: 2.364047266e-08 | N93: 336478.349 | O93: 3 | Q93: -4.834016566 | R93: 4.135583214e-08
G94: 15.1 | H94: 0.6208449729 | I94: 1270.008319 | J94: 0.008093209109 | K94: 0.6208449729 | L94: 867.8962195 | M94: 2.332735382e-08 | N94: 346940.7277 | O94: 3 | Q94: -4.816729951 | R94: 4.111556167e-08
G95: 15.3 | H95: 0.6255230408 | I95: 1270.008319 | J95: 0.008231093511 | K95: 0.6255230408 | L95: 870.5620858 | M95: 2.302242109e-08 | N95: 357525.1047 | O95: 3 | Q95: -4.799836404 | R95: 4.088385942e-08
G96: 15.5 | H96: 0.6302363579 | I96: 1270.008319 | J96: 0.008368162934 | K96: 0.6302363579 | L96: 873.1813122 | M96: 2.272535759e-08 | N96: 368230.1984 | O96: 3 | Q96: -4.783320901 | R96: 4.066041073e-08
G97: 15.7 | H97: 0.6349851899 | I97: 1270.008319 | J97: 0.008504419715 | K97: 0.6349851899 | L97: 875.7555213 | M97: 2.243586259e-08 | N97: 379054.7246 | O97: 3 | Q97: -4.767169284 | R97: 4.044491709e-08
G98: 15.9 | H98: 0.6397698043 | I98: 1270.008319 | J98: 0.008639866038 | K98: 0.6397698043 | L98: 878.2862479 | M98: 2.215365048e-08 | N98: 389997.3978 | O98: 3 | Q98: -4.751368201 | R98: 4.023709514e-08
G99: 16.1 | H99: 0.6445904708 | I99: 1270.008319 | J99: 0.008774503954 | K99: 0.6445904708 | L99: 880.7749449 | M99: 2.187844985e-08 | N99: 401056.931 | O99: 3 | Q99: -4.735905041 | R99: 4.003667573e-08
G100: 16.3 | H100: 0.649447461 | I100: 1270.008319 | J100: 0.008908335403 | K100: 0.649447461 | L100: 883.2229896 | M100: 2.161000262e-08 | N100: 412232.0373 | O100: 3 | Q100: -4.720767878 | R100: 3.984340304e-08
G101: 16.5 | H101: 0.6543410487 | I101: 1270.008319 | J101: 0.009041362237 | K101: 0.6543410487 | L101: 885.6316892 | M101: 2.134806319e-08 | N101: 423521.4294 | O101: 3 | Q101: -4.705945426 | R101: 3.965703378e-08
G102: 16.7 | H102: 0.6592715095 | I102: 1270.008319 | J102: 0.009173586229 | K102: 0.6592715095 | L102: 888.0022852 | M102: 2.109239776e-08 | N102: 434923.821 | O102: 3 | Q102: -4.691426986 | R102: 3.947733642e-08
G103: 16.9 | H103: 0.6642391214 | I103: 1270.008319 | J103: 0.009305009096 | K103: 0.6642391214 | L103: 890.3359585 | M103: 2.084278359e-08 | N103: 446437.9269 | O103: 3 | Q103: -4.677202411 | R103: 3.930409055e-08
G104: 17.1 | H104: 0.6692441643 | I104: 1270.008319 | J104: 0.009435632504 | K104: 0.6692441643 | L104: 892.6338331 | M104: 2.059900834e-08 | N104: 458062.4634 | O104: 3 | Q104: -4.663262064 | R104: 3.913708615e-08
G105: 17.3 | H105: 0.6742869201 | I105: 1270.008319 | J105: 0.009565458086 | K105: 0.6742869201 | L105: 894.8969797 | M105: 2.036086952e-08 | N105: 469796.1488 | O105: 3 | Q105: -4.649596785 | R105: 3.897612307e-08
G106: 17.5 | H106: 0.6793676731 | I106: 1270.008319 | J106: 0.009694487449 | K106: 0.6793676731 | L106: 897.1264197 | M106: 2.012817387e-08 | N106: 481637.7042 | O106: 3 | Q106: -4.636197859 | R106: 3.882101041e-08
G107: 17.7 | H107: 0.6844867097 | I107: 1270.008319 | J107: 0.009822722184 | K107: 0.6844867097 | L107: 899.3231278 | M107: 1.990073687e-08 | N107: 493585.853 | O107: 3 | Q107: -4.623056987 | R107: 3.867156603e-08
G108: 17.9 | H108: 0.6896443181 | I108: 1270.008319 | J108: 0.009950163873 | K108: 0.6896443181 | L108: 901.4880353 | M108: 1.967838227e-08 | N108: 505639.3222 | O108: 3 | Q108: -4.610166258 | R108: 3.852761605e-08
G109: 18.1 | H109: 0.6948407891 | I109: 1270.008319 | J109: 0.0100768141 | K109: 0.6948407891 | L109: 903.6220324 | M109: 1.946094158e-08 | N109: 517796.8422 | O109: 3 | Q109: -4.597518128 | R109: 3.838899438e-08
G110: 18.3 | H110: 0.7000764156 | I110: 1270.008319 | J110: 0.01020267445 | K110: 0.7000764156 | L110: 905.7259709 | M110: 1.92482537e-08 | N110: 530057.1473 | O110: 3 | Q110: -4.585105393 | R110: 3.825554234e-08
G111: 18.5 | H111: 0.7053514925 | I111: 1270.008319 | J111: 0.01032774651 | K111: 0.7053514925 | L111: 907.8006666 | M111: 1.904016447e-08 | N111: 542418.9759 | O111: 3 | Q111: -4.57292117 | R111: 3.812710821e-08
G112: 18.7 | H112: 0.7106663171 | I112: 1270.008319 | J112: 0.01045203191 | K112: 0.7106663171 | L112: 909.8469011 | M112: 1.883652634e-08 | N112: 554881.0709 | O112: 3 | Q112: -4.560958878 | R112: 3.800354687e-08
G113: 18.9 | H113: 0.716021189 | I113: 1270.008319 | J113: 0.01057553227 | K113: 0.716021189 | L113: 911.8654239 | M113: 1.863719802e-08 | N113: 567442.1799 | O113: 3 | Q113: -4.549212222 | R113: 3.788471949e-08
G114: 19.1 | H114: 0.7214164098 | I114: 1270.008319 | J114: 0.01069824926 | K114: 0.7214164098 | L114: 913.8569543 | M114: 1.844204412e-08 | N114: 580101.0554 | O114: 3 | Q114: -4.537675172 | R114: 3.777049316e-08
G115: 19.3 | H115: 0.7268522836 | I115: 1270.008319 | J115: 0.01082018454 | K115: 0.7268522836 | L115: 915.8221828 | M115: 1.825093485e-08 | N115: 592856.4553 | O115: 3 | Q115: -4.52634195 | R115: 3.766074058e-08
G116: 19.5 | H116: 0.7323291167 | I116: 1270.008319 | J116: 0.01094133984 | K116: 0.7323291167 | L116: 917.7617731 | M116: 1.806374578e-08 | N116: 605707.1427 | O116: 3 | Q116: -4.515207018 | R116: 3.755533982e-08
G117: 19.7 | H117: 0.7378472178 | I117: 1270.008319 | J117: 0.0110617169 | K117: 0.7378472178 | L117: 919.6763631 | M117: 1.788035749e-08 | N117: 618651.8868 | O117: 3 | Q117: -4.50426506 | R117: 3.745417399e-08
G118: 19.9 | H118: 0.7434068978 | I118: 1270.008319 | J118: 0.01118131749 | K118: 0.7434068978 | L118: 921.5665667 | M118: 1.770065541e-08 | N118: 631689.4621 | O118: 3 | Q118: -4.493510974 | R118: 3.735713103e-08
G119: 20.1 | H119: 0.7490084699 | I119: 1270.008319 | J119: 0.01130014344 | K119: 0.7490084699 | L119: 923.4329745 | M119: 1.752452948e-08 | N119: 644818.6496 | O119: 3 | Q119: -4.48293986 | R119: 3.726410347e-08
G120: 20.3 | H120: 0.7546522499 | I120: 1270.008319 | J120: 0.01141819658 | K120: 0.7546522499 | L120: 925.2761557 | M120: 1.735187402e-08 | N120: 658038.2363 | O120: 3 | Q120: -4.472547005 | R120: 3.717498817e-08
G121: 20.5 | H121: 0.7603385559 | I121: 1270.008319 | J121: 0.0115354788 | K121: 0.7603385559 | L121: 927.0966584 | M121: 1.718258745e-08 | N121: 671347.0157 | O121: 3 | Q121: -4.462327879 | R121: 3.708968614e-08
G122: 20.7 | H122: 0.7660677081 | I122: 1270.008319 | J122: 0.01165199204 | K122: 0.7660677081 | L122: 928.8950114 | M122: 1.701657211e-08 | N122: 684743.788 | O122: 3 | Q122: -4.452278123 | R122: 3.700810233e-08
G123: 20.9 | H123: 0.7718400295 | I123: 1270.008319 | J123: 0.01176773826 | K123: 0.7718400295 | L123: 930.6717245 | M123: 1.68537341e-08 | N123: 698227.3599 | O123: 3 | Q123: -4.442393537 | R123: 3.693014544e-08
G124: 21.1 | H124: 0.7776558454 | I124: 1270.008319 | J124: 0.01188271947 | K124: 0.7776558454 | L124: 932.4272901 | M124: 1.669398306e-08 | N124: 711796.5452 | O124: 3 | Q124: -4.43267008 | R124: 3.685572776e-08
G125: 21.3 | H125: 0.7835154834 | I125: 1270.008319 | J125: 0.01199693771 | K125: 0.7835154834 | L125: 934.1621834 | M125: 1.653723205e-08 | N125: 725450.1645 | O125: 3 | Q125: -4.423103853 | R125: 3.678476496e-08
G126: 21.5 | H126: 0.7894192738 | I126: 1270.008319 | J126: 0.01211039507 | K126: 0.7894192738 | L126: 935.8768634 | M126: 1.638339733e-08 | N126: 739187.0456 | O126: 3 | Q126: -4.413691098 | R126: 3.671717601e-08
G127: 21.7 | H127: 0.7953675493 | I127: 1270.008319 | J127: 0.01222309368 | K127: 0.7953675493 | L127: 937.571774 | M127: 1.623239828e-08 | N127: 753006.0236 | O127: 3 | Q127: -4.404428192 | R127: 3.665288294e-08
G128: 21.9 | H128: 0.8013606451 | I128: 1270.008319 | J128: 0.01233503571 | K128: 0.8013606451 | L128: 939.2473443 | M128: 1.60841572e-08 | N128: 766905.9411 | O128: 3 | Q128: -4.395311634 | R128: 3.659181076e-08
G129: 22.1 | H129: 0.8073988988 | I129: 1270.008319 | J129: 0.01244622337 | K129: 0.8073988988 | L129: 940.9039893 | M129: 1.593859921e-08 | N129: 780885.6478 | O129: 3 | Q129: -4.386338046 | R129: 3.653388731e-08
G130: 22.3 | H130: 0.8134826508 | I130: 1270.008319 | J130: 0.01255665891 | K130: 0.8134826508 | L130: 942.5421107 | M130: 1.579565214e-08 | N130: 794944.0013 | O130: 3 | Q130: -4.377504164 | R130: 3.647904312e-08
G131: 22.5 | H131: 0.8196122439 | I131: 1270.008319 | J131: 0.01266634462 | K131: 0.8196122439 | L131: 944.1620975 | M131: 1.565524634e-08 | N131: 809079.8667 | O131: 3 | Q131: -4.368806833 | R131: 3.642721132e-08
G132: 22.7 | H132: 0.8257880235 | I132: 1270.008319 | J132: 0.01277528283 | K132: 0.8257880235 | L132: 945.7643263 | M132: 1.551731465e-08 | N132: 823292.1169 | O132: 3 | Q132: -4.360243004 | R132: 3.637832751e-08
G133: 22.9 | H133: 0.8320103375 | I133: 1270.008319 | J133: 0.0128834759 | K133: 0.8320103375 | L133: 947.3491622 | M133: 1.538179225e-08 | N133: 837579.6325 | O133: 3 | Q133: -4.351809726 | R133: 3.633232963e-08
G134: 23.1 | H134: 0.8382795368 | I134: 1270.008319 | J134: 0.01299092625 | K134: 0.8382795368 | L134: 948.9169588 | M134: 1.524861656e-08 | N134: 851941.3022 | O134: 3 | Q134: -4.343504146 | R134: 3.628915792e-08
G135: 23.3 | H135: 0.8445959744 | I135: 1270.008319 | J135: 0.01309763632 | K135: 0.8445959744 | L135: 950.4680594 | M135: 1.511772715e-08 | N135: 866376.0225 | O135: 3 | Q135: -4.335323499 | R135: 3.624875475e-08
G136: 23.5 | H136: 0.8509600064 | I136: 1270.008319 | J136: 0.01320360858 | K136: 0.8509600064 | L136: 952.0027965 | M136: 1.498906564e-08 | N136: 880882.698 | O136: 3 | Q136: -4.327265109 | R136: 3.621106458e-08
G137: 23.7 | H137: 0.8573719914 | I137: 1270.008319 | J137: 0.01330884557 | K137: 0.8573719914 | L137: 953.5214931 | M137: 1.486257564e-08 | N137: 895460.2412 | O137: 3 | Q137: -4.319326385 | R137: 3.617603387e-08
G138: 23.9 | H138: 0.8638322908 | I138: 1270.008319 | J138: 0.01341334982 | K138: 0.8638322908 | L138: 955.0244626 | M138: 1.473820262e-08 | N138: 910107.5728 | O138: 3 | Q138: -4.311504813 | R138: 3.614361097e-08
G139: 24.1 | H139: 0.8703412685 | I139: 1270.008319 | J139: 0.01351712392 | K139: 0.8703412685 | L139: 956.5120094 | M139: 1.461589389e-08 | N139: 924823.6219 | O139: 3 | Q139: -4.303797959 | R139: 3.611374606e-08
G140: 24.3 | H140: 0.8768992913 | I140: 1270.008319 | J140: 0.0136201705 | K140: 0.8768992913 | L140: 957.9844291 | M140: 1.449559846e-08 | N140: 939607.3255 | O140: 3 | Q140: -4.29620346 | R140: 3.608639107e-08
G141: 24.5 | H141: 0.8835067289 | I141: 1270.008319 | J141: 0.01372249222 | K141: 0.8835067289 | L141: 959.4420089 | M141: 1.437726705e-08 | N141: 954457.6289 | O141: 3 | Q141: -4.288719025 | R141: 3.606149962e-08
G142: 24.7 | H142: 0.8901639535 | I142: 1270.008319 | J142: 0.01382409174 | K142: 0.8901639535 | L142: 960.8850279 | M142: 1.426085193e-08 | N142: 969373.4858 | O142: 3 | Q142: -4.28134243 | R142: 3.603902693e-08
G143: 24.9 | H143: 0.8968713403 | I143: 1270.008319 | J143: 0.01392497181 | K143: 0.8968713403 | L143: 962.3137576 | M143: 1.414630693e-08 | N143: 984353.8581 | O143: 3 | Q143: -4.274071518 | R143: 3.601892981e-08
G144: 25.1 | H144: 0.9036292673 | I144: 1270.008319 | J144: 0.01402513515 | K144: 0.9036292673 | L144: 963.7284619 | M144: 1.403358736e-08 | N144: 999397.7161 | O144: 3 | Q144: -4.266904191 | R144: 3.60011665e-08
G145: 25.3 | H145: 0.9104381153 | I145: 1270.008319 | J145: 0.01412458455 | K145: 0.9104381153 | L145: 965.1293975 | M145: 1.392264991e-08 | N145: 1014504.038 | O145: 3 | Q145: -4.259838415 | R145: 3.598569673e-08
G146: 25.5 | H146: 0.9172982679 | I146: 1270.008319 | J146: 0.01422332282 | K146: 0.9172982679 | L146: 966.5168145 | M146: 1.381345265e-08 | N146: 1029671.812 | O146: 3 | Q146: -4.25287221 | R146: 3.597248157e-08
G147: 25.7 | H147: 0.9242101119 | I147: 1270.008319 | J147: 0.01432135278 | K147: 0.9242101119 | L147: 967.8909558 | M147: 1.370595497e-08 | N147: 1044900.032 | O147: 3 | Q147: -4.246003654 | R147: 3.596148343e-08
G148: 25.9 | H148: 0.9311740365 | I148: 1270.008319 | J148: 0.01441867729 | K148: 0.9311740365 | L148: 969.2520583 | M148: 1.360011748e-08 | N148: 1060187.702 | O148: 3 | Q148: =LN(J148) -> -4.239230879 | R148: =M148*EXP(G148*$L$9/(8.314*($E$14+273.15))) -> 3.595266598e-08
G149: 26.1 | H149: 0.9381904344 | I149: 1270.008319 | J149: 0.01451529924 | K149: 0.9381904344 | L149: 970.6003526 | M149: 1.349590202e-08 | N149: 1075533.834 | O149: 3 | Q149: -4.232552066 | R149: 3.594599413e-08
G150: 26.3 | H150: 0.9452597008 | I150: 1270.008319 | J150: 0.01461122154 | K150: 0.9452597008 | L150: 971.9360633 | M150: 1.339327158e-08 | N150: 1090937.449 | O150: 3 | Q150: -4.225965447 | R150: 3.594143397e-08
G151: 26.5 | H151: 0.9523822342 | I151: 1270.008319 | J151: 0.01470644712 | K151: 0.9523822342 | L151: 973.2594092 | M151: 1.329219029e-08 | N151: 1106397.576 | O151: 3 | Q151: -4.219469302 | R151: 3.593895271e-08
G152: 26.7 | H152: 0.9595584358 | I152: 1270.008319 | J152: 0.01480097894 | K152: 0.9595584358 | L152: 974.5706036 | M152: 1.319262332e-08 | N152: 1121913.252 | O152: 3 | Q152: -4.213061956 | R152: 3.593851867e-08
G153: 26.9 | H153: 0.9667887102 | I153: 1270.008319 | J153: 0.01489481997 | K153: 0.9667887102 | L153: 975.8698545 | M153: 1.30945369e-08 | N153: 1137483.523 | O153: 3 | Q153: -4.20674178 | R153: 3.594010123e-08
G154: 27.1 | H154: 0.9740734647 | I154: 1270.008319 | J154: 0.01498797321 | K154: 0.9740734647 | L154: 977.1573645 | M154: 1.299789825e-08 | N154: 1153107.442 | O154: 3 | Q154: -4.200507186 | R154: 3.594367076e-08
G155: 27.3 | H155: 0.9814131098 | I155: 1270.008319 | J155: 0.01508044168 | K155: 0.9814131098 | L155: 978.4333315 | M155: 1.290267555e-08 | N155: 1168784.072 | O155: 3 | Q155: -4.194356628 | R155: 3.594919864e-08
G156: 27.5 | H156: 0.9888080591 | I156: 1270.008319 | J156: 0.01517222842 | K156: 0.9888080591 | L156: 979.6979482 | M156: 1.280883791e-08 | N156: 1184512.484 | O156: 3 | Q156: -4.1882886 | R156: 3.595665717e-08
G157: 27.7 | H157: 0.9962587295 | I157: 1270.008319 | J157: 0.01526333648 | K157: 0.9962587295 | L157: 980.9514028 | M157: 1.271635533e-08 | N157: 1200291.757 | O157: 3 | Q157: -4.182301635 | R157: 3.596601959e-08
G158: 27.9 | H158: 1.003765541 | I158: 1270.008319 | J158: 0.01535376894 | K158: 1.003765541 | L158: 982.1938791 | M158: 1.262519866e-08 | N158: 1216120.977 | O158: 3 | Q158: -4.176394302 | R158: 3.597725999e-08
G159: 28.1 | H159: 1.011328916 | I159: 1270.008319 | J159: 0.01544352888 | K159: 1.011328916 | L159: 983.4255563 | M159: 1.25353396e-08 | N159: 1231999.242 | O159: 3 | Q159: -4.170565206 | R159: 3.599035334e-08
G160: 28.3 | H160: 1.018949281 | I160: 1270.008319 | J160: 0.01553261942 | K160: 1.018949281 | L160: 984.6466095 | M160: 1.244675062e-08 | N160: 1247925.654 | O160: 3 | Q160: -4.164812988 | R160: 3.600527541e-08
G161: 28.5 | H161: 1.026627065 | I161: 1270.008319 | J161: 0.01562104366 | K161: 1.026627065 | L161: 985.8572095 | M161: 1.2359405e-08 | N161: 1263899.326 | O161: 3 | Q161: -4.159136321 | R161: 3.602200276e-08
G162: 28.7 | H162: 1.034362702 | I162: 1270.008319 | J162: 0.01570880475 | K162: 1.034362702 | L162: 987.0575233 | M162: 1.227327675e-08 | N162: 1279919.379 | O162: 3 | Q162: -4.153533912 | R162: 3.604051273e-08
G163: 28.9 | H163: 1.042156626 | I163: 1270.008319 | J163: 0.01579590583 | K163: 1.042156626 | L163: 988.2477141 | M163: 1.218834058e-08 | N163: 1295984.94 | O163: 3 | Q163: -4.148004497 | R163: 3.606078339e-08
G164: 29.1 | H164: 1.050009278 | I164: 1270.008319 | J164: 0.01588235006 | K164: 1.050009278 | L164: 989.4279412 | M164: 1.210457191e-08 | N164: 1312095.147 | O164: 3 | Q164: -4.142546845 | R164: 3.608279354e-08
G165: 29.3 | H165: 1.0579211 | I165: 1270.008319 | J165: 0.01596814062 | K165: 1.0579211 | L165: 990.5983603 | M165: 1.202194685e-08 | N165: 1328249.145 | O165: 3 | Q165: -4.137159753 | R165: 3.610652265e-08
G166: 29.5 | H166: 1.065892537 | I166: 1270.008319 | J166: 0.01605328067 | K166: 1.065892537 | L166: 991.7591237 | M166: 1.194044212e-08 | N166: 1344446.086 | O166: 3 | Q166: -4.131842047 | R166: 3.613195088e-08
G167: 29.7 | H167: 1.073924039 | I167: 1270.008319 | J167: 0.01613777342 | K167: 1.073924039 | L167: 992.9103801 | M167: 1.186003511e-08 | N167: 1360685.131 | O167: 3 | Q167: -4.12659258 | R167: 3.615905902e-08
G168: 29.9 | H168: 1.082016058 | I168: 1270.008319 | J168: 0.01622162206 | K168: 1.082016058 | L168: 994.0522753 | M168: 1.178070377e-08 | N168: 1376965.45 | O168: 3 | Q168: -4.121410231 | R168: 3.618782851e-08
G169: 30.1 | H169: 1.090169051 | I169: 1270.008319 | J169: 0.01630482981 | K169: 1.090169051 | L169: 995.1849514 | M169: 1.170242667e-08 | N169: 1393286.219 | O169: 3 | P169: Upper pressure bound reached. | Q169: -4.116293908 | R169: 3.621824137e-08
R170: 0
R171: 0
R172: 0
R173: 0
R174: 0
R175: 0
R176: 0
R177: 0
R178: 0
R179: 0
R180: 0
R181: 0
R182: 0
R183: 0
R184: 0
R185: 0
R186: 0
R187: 0
R188: 0
R189: 0
R190: 0
R191: 0
R192: 0
R193: 0
R194: 0
R195: 0
R196: 0
R197: 0
R198: 0
R199: 0
R200: 0
R201: 0
... 18 more rows

Sheet Database
C1: Tohoku University Supercritical Fluid Class Database
J2: Source: Properties of Gases and Liquids, 4th Ed. R. C. Reid, J. M. Prausnitz, and B. E. Poling, McGraw-Hill, New York, 1987. AND from Properties of Gases and Liquids, 3rd Ed., R. C. Reid, J. M. Prausnitz, and T. K. Sherwood, McGraw-Hill, New York, 1977.
A3: Solvents | B3: Formula | C3: MW | D3: Tc [K] | E3: Pc [MPa] | F3: w | H3: Vc [cm3/mol] | I3: Tb [K] | J3: Notes
A4: Carbon Dioxide | B4: CO2 | C4: 44.01 | D4: 304.1 | E4: 7380000 | F4: 0.225 | H4: 94 | I4: 194.7
A5: Ethane | B5: C2H6 | C5: 30.07 | D5: 305.4 | E5: 4880000 | F5: 0.098 | H5: 148 | I5: 184.5
A6: Propane | B6: C3H8 | C6: 44.094 | D6: 369.8 | E6: 4250000 | F6: 0.153 | H6: 203 | I6: 231.1
A7: Water | B7: H2O | C7: 18.015 | D7: 647.3 | E7: 22120000 | F7: 0.344 | H7: 57.1 | I7: 373.2
A8: Toluene | B8: C7H8 | C8: 92.141 | D8: 591.7 | E8: 4112780 | F8: 0.257 | H8: 316 | I8: 383.8
A9: m-Xylene | B9: C8H10 | C9: 106.168 | D9: 617 | E9: 3545500 | F9: 0.331 | H9: 376 | I9: 412.3
A10: Ammonia | B10: NH3 | C10: 17.031 | D10: 405.6 | E10: 11274690 | F10: 0.25 | H10: 72.5 | I10: 239.7
A13: Common co-solvents
A14: Methanol | B14: CH4O | C14: 32.042 | D14: 512.6 | E14: 8090000 | F14: 0.556 | H14: 118 | I14: 337.8
A15: Acetone | B15: C3H6O | C15: 58.08 | D15: 508.1 | E15: 4700000 | F15: 0.304 | H15: 209 | I15: 329.4
A16: Dimethyl ether | B16: C2H6O | C16: 46.069 | D16: 400 | E16: 5240000 | F16: 0.192 | H16: 178 | I16: 248.3
A17: Ethanol | B17: C2H6O | C17: 46.069 | D17: 516.2 | E17: 6140000 | F17: 0.635 | H17: 167 | I17: 351.5
A18: Isopropyl alcohol | B18: C3H8O | C18: 60.096 | D18: 508.3 | E18: 4760000 | F18: 0.665 | H18: 220 | I18: 355.4
E19: 0
A20: Solutes | C20: MW | D20: Tc [K] | F20: w | H20: Vc [cm3/mol] | I20: Tb [K]
A21: Methane | B21: CH4 | C21: 16.043 | D21: 190.6 | E21: 4599020 | F21: 0.008 | H21: 99 | I21: 111.7
A22: Benzene | B22: C6H6 | C22: 78.114 | D22: 562.2 | E22: 4890000 | F22: 0.212 | H22: 259 | I22: 353.3
A23: n-Hexane | B23: C6H14 | C23: 86.178 | D23: 507.5 | E23: 3010000 | F23: 0.299 | H23: 370 | I23: 341.9
A24: Naphthalene | B24: C10H8 | C24: 128.174 | D24: 748.4 | E24: 4050000 | F24: 0.302 | H24: 410 | I24: 491.1
A25: n-Octane | B25: C8H18 | C25: 114.232 | D25: 568.8 | E25: 2490000 | F25: 0.398 | H25: 492 | I25: 398.8
A26: n-Hexadecane | B26: C16H34 | C26: 224.432 | D26: 717 | E26: 1420000 | F26: 0.742 | H26: 931.5 | I26: 560 | J26: Vc estimated with Joback Method
A27: isoprene (1,3-butadiene, 2-methyl) | B27: C5H8 | C27: 68.119 | D27: 484 | E27: 3850000 | F27: 0.164 | H27: 276 | I27: 307.2 | J27: Properties from Reid et al. (1977)
A28: Maleic Anhydride | B28: C4H2O3 | C28: 98.0582 | D28: 719.4 | E28: 5990000 | F28: 0.443 | H28: 225.5 | I28: 472.8
A29: 4-methyl-4-cyclohexene-1,2-dicarboxylic anhydride | B29: C9H10O3 | C29: 166.1772 | D29: 849.1 | E29: 3610000 | F29: 0.588 | H29: 450.5 | I29: 598.3
A30: Ethyl Vinyl Ether | B30: C4H8O | C30: 72.10572 | D30: 475.1 | E30: 4020000 | F30: 0.265 | H30: 258.5 | I30: 308.8
A31: Biphenyl | B31: C12H10 | C31: 154.211 | D31: 773 | E31: 3380000 | F31: 0.404 | H31: 497 | I31: 528.23
A32: Others | C32: MW | D32: Tc [K] | F32: w | H32: Vc [cm3/mol] | I32: Tb [K]
A33: Hydrogen | B33: H2 | C33: 2.016 | D33: 33.2 | E33: 1296640 | F33: -0.22 | H33: 65 | I33: 20.4
A34: Hydrogen - Effective Critical Constants | B34: H2 | C34: 2.016 | D34: 43.6 | E34: 2050000 | F34: 0 | H34: 51.5 | I34: 20.4
A35: Nitrogen | B35: N2 | C35: 28.013 | D35: 126.2 | E35: 3393550 | F35: 0.04 | H35: 89.5 | I35: 77.4
A36: Oxygen | B36: O2 | C36: 31.999 | D36: 154.6 | E36: 5044740 | F36: 0.021 | H36: 73.4 | I36: 90.2
A37: Carbon Monoxide | B37: CO | C37: 28.01 | D37: 132.9 | E37: 3494850 | F37: 0.295 | H37: 93.1 | I37: 81.7

Sheet Data fitting
D1: Fitting of Solid-Vapor Equilibrium with the Peng-Robinson Equation of State | R1: =COLUMN() -> 18 | Y1: =COLUMN() -> 25
E2: Version 1.9 | I2: For Educational Use Only!
F3: Report errors to R. L. Smith; Email: smith@scf.che.tohoku.ac.jp
D5: Pure component properties | M5: Solid Properties | Q5: Binary Interaction
M6: ln(Psub [Pa] )=A+B/(t[K]+C) | Q6: Parameters
A7: No. | B7: solvent/co-solvent moles used for mole ratios- these do not need to sum to 100 and can be set equal to zero except for the solvent. | C7: Substance Name | D7: Formula | E7: MW | F7: Tc / K | G7: Pc/ Pa | H7: Acentric factor | I7: Role | J7: Tmelt [C] | K7: Density [kg/m3] | L7: Solid Molar Volume (cm3/mol) | M7: A | N7: B | O7: C | Q7: amix term k(i,j) | R7: j=1 | S7: 2 | T7: 3 | U7: 4 | V7: 5 | X7: bmix term l(i,j) | Y7: j=1 | Z7: 2 | AA7: 3 | AB7: 4 | AC7: 5
A8: 1 | B8: 96.5 | C8: Carbon Dioxide | D8: CO2 | E8: 44.01 | F8: 304.1 | G8: 7380000 | H8: 0.225 | I8: solvent | Q8: i=1 | R8: 0 | S8: =R16 -> -0.1055312957 | T8: 0 | U8: 0 | V8: 0 | X8: i=1 | Y8: 0 | Z8: =R17 -> -0.2231989307 | AA8: 0 | AB8: 0 | AC8: 0
A9: 2 | C9: Benzoic acid | D9: C7H6O2 | E9: 122.124 | F9: 752 | G9: 4560000 | H9: 0.62 | I9: solid solute | J9: 122.4 | K9: 1270.008319 | L9: 96.16 | M9: 33.959 | N9: -10786 | O9: 0 | Q9: 2 | R9: =S8 -> -0.1055312957 | S9: 0 | T9: 0 | U9: 0 | V9: 0 | X9: 2 | Y9: =Z8 -> -0.2231989307 | Z9: 0 | AA9: =R18 -> 0.09712146437 | AB9: 0 | AC9: 0
A10: 3 | B10: 3.5 | C10: Methanol | D10: CH4O | E10: 32.042 | F10: 512.6 | G10: 8090000 | H10: 0.556 | I10: co-solvent | Q10: 3 | R10: =T8 -> 0 | S10: =T9 -> 0 | T10: 0 | U10: 0 | V10: 0 | X10: 3 | Y10: =AA8 -> 0 | Z10: =AA9 -> 0.09712146437 | AA10: 0 | AB10: 0 | AC10: 0
A11: 4 | C11: Hydrogen | D11: H2 | E11: 2.016 | F11: 33.2 | G11: 1296640 | H11: -0.22 | I11: co-solvent | Q11: 4 | R11: =U8 -> 0 | S11: =U9 -> 0 | T11: =U10 -> 0 | U11: 0 | V11: 0 | X11: 4 | Y11: =AB8 -> 0 | Z11: =AB9 -> 0 | AA11: =AB10 -> 0 | AB11: 0 | AC11: 0
A12: 5 | C12: n-Hexane | D12: C6H12 | E12: 86.178 | F12: 507.5 | G12: 3010000 | H12: 0.299 | I12: co-solvent | Q12: 5 | R12: =V8 -> 0 | S12: =V9 -> 0 | T12: =V10 -> 0 | U12: =V11 -> 0 | V12: 0 | X12: 5 | Y12: =AC8 -> 0 | Z12: =AC9 -> 0 | AA12: =AC10 -> 0 | AB12: =AC11 -> 0 | AC12: 0
A13: Total | B13: =B8+B10+B11+B12 -> 100
Q15: SSQ | R15: =SUMSQ(P22:P31) -> 5.581649148e-07
Q16: k12 | R16: -0.1055312957 | T16: Change k12, l12 and l23 manually first to see the effect of changing the values
Q17: l12 | R17: -0.2231989307 | T17: Then, use Excel Solver to determine 1, 2 or 3 of the parameters.
Q18: l23 | R18: 0.09712146437 | T18: Any parameters used for fitting should be duplicated in the k(i,j) and l(i,j) Tables above. They are colored Magenta so that they can be easily recognized
B19: Data from:M. McHugh, M.E. Paulaitis, Solid solubilities of napthalene and biphenyl in supercritical carbon dioxide, Journal of Chemical and Engineering Data 25 (1980) 326-329. | Q19: lxx
D20: CO2 (1) + benzoic acid (2) + methanol (3)
D21: T [C] | E21: P [bar] | F21: y2,exp | G21: P [MPa] | H21: fs [Pa] | I21: rho [kg/m3] | J21: y(2) [-] | K21: fv (2)[Pa] | L21: rho [kg/m3] | M21: y(2)ideal [-] | N21: E [-] | O21: N | P21: Calc-Exp
B22: Data to fit: | D22: 35 | E22: 90 | F22: 0.00533 | G22: =E22/10 -> 9 | H22: =SVE_PREoS_Vector8_moli_Mwi_Tci_Pci_wi_Vs_AntA_AntB_AntC_kijm_lijm_Initialy2_TinC_PinPa($B$8:$B$12,$E$8:$E$12,$F$8:$F$12,$G$8:$G$12,$H$8:$H$12,$L$9,$M$9,$N$9,$O$9,$R$8:$V$12,$Y$8:$AC$12,F22,D22,G22*1000000) -> 0.4937974307 | I22: 1270.008319 | J22: 0.005109666273 | K22: 0.4937974307 | L22: 753.7278055 | M22: 3.913811585e-08 | N22: 130554.7332 | O22: 4 | P22: =J22-F22 -> -0.0002203337268
D23: 35 | E23: 100 | F23: 0.00601 | G23: =E23/10 -> 10 | H23: =SVE_PREoS_Vector8_moli_Mwi_Tci_Pci_wi_Vs_AntA_AntB_AntC_kijm_lijm_Initialy2_TinC_PinPa($B$8:$B$12,$E$8:$E$12,$F$8:$F$12,$G$8:$G$12,$H$8:$H$12,$L$9,$M$9,$N$9,$O$9,$R$8:$V$12,$Y$8:$AC$12,F23,D23,G23*1000000) -> 0.512683733 | I23: 1270.008319 | J23: 0.005954632744 | K23: 0.512683733 | L23: 779.6421034 | M23: 3.522430426e-08 | N23: 169048.9811 | O23: 3 | P23: =J23-F23 -> -5.53672558e-05
D24: 35 | E24: 120 | F24: 0.00743 | G24: 12 | H24: =SVE_PREoS_Vector8_moli_Mwi_Tci_Pci_wi_Vs_AntA_AntB_AntC_kijm_lijm_Initialy2_TinC_PinPa($B$8:$B$12,$E$8:$E$12,$F$8:$F$12,$G$8:$G$12,$H$8:$H$12,$L$9,$M$9,$N$9,$O$9,$R$8:$V$12,$Y$8:$AC$12,F24,D24,G24*1000000) -> 0.5526510021 | I24: 1270.008319 | J24: 0.007301933079 | K24: 0.5526510021 | L24: 818.7883336 | M24: 2.935358689e-08 | N24: 248757.779 | O24: 3 | P24: -0.0001280669205
D25: 35 | E25: 120 | F25: 0.00718 | G25: 12 | H25: =SVE_PREoS_Vector8_moli_Mwi_Tci_Pci_wi_Vs_AntA_AntB_AntC_kijm_lijm_Initialy2_TinC_PinPa($B$8:$B$12,$E$8:$E$12,$F$8:$F$12,$G$8:$G$12,$H$8:$H$12,$L$9,$M$9,$N$9,$O$9,$R$8:$V$12,$Y$8:$AC$12,F25,D25,G25*1000000) -> 0.5526510021 | I25: 1270.008319 | J25: 0.007301259051 | K25: 0.5526510021 | L25: 818.7774416 | M25: 2.935358689e-08 | N25: 248734.8166 | O25: 3 | P25: 0.0001212590511
D26: 35 | E26: 150 | F26: 0.00877 | G26: 15 | H26: =SVE_PREoS_Vector8_moli_Mwi_Tci_Pci_wi_Vs_AntA_AntB_AntC_kijm_lijm_Initialy2_TinC_PinPa($B$8:$B$12,$E$8:$E$12,$F$8:$F$12,$G$8:$G$12,$H$8:$H$12,$L$9,$M$9,$N$9,$O$9,$R$8:$V$12,$Y$8:$AC$12,F26,D26,G26*1000000) -> 0.618519075 | I26: 1270.008319 | J26: 0.008746671467 | K26: 0.618519075 | L26: 860.9380406 | M26: 2.348286951e-08 | N26: 372470.3007 | O26: 2 | P26: -2.332853296e-05
D27: 35 | E27: 200 | F27: 0.0101 | G27: 20 | H27: =SVE_PREoS_Vector8_moli_Mwi_Tci_Pci_wi_Vs_AntA_AntB_AntC_kijm_lijm_Initialy2_TinC_PinPa($B$8:$B$12,$E$8:$E$12,$F$8:$F$12,$G$8:$G$12,$H$8:$H$12,$L$9,$M$9,$N$9,$O$9,$R$8:$V$12,$Y$8:$AC$12,F27,D27,G27*1000000) -> 0.7462024276 | I27: 1270.008319 | J27: 0.01021347167 | K27: 0.7462024276 | L27: 910.2382233 | M27: 1.761215213e-08 | N27: 579910.4843 | O27: 2 | P27: 0.0001134716721
D28: 35 | E28: 250 | F28: 0.0106 | G28: 25 | H28: =SVE_PREoS_Vector8_moli_Mwi_Tci_Pci_wi_Vs_AntA_AntB_AntC_kijm_lijm_Initialy2_TinC_PinPa($B$8:$B$12,$E$8:$E$12,$F$8:$F$12,$G$8:$G$12,$H$8:$H$12,$L$9,$M$9,$N$9,$O$9,$R$8:$V$12,$Y$8:$AC$12,F28,D28,G28*1000000) -> 0.9002439626 | I28: 1270.008319 | J28: 0.01097429875 | K28: 0.9002439626 | L28: 946.4376566 | M28: 1.408972171e-08 | N28: 778886.8354 | O28: 2 | P28: 0.0003742987505
D29: 35 | E29: 250 | F29: 0.0109 | G29: 25 | H29: =SVE_PREoS_Vector8_moli_Mwi_Tci_Pci_wi_Vs_AntA_AntB_AntC_kijm_lijm_Initialy2_TinC_PinPa($B$8:$B$12,$E$8:$E$12,$F$8:$F$12,$G$8:$G$12,$H$8:$H$12,$L$9,$M$9,$N$9,$O$9,$R$8:$V$12,$Y$8:$AC$12,F29,D29,G29*1000000) -> 0.9002439626 | I29: 1270.008319 | J29: 0.01097433457 | K29: 0.9002439626 | L29: 946.4359935 | M29: 1.408972171e-08 | N29: 778889.3775 | O29: 2 | P29: 7.433456894e-05
B30: Color coding | D30: 35 | E30: 350 | F30: 0.0112 | G30: 35 | H30: =SVE_PREoS_Vector8_moli_Mwi_Tci_Pci_wi_Vs_AntA_AntB_AntC_kijm_lijm_Initialy2_TinC_PinPa($B$8:$B$12,$E$8:$E$12,$F$8:$F$12,$G$8:$G$12,$H$8:$H$12,$L$9,$M$9,$N$9,$O$9,$R$8:$V$12,$Y$8:$AC$12,F30,D30,G30*1000000) -> 1.310289731 | I30: 1270.008319 | J30: 0.01136081274 | K30: 1.310289731 | L30: 999.7147679 | M30: 1.006408693e-08 | N30: 1128846.841 | O30: 2 | P30: 0.0001608127399
D31: 35 | E31: 350 | F31: 0.0119 | G31: 35 | H31: =SVE_PREoS_Vector8_moli_Mwi_Tci_Pci_wi_Vs_AntA_AntB_AntC_kijm_lijm_Initialy2_TinC_PinPa($B$8:$B$12,$E$8:$E$12,$F$8:$F$12,$G$8:$G$12,$H$8:$H$12,$L$9,$M$9,$N$9,$O$9,$R$8:$V$12,$Y$8:$AC$12,F31,D31,G31*1000000) -> 1.310289731 | I31: 1270.008319 | J31: 0.01136098091 | K31: 1.310289731 | L31: 999.7210698 | M31: 1.006408693e-08 | N31: 1128863.551 | O31: 3 | P31: -0.000539019087
B32: Input Field
B33: Calculation Field
B34: Solver Field
B35: Vector function
B36: Note Field
B37: Optional/Disregard | G37: Vector functions calculate ALL values almost INSTANTLY without invoking a macro.
D47: T [C] | E47: P [MPa] | F47: fs [Pa] | G47: rho [kg/m3] | H47: y(2) [-] | I47: fv (2)[Pa] | J47: rho [kg/m3] | K47: y(2)ideal [-] | L47: E [-] | M47: N
B48: Curve calculation in y2-P plot | D48: 35 | E48: 0.1 | F48: =SVE_PREoS_Vector8_moli_Mwi_Tci_Pci_wi_Vs_AntA_AntB_AntC_kijm_lijm_Initialy2_TinC_PinPa($B$8:$B$12,$E$8:$E$12,$F$8:$F$12,$G$8:$G$12,$H$8:$H$12,$L$9,$M$9,$N$9,$O$9,$R$8:$V$12,$Y$8:$AC$12,0,D48,E48*1000000) -> 0.3535676234 | G48: 1270.008319 | H48: 3.718719322e-06 | I48: 0.3535676234 | J48: 1.710678114 | K48: 3.522430426e-06 | L48: 1.055725415 | M48: 2
D49: 35 | E49: 0.2 | F49: =SVE_PREoS_Vector8_moli_Mwi_Tci_Pci_wi_Vs_AntA_AntB_AntC_kijm_lijm_Initialy2_TinC_PinPa($B$8:$B$12,$E$8:$E$12,$F$8:$F$12,$G$8:$G$12,$H$8:$H$12,$L$9,$M$9,$N$9,$O$9,$R$8:$V$12,$Y$8:$AC$12,0,D49,E49*1000000) -> 0.3548971898 | G49: 1270.008319 | H49: 1.963632419e-06 | I49: 0.3548971898 | J49: 3.440025324 | K49: 1.761215213e-06 | L49: 1.114930421 | M49: 2
D50: 35 | E50: 0.4 | F50: =SVE_PREoS_Vector8_moli_Mwi_Tci_Pci_wi_Vs_AntA_AntB_AntC_kijm_lijm_Initialy2_TinC_PinPa($B$8:$B$12,$E$8:$E$12,$F$8:$F$12,$G$8:$G$12,$H$8:$H$12,$L$9,$M$9,$N$9,$O$9,$R$8:$V$12,$Y$8:$AC$12,0,D50,E50*1000000) -> 0.3575713407 | G50: 1270.008319 | H50: 1.09616434e-06 | I50: 0.3575713407 | J50: 6.956626431 | K50: 8.806076066e-07 | L50: 1.244781821 | M50: 2
D51: 35 | E51: 0.6 | F51: =SVE_PREoS_Vector8_moli_Mwi_Tci_Pci_wi_Vs_AntA_AntB_AntC_kijm_lijm_Initialy2_TinC_PinPa($B$8:$B$12,$E$8:$E$12,$F$8:$F$12,$G$8:$G$12,$H$8:$H$12,$L$9,$M$9,$N$9,$O$9,$R$8:$V$12,$Y$8:$AC$12,0,D51,E51*1000000) -> 0.3602656414 | G51: 1270.008319 | H51: 8.17065471e-07 | I51: 0.3602656414 | J51: 10.55374085 | K51: 5.870717377e-07 | L51: 1.391764274 | M51: 2
D52: 35 | E52: 0.8 | F52: =SVE_PREoS_Vector8_moli_Mwi_Tci_Pci_wi_Vs_AntA_AntB_AntC_kijm_lijm_Initialy2_TinC_PinPa($B$8:$B$12,$E$8:$E$12,$F$8:$F$12,$G$8:$G$12,$H$8:$H$12,$L$9,$M$9,$N$9,$O$9,$R$8:$V$12,$Y$8:$AC$12,0,D52,E52*1000000) -> 0.3629802435 | G52: 1270.008319 | H52: 6.861973076e-07 | I52: 0.3629802435 | J52: 14.23562906 | K52: 4.403038033e-07 | L52: 1.558463276 | M52: 2
D53: 35 | E53: 1 | F53: =SVE_PREoS_Vector8_moli_Mwi_Tci_Pci_wi_Vs_AntA_AntB_AntC_kijm_lijm_Initialy2_TinC_PinPa($B$8:$B$12,$E$8:$E$12,$F$8:$F$12,$G$8:$G$12,$H$8:$H$12,$L$9,$M$9,$N$9,$O$9,$R$8:$V$12,$Y$8:$AC$12,0,D53,E53*1000000) -> 0.3657153003 | G53: 1270.008319 | H53: 6.15690546e-07 | I53: 0.3657153003 | J53: 18.00692576 | K53: 3.522430426e-07 | L53: 1.747914001 | M53: 2
D54: 35 | E54: 1.2 | F54: =SVE_PREoS_Vector8_moli_Mwi_Tci_Pci_wi_Vs_AntA_AntB_AntC_kijm_lijm_Initialy2_TinC_PinPa($B$8:$B$12,$E$8:$E$12,$F$8:$F$12,$G$8:$G$12,$H$8:$H$12,$L$9,$M$9,$N$9,$O$9,$R$8:$V$12,$Y$8:$AC$12,0,D54,E54*1000000) -> 0.3684709656 | G54: 1270.008319 | H54: 5.764139857e-07 | I54: 0.3684709656 | J54: 21.87268691 | K54: 2.935358689e-07 | L54: 1.963691824 | M54: 2
D55: 35 | E55: 1.4 | F55: =SVE_PREoS_Vector8_moli_Mwi_Tci_Pci_wi_Vs_AntA_AntB_AntC_kijm_lijm_Initialy2_TinC_PinPa($B$8:$B$12,$E$8:$E$12,$F$8:$F$12,$G$8:$G$12,$H$8:$H$12,$L$9,$M$9,$N$9,$O$9,$R$8:$V$12,$Y$8:$AC$12,0,D55,E55*1000000) -> 0.3712473949 | G55: 1270.008319 | H55: 5.560468273e-07 | I55: 0.3712473949 | J55: 25.83844446 | K55: 2.516021733e-07 | L55: 2.210023944 | M55: 2
D56: 35 | E56: 1.6 | F56: =SVE_PREoS_Vector8_moli_Mwi_Tci_Pci_wi_Vs_AntA_AntB_AntC_kijm_lijm_Initialy2_TinC_PinPa($B$8:$B$12,$E$8:$E$12,$F$8:$F$12,$G$8:$G$12,$H$8:$H$12,$L$9,$M$9,$N$9,$O$9,$R$8:$V$12,$Y$8:$AC$12,0,D56,E56*1000000) -> 0.3740447447 | G56: 1270.008319 | H56: 5.486026506e-07 | I56: 0.3740447447 | J56: 29.91027063 | K56: 2.201519016e-07 | L56: 2.49192783 | M56: 2
D57: 35 | E57: 1.8 | F57: =SVE_PREoS_Vector8_moli_Mwi_Tci_Pci_wi_Vs_AntA_AntB_AntC_kijm_lijm_Initialy2_TinC_PinPa($B$8:$B$12,$E$8:$E$12,$F$8:$F$12,$G$8:$G$12,$H$8:$H$12,$L$9,$M$9,$N$9,$O$9,$R$8:$V$12,$Y$8:$AC$12,0,D57,E57*1000000) -> 0.3768631724 | G57: 1270.008319 | H57: 5.509441175e-07 | I57: 0.3768631724 | J57: 34.09485363 | K57: 1.956905792e-07 | L57: 2.815383958 | M57: 2
D58: 35 | E58: 2 | F58: =SVE_PREoS_Vector8_moli_Mwi_Tci_Pci_wi_Vs_AntA_AntB_AntC_kijm_lijm_Initialy2_TinC_PinPa($B$8:$B$12,$E$8:$E$12,$F$8:$F$12,$G$8:$G$12,$H$8:$H$12,$L$9,$M$9,$N$9,$O$9,$R$8:$V$12,$Y$8:$AC$12,0,D58,E58*1000000) -> 0.379702837 | G58: 1270.008319 | H58: 5.613966347e-07 | I58: 0.379702837 | J58: 38.39958751 | K58: 1.761215213e-07 | L58: 3.187552722 | M58: 2
D59: 35 | E59: 2.2 | F59: =SVE_PREoS_Vector8_moli_Mwi_Tci_Pci_wi_Vs_AntA_AntB_AntC_kijm_lijm_Initialy2_TinC_PinPa($B$8:$B$12,$E$8:$E$12,$F$8:$F$12,$G$8:$G$12,$H$8:$H$12,$L$9,$M$9,$N$9,$O$9,$R$8:$V$12,$Y$8:$AC$12,0,D59,E59*1000000) -> 0.3825638985 | G59: 1270.008319 | H59: 5.791273838e-07 | I59: 0.3825638985 | J59: 42.83267934 | K59: 1.601104739e-07 | L59: 3.617048714 | M59: 2
D60: 35 | E60: 2.4 | F60: =SVE_PREoS_Vector8_moli_Mwi_Tci_Pci_wi_Vs_AntA_AntB_AntC_kijm_lijm_Initialy2_TinC_PinPa($B$8:$B$12,$E$8:$E$12,$F$8:$F$12,$G$8:$G$12,$H$8:$H$12,$L$9,$M$9,$N$9,$O$9,$R$8:$V$12,$Y$8:$AC$12,0,D60,E60*1000000) -> 0.3854465181 | G60: 1270.008319 | H60: 6.038458885e-07 | I60: 0.3854465181 | J60: 47.40327857 | K60: 1.467679344e-07 | L60: 4.114290297 | M60: 2
D61: 35 | E61: 2.6 | F61: =SVE_PREoS_Vector8_moli_Mwi_Tci_Pci_wi_Vs_AntA_AntB_AntC_kijm_lijm_Initialy2_TinC_PinPa($B$8:$B$12,$E$8:$E$12,$F$8:$F$12,$G$8:$G$12,$H$8:$H$12,$L$9,$M$9,$N$9,$O$9,$R$8:$V$12,$Y$8:$AC$12,0,D61,E61*1000000) -> 0.3883508582 | G61: 1270.008319 | H61: 6.356562059e-07 | I61: 0.3883508582 | J61: 52.12163275 | K61: 1.354780933e-07 | L61: 4.691948272 | M61: 2
D62: 35 | E62: 2.8 | F62: =SVE_PREoS_Vector8_moli_Mwi_Tci_Pci_wi_Vs_AntA_AntB_AntC_kijm_lijm_Initialy2_TinC_PinPa($B$8:$B$12,$E$8:$E$12,$F$8:$F$12,$G$8:$G$12,$H$8:$H$12,$L$9,$M$9,$N$9,$O$9,$R$8:$V$12,$Y$8:$AC$12,0,D62,E62*1000000) -> 0.3912770826 | G62: 1270.008319 | H62: 6.749892249e-07 | I62: 0.3912770826 | J62: 56.99927927 | K62: 1.258010867e-07 | L62: 5.365527777 | M62: 2
D63: 35 | E63: 3 | F63: =SVE_PREoS_Vector8_moli_Mwi_Tci_Pci_wi_Vs_AntA_AntB_AntC_kijm_lijm_Initialy2_TinC_PinPa($B$8:$B$12,$E$8:$E$12,$F$8:$F$12,$G$8:$G$12,$H$8:$H$12,$L$9,$M$9,$N$9,$O$9,$R$8:$V$12,$Y$8:$AC$12,0,D63,E63*1000000) -> 0.394225356 | G63: 1270.008319 | H63: 7.22583071e-07 | I63: 0.394225356 | J63: 62.0492808 | K63: 1.174143475e-07 | L63: 6.154129253 | M63: 2
D64: 35 | E64: 3.2 | F64: =SVE_PREoS_Vector8_moli_Mwi_Tci_Pci_wi_Vs_AntA_AntB_AntC_kijm_lijm_Initialy2_TinC_PinPa($B$8:$B$12,$E$8:$E$12,$F$8:$F$12,$G$8:$G$12,$H$8:$H$12,$L$9,$M$9,$N$9,$O$9,$R$8:$V$12,$Y$8:$AC$12,0,D64,E64*1000000) -> 0.3971958447 | G64: 1270.008319 | H64: 7.794978741e-07 | I64: 0.3971958447 | J64: 67.28651905 | K64: 1.100759508e-07 | L64: 7.081454834 | M64: 2
D65: 35 | E65: 3.4 | F65: =SVE_PREoS_Vector8_moli_Mwi_Tci_Pci_wi_Vs_AntA_AntB_AntC_kijm_lijm_Initialy2_TinC_PinPa($B$8:$B$12,$E$8:$E$12,$F$8:$F$12,$G$8:$G$12,$H$8:$H$12,$L$9,$M$9,$N$9,$O$9,$R$8:$V$12,$Y$8:$AC$12,0,D65,E65*1000000) -> 0.400188716 | G65: 1270.008319 | H65: 8.471605359e-07 | I65: 0.400188716 | J65: 72.72806493 | K65: 1.036008949e-07 | L65: 8.177154616 | M65: 2
D66: 35 | E66: 3.6 | F66: =SVE_PREoS_Vector8_moli_Mwi_Tci_Pci_wi_Vs_AntA_AntB_AntC_kijm_lijm_Initialy2_TinC_PinPa($B$8:$B$12,$E$8:$E$12,$F$8:$F$12,$G$8:$G$12,$H$8:$H$12,$L$9,$M$9,$N$9,$O$9,$R$8:$V$12,$Y$8:$AC$12,0,D66,E66*1000000) -> 0.4032041386 | G66: 1270.008319 | H66: 9.274413431e-07 | I66: 0.4032041386 | J66: 78.39365054 | K66: 9.784528962e-08 | L66: 9.478650906 | M66: 2
D67: 35 | E67: 3.8 | F67: =SVE_PREoS_Vector8_moli_Mwi_Tci_Pci_wi_Vs_AntA_AntB_AntC_kijm_lijm_Initialy2_TinC_PinPa($B$8:$B$12,$E$8:$E$12,$F$8:$F$12,$G$8:$G$12,$H$8:$H$12,$L$9,$M$9,$N$9,$O$9,$R$8:$V$12,$Y$8:$AC$12,0,D67,E67*1000000) -> 0.4062422825 | G67: 1270.008319 | H67: 1.022769708e-06 | I67: 0.4062422825 | J67: 84.30627924 | K67: 9.269553754e-08 | L67: 11.03364558 | M67: 2
D68: 35 | E68: 4 | F68: =SVE_PREoS_Vector8_moli_Mwi_Tci_Pci_wi_Vs_AntA_AntB_AntC_kijm_lijm_Initialy2_TinC_PinPa($B$8:$B$12,$E$8:$E$12,$F$8:$F$12,$G$8:$G$12,$H$8:$H$12,$L$9,$M$9,$N$9,$O$9,$R$8:$V$12,$Y$8:$AC$12,0,D68,E68*1000000) -> 0.4093033187 | G68: 1270.008319 | H68: 1.136302943e-06 | I68: 0.4093033187 | J68: 90.49302995 | K68: 8.806076066e-08 | L68: 12.90362398 | M68: 2
D69: 35 | E69: 4.2 | F69: =SVE_PREoS_Vector8_moli_Mwi_Tci_Pci_wi_Vs_AntA_AntB_AntC_kijm_lijm_Initialy2_TinC_PinPa($B$8:$B$12,$E$8:$E$12,$F$8:$F$12,$G$8:$G$12,$H$8:$H$12,$L$9,$M$9,$N$9,$O$9,$R$8:$V$12,$Y$8:$AC$12,0,D69,E69*1000000) -> 0.4123874199 | G69: 1270.008319 | H69: 1.272170446e-06 | I69: 0.4123874199 | J69: 96.98612257 | K69: 8.38673911e-08 | L69: 15.16883295 | M69: 2
D70: 35 | E70: 4.4 | F70: =SVE_PREoS_Vector8_moli_Mwi_Tci_Pci_wi_Vs_AntA_AntB_AntC_kijm_lijm_Initialy2_TinC_PinPa($B$8:$B$12,$E$8:$E$12,$F$8:$F$12,$G$8:$G$12,$H$8:$H$12,$L$9,$M$9,$N$9,$O$9,$R$8:$V$12,$Y$8:$AC$12,0,D70,E70*1000000) -> 0.4154947598 | G70: 1270.008319 | H70: 1.43583189e-06 | I70: 0.4154947598 | J70: 103.8243836 | K70: 8.005523696e-08 | L70: 17.93551484 | M70: 2
D71: 35 | E71: 4.6 | F71: =SVE_PREoS_Vector8_moli_Mwi_Tci_Pci_wi_Vs_AntA_AntB_AntC_kijm_lijm_Initialy2_TinC_PinPa($B$8:$B$12,$E$8:$E$12,$F$8:$F$12,$G$8:$G$12,$H$8:$H$12,$L$9,$M$9,$N$9,$O$9,$R$8:$V$12,$Y$8:$AC$12,0,D71,E71*1000000) -> 0.4186255134 | G71: 1270.008319 | H71: 1.634610806e-06 | I71: 0.4186255134 | J71: 111.055278 | K71: 7.657457449e-08 | L71: 21.34665217 | M71: 2
D72: 35 | E72: 4.8 | F72: =SVE_PREoS_Vector8_moli_Mwi_Tci_Pci_wi_Vs_AntA_AntB_AntC_kijm_lijm_Initialy2_TinC_PinPa($B$8:$B$12,$E$8:$E$12,$F$8:$F$12,$G$8:$G$12,$H$8:$H$12,$L$9,$M$9,$N$9,$O$9,$R$8:$V$12,$Y$8:$AC$12,0,D72,E72*1000000) -> 0.4217798573 | G72: 1270.008319 | H72: 1.878510727e-06 | I72: 0.4217798573 | J72: 118.737822 | K72: 7.338396722e-08 | L72: 25.59838065 | M72: 2
D73: 35 | E73: 5 | F73: =SVE_PREoS_Vector8_moli_Mwi_Tci_Pci_wi_Vs_AntA_AntB_AntC_kijm_lijm_Initialy2_TinC_PinPa($B$8:$B$12,$E$8:$E$12,$F$8:$F$12,$G$8:$G$12,$H$8:$H$12,$L$9,$M$9,$N$9,$O$9,$R$8:$V$12,$Y$8:$AC$12,0,D73,E73*1000000) -> 0.4249579692 | G73: 1270.008319 | H73: 2.181502563e-06 | I73: 0.4249579692 | J73: 126.946882 | K73: 7.044860853e-08 | L73: 30.96587155 | M73: 2
D74: 35 | E74: 5.2 | F74: =SVE_PREoS_Vector8_moli_Mwi_Tci_Pci_wi_Vs_AntA_AntB_AntC_kijm_lijm_Initialy2_TinC_PinPa($B$8:$B$12,$E$8:$E$12,$F$8:$F$12,$G$8:$G$12,$H$8:$H$12,$L$9,$M$9,$N$9,$O$9,$R$8:$V$12,$Y$8:$AC$12,0,D74,E74*1000000) -> 0.4281600282 | G74: 1270.008319 | H74: 2.56363407e-06 | I74: 0.4281600282 | J74: 135.7797593 | K74: 6.773904666e-08 | L74: 37.8457359 | M74: 2
D75: 35 | E75: 5.4 | F75: =SVE_PREoS_Vector8_moli_Mwi_Tci_Pci_wi_Vs_AntA_AntB_AntC_kijm_lijm_Initialy2_TinC_PinPa($B$8:$B$12,$E$8:$E$12,$F$8:$F$12,$G$8:$G$12,$H$8:$H$12,$L$9,$M$9,$N$9,$O$9,$R$8:$V$12,$Y$8:$AC$12,0,D75,E75*1000000) -> 0.4313862147 | G75: 1270.008319 | H75: 3.054651175e-06 | I75: 0.4313862147 | J75: 145.3667375 | K75: 6.523019308e-08 | L75: 46.82879248 | M75: 2
D76: 35 | E76: 5.6 | F76: =SVE_PREoS_Vector8_moli_Mwi_Tci_Pci_wi_Vs_AntA_AntB_AntC_kijm_lijm_Initialy2_TinC_PinPa($B$8:$B$12,$E$8:$E$12,$F$8:$F$12,$G$8:$G$12,$H$8:$H$12,$L$9,$M$9,$N$9,$O$9,$R$8:$V$12,$Y$8:$AC$12,0,D76,E76*1000000) -> 0.4346367105 | G76: 1270.008319 | H76: 3.700585743e-06 | I76: 0.4346367105 | J76: 155.8889435 | K76: 6.290054333e-08 | L76: 58.83233351 | M76: 2
D77: 35 | E77: 5.8 | F77: =SVE_PREoS_Vector8_moli_Mwi_Tci_Pci_wi_Vs_AntA_AntB_AntC_kijm_lijm_Initialy2_TinC_PinPa($B$8:$B$12,$E$8:$E$12,$F$8:$F$12,$G$8:$G$12,$H$8:$H$12,$L$9,$M$9,$N$9,$O$9,$R$8:$V$12,$Y$8:$AC$12,0,D77,E77*1000000) -> 0.4379116989 | G77: 1270.008319 | H77: 4.576674274e-06 | I77: 0.4379116989 | J77: 167.6109199 | K77: 6.073155908e-08 | L77: 75.35907761 | M77: 2
D78: 35 | E78: 6 | F78: =SVE_PREoS_Vector8_moli_Mwi_Tci_Pci_wi_Vs_AntA_AntB_AntC_kijm_lijm_Initialy2_TinC_PinPa($B$8:$B$12,$E$8:$E$12,$F$8:$F$12,$G$8:$G$12,$H$8:$H$12,$L$9,$M$9,$N$9,$O$9,$R$8:$V$12,$Y$8:$AC$12,0,D78,E78*1000000) -> 0.4412113642 | G78: 1270.008319 | H78: 5.815288589e-06 | I78: 0.4412113642 | J78: 180.9456044 | K78: 5.870717377e-08 | L78: 99.05584301 | M78: 2
D79: 35 | E79: 6.2 | F79: =SVE_PREoS_Vector8_moli_Mwi_Tci_Pci_wi_Vs_AntA_AntB_AntC_kijm_lijm_Initialy2_TinC_PinPa($B$8:$B$12,$E$8:$E$12,$F$8:$F$12,$G$8:$G$12,$H$8:$H$12,$L$9,$M$9,$N$9,$O$9,$R$8:$V$12,$Y$8:$AC$12,0,D79,E79*1000000) -> 0.4445358925 | G79: 1270.008319 | H79: 7.675481483e-06 | I79: 0.4445358925 | J79: 196.6035924 | K79: 5.681339397e-08 | L79: 135.0998584 | M79: 2
D80: 35 | E80: 6.4 | F80: =SVE_PREoS_Vector8_moli_Mwi_Tci_Pci_wi_Vs_AntA_AntB_AntC_kijm_lijm_Initialy2_TinC_PinPa($B$8:$B$12,$E$8:$E$12,$F$8:$F$12,$G$8:$G$12,$H$8:$H$12,$L$9,$M$9,$N$9,$O$9,$R$8:$V$12,$Y$8:$AC$12,0,D80,E80*1000000) -> 0.4478854712 | G80: 1270.008319 | H80: 1.075782117e-05 | I80: 0.4478854712 | J80: 216.0142318 | K80: 5.503797541e-08 | L80: 195.4617897 | M80: 3
D81: 35 | E81: 6.6 | F81: =SVE_PREoS_Vector8_moli_Mwi_Tci_Pci_wi_Vs_AntA_AntB_AntC_kijm_lijm_Initialy2_TinC_PinPa($B$8:$B$12,$E$8:$E$12,$F$8:$F$12,$G$8:$G$12,$H$8:$H$12,$L$9,$M$9,$N$9,$O$9,$R$8:$V$12,$Y$8:$AC$12,0,D81,E81*1000000) -> 0.4512602889 | G81: 1270.008319 | H81: 1.699854651e-05 | I81: 0.4512602889 | J81: 243.0805508 | K81: 5.337015798e-08 | L81: 318.5028329 | M81: 3
D82: 35 | E82: 6.8 | F82: =SVE_PREoS_Vector8_moli_Mwi_Tci_Pci_wi_Vs_AntA_AntB_AntC_kijm_lijm_Initialy2_TinC_PinPa($B$8:$B$12,$E$8:$E$12,$F$8:$F$12,$G$8:$G$12,$H$8:$H$12,$L$9,$M$9,$N$9,$O$9,$R$8:$V$12,$Y$8:$AC$12,0,D82,E82*1000000) -> 0.4546605359 | G82: 1270.008319 | H82: 0.002484426994 | I82: 0.4546605359 | J82: 653.0128831 | K82: 5.180044745e-08 | L82: 47961.49679 | M82: 7
D83: 35 | E83: 7 | F83: =SVE_PREoS_Vector8_moli_Mwi_Tci_Pci_wi_Vs_AntA_AntB_AntC_kijm_lijm_Initialy2_TinC_PinPa($B$8:$B$12,$E$8:$E$12,$F$8:$F$12,$G$8:$G$12,$H$8:$H$12,$L$9,$M$9,$N$9,$O$9,$R$8:$V$12,$Y$8:$AC$12,0,D83,E83*1000000) -> 0.4580864038 | G83: 1270.008319 | H83: 0.002804094408 | I83: 0.4580864038 | J83: 668.1919591 | K83: 5.032043466e-08 | L83: 55724.76523 | M83: 6
D84: 35 | E84: 7.2 | F84: =SVE_PREoS_Vector8_moli_Mwi_Tci_Pci_wi_Vs_AntA_AntB_AntC_kijm_lijm_Initialy2_TinC_PinPa($B$8:$B$12,$E$8:$E$12,$F$8:$F$12,$G$8:$G$12,$H$8:$H$12,$L$9,$M$9,$N$9,$O$9,$R$8:$V$12,$Y$8:$AC$12,0,D84,E84*1000000) -> 0.4615380856 | G84: 1270.008319 | H84: 0.003096757212 | I84: 0.4615380856 | J84: 681.0632106 | K84: 4.892264481e-08 | L84: 63299.05556 | M84: 6
D85: 35 | E85: 7.4 | F85: =SVE_PREoS_Vector8_moli_Mwi_Tci_Pci_wi_Vs_AntA_AntB_AntC_kijm_lijm_Initialy2_TinC_PinPa($B$8:$B$12,$E$8:$E$12,$F$8:$F$12,$G$8:$G$12,$H$8:$H$12,$L$9,$M$9,$N$9,$O$9,$R$8:$V$12,$Y$8:$AC$12,0,D85,E85*1000000) -> 0.4650157758 | G85: 1270.008319 | H85: 0.003368737551 | I85: 0.4650157758 | J85: 692.3097578 | K85: 4.760041117e-08 | L85: 70771.18597 | M85: 6
D86: 35 | E86: 7.6 | F86: =SVE_PREoS_Vector8_moli_Mwi_Tci_Pci_wi_Vs_AntA_AntB_AntC_kijm_lijm_Initialy2_TinC_PinPa($B$8:$B$12,$E$8:$E$12,$F$8:$F$12,$G$8:$G$12,$H$8:$H$12,$L$9,$M$9,$N$9,$O$9,$R$8:$V$12,$Y$8:$AC$12,0,D86,E86*1000000) -> 0.4685196704 | G86: 1270.008319 | H86: 0.003624222182 | I86: 0.4685196704 | J86: 702.3475844 | K86: 4.634776877e-08 | L86: 78196.26011 | M86: 6
D87: 35 | E87: 7.8 | F87: =SVE_PREoS_Vector8_moli_Mwi_Tci_Pci_wi_Vs_AntA_AntB_AntC_kijm_lijm_Initialy2_TinC_PinPa($B$8:$B$12,$E$8:$E$12,$F$8:$F$12,$G$8:$G$12,$H$8:$H$12,$L$9,$M$9,$N$9,$O$9,$R$8:$V$12,$Y$8:$AC$12,0,D87,E87*1000000) -> 0.4720499669 | G87: 1270.008319 | H87: 0.003865963254 | I87: 0.4720499669 | J87: 711.4433888 | K87: 4.515936444e-08 | L87: 85607.12272 | M87: 6
D88: 35 | E88: 8 | F88: =SVE_PREoS_Vector8_moli_Mwi_Tci_Pci_wi_Vs_AntA_AntB_AntC_kijm_lijm_Initialy2_TinC_PinPa($B$8:$B$12,$E$8:$E$12,$F$8:$F$12,$G$8:$G$12,$H$8:$H$12,$L$9,$M$9,$N$9,$O$9,$R$8:$V$12,$Y$8:$AC$12,0,D88,E88*1000000) -> 0.4756068642 | G88: 1270.008319 | H88: 0.00409589783 | I88: 0.4756068642 | J88: 719.7799614 | K88: 4.403038033e-08 | L88: 93024.35725 | M88: 6
D89: 35 | E89: 8.2 | F89: =SVE_PREoS_Vector8_moli_Mwi_Tci_Pci_wi_Vs_AntA_AntB_AntC_kijm_lijm_Initialy2_TinC_PinPa($B$8:$B$12,$E$8:$E$12,$F$8:$F$12,$G$8:$G$12,$H$8:$H$12,$L$9,$M$9,$N$9,$O$9,$R$8:$V$12,$Y$8:$AC$12,0,D89,E89*1000000) -> 0.4791905626 | G89: 1270.008319 | H89: 0.004315460336 | I89: 0.4791905626 | J89: 727.4888824 | K89: 4.295646861e-08 | L89: 100461.2454 | M89: 6
D90: 35 | E90: 8.4 | F90: =SVE_PREoS_Vector8_moli_Mwi_Tci_Pci_wi_Vs_AntA_AntB_AntC_kijm_lijm_Initialy2_TinC_PinPa($B$8:$B$12,$E$8:$E$12,$F$8:$F$12,$G$8:$G$12,$H$8:$H$12,$L$9,$M$9,$N$9,$O$9,$R$8:$V$12,$Y$8:$AC$12,0,D90,E90*1000000) -> 0.4828012643 | G90: 1270.008319 | H90: 0.004525755645 | I90: 0.4828012643 | J90: 734.6685025 | K90: 4.193369555e-08 | L90: 107926.4678 | M90: 6
D91: 35 | E91: 8.6 | F91: =SVE_PREoS_Vector8_moli_Mwi_Tci_Pci_wi_Vs_AntA_AntB_AntC_kijm_lijm_Initialy2_TinC_PinPa($B$8:$B$12,$E$8:$E$12,$F$8:$F$12,$G$8:$G$12,$H$8:$H$12,$L$9,$M$9,$N$9,$O$9,$R$8:$V$12,$Y$8:$AC$12,0,D91,E91*1000000) -> 0.4864391726 | G91: 1270.008319 | H91: 0.004727661868 | I91: 0.4864391726 | J91: 741.3945583 | K91: 4.095849333e-08 | L91: 115425.6781 | M91: 6
D92: 35 | E92: 8.8 | F92: =SVE_PREoS_Vector8_moli_Mwi_Tci_Pci_wi_Vs_AntA_AntB_AntC_kijm_lijm_Initialy2_TinC_PinPa($B$8:$B$12,$E$8:$E$12,$F$8:$F$12,$G$8:$G$12,$H$8:$H$12,$L$9,$M$9,$N$9,$O$9,$R$8:$V$12,$Y$8:$AC$12,0,D92,E92*1000000) -> 0.4901044925 | G92: 1270.008319 | H92: 0.0049218949 | I92: 0.4901044925 | J92: 747.7268 | K92: 4.002761848e-08 | L92: 122962.4716 | M92: 6
D93: 35 | E93: 9 | F93: =SVE_PREoS_Vector8_moli_Mwi_Tci_Pci_wi_Vs_AntA_AntB_AntC_kijm_lijm_Initialy2_TinC_PinPa($B$8:$B$12,$E$8:$E$12,$F$8:$F$12,$G$8:$G$12,$H$8:$H$12,$L$9,$M$9,$N$9,$O$9,$R$8:$V$12,$Y$8:$AC$12,0,D93,E93*1000000) -> 0.4937974307 | G93: 1270.008319 | H93: 0.005109050794 | I93: 0.4937974307 | J93: 753.7133195 | K93: 3.913811585e-08 | L93: 130539.0074 | M93: 6
D94: 35 | E94: 9.2 | F94: =SVE_PREoS_Vector8_moli_Mwi_Tci_Pci_wi_Vs_AntA_AntB_AntC_kijm_lijm_Initialy2_TinC_PinPa($B$8:$B$12,$E$8:$E$12,$F$8:$F$12,$G$8:$G$12,$H$8:$H$12,$L$9,$M$9,$N$9,$O$9,$R$8:$V$12,$Y$8:$AC$12,0,D94,E94*1000000) -> 0.4975181951 | G94: 1270.008319 | H94: 0.005289634648 | I94: 0.4975181951 | J94: 759.3934829 | K94: 3.828728724e-08 | L94: 138156.4229 | M94: 6
D95: 35 | E95: 9.4 | F95: =SVE_PREoS_Vector8_moli_Mwi_Tci_Pci_wi_Vs_AntA_AntB_AntC_kijm_lijm_Initialy2_TinC_PinPa($B$8:$B$12,$E$8:$E$12,$F$8:$F$12,$G$8:$G$12,$H$8:$H$12,$L$9,$M$9,$N$9,$O$9,$R$8:$V$12,$Y$8:$AC$12,0,D95,E95*1000000) -> 0.5012669955 | G95: 1270.008319 | H95: 0.005464080906 | I95: 0.5012669955 | J95: 764.799981 | K95: 3.747266411e-08 | L95: 145815.1171 | M95: 6
D96: 35 | E96: 9.6 | F96: =SVE_PREoS_Vector8_moli_Mwi_Tci_Pci_wi_Vs_AntA_AntB_AntC_kijm_lijm_Initialy2_TinC_PinPa($B$8:$B$12,$E$8:$E$12,$F$8:$F$12,$G$8:$G$12,$H$8:$H$12,$L$9,$M$9,$N$9,$O$9,$R$8:$V$12,$Y$8:$AC$12,0,D96,E96*1000000) -> 0.5050440431 | G96: 1270.008319 | H96: 0.005631779211 | I96: 0.5050440431 | J96: 769.9390976 | K96: 3.669198361e-08 | L96: 153488.0008 | M96: 5
D97: 35 | E97: 9.8 | F97: =SVE_PREoS_Vector8_moli_Mwi_Tci_Pci_wi_Vs_AntA_AntB_AntC_kijm_lijm_Initialy2_TinC_PinPa($B$8:$B$12,$E$8:$E$12,$F$8:$F$12,$G$8:$G$12,$H$8:$H$12,$L$9,$M$9,$N$9,$O$9,$R$8:$V$12,$Y$8:$AC$12,0,D97,E97*1000000) -> 0.5088495508 | G97: 1270.008319 | H97: 0.005795112644 | I97: 0.5088495508 | J97: 774.8786916 | K97: 3.594316762e-08 | L97: 161229.8812 | M97: 5
D98: 35 | E98: 10 | F98: =SVE_PREoS_Vector8_moli_Mwi_Tci_Pci_wi_Vs_AntA_AntB_AntC_kijm_lijm_Initialy2_TinC_PinPa($B$8:$B$12,$E$8:$E$12,$F$8:$F$12,$G$8:$G$12,$H$8:$H$12,$L$9,$M$9,$N$9,$O$9,$R$8:$V$12,$Y$8:$AC$12,0,D98,E98*1000000) -> 0.512683733 | G98: 1270.008319 | H98: 0.005953312392 | I98: 0.512683733 | J98: 779.6153097 | K98: 3.522430426e-08 | L98: 169011.4969 | M98: 5
D99: 35 | E99: 10.5 | F99: =SVE_PREoS_Vector8_moli_Mwi_Tci_Pci_wi_Vs_AntA_AntB_AntC_kijm_lijm_Initialy2_TinC_PinPa($B$8:$B$12,$E$8:$E$12,$F$8:$F$12,$G$8:$G$12,$H$8:$H$12,$L$9,$M$9,$N$9,$O$9,$R$8:$V$12,$Y$8:$AC$12,0,D99,E99*1000000) -> 0.5223960613 | G99: 1270.008319 | H99: 0.00632803384 | I99: 0.5223960613 | J99: 790.6774464 | K99: 3.354695644e-08 | L99: 188632.1297 | M99: 5
D100: 35 | E100: 11 | F100: =SVE_PREoS_Vector8_moli_Mwi_Tci_Pci_wi_Vs_AntA_AntB_AntC_kijm_lijm_Initialy2_TinC_PinPa($B$8:$B$12,$E$8:$E$12,$F$8:$F$12,$G$8:$G$12,$H$8:$H$12,$L$9,$M$9,$N$9,$O$9,$R$8:$V$12,$Y$8:$AC$12,0,D100,E100*1000000) -> 0.5322923809 | G100: 1270.008319 | H100: 0.006675783316 | I100: 0.5322923809 | J100: 800.7911916 | K100: 3.202209479e-08 | L100: 208474.285 | M100: 5
D101: 35 | E101: 11.5 | F101: =SVE_PREoS_Vector8_moli_Mwi_Tci_Pci_wi_Vs_AntA_AntB_AntC_kijm_lijm_Initialy2_TinC_PinPa($B$8:$B$12,$E$8:$E$12,$F$8:$F$12,$G$8:$G$12,$H$8:$H$12,$L$9,$M$9,$N$9,$O$9,$R$8:$V$12,$Y$8:$AC$12,0,D101,E101*1000000) -> 0.5423761773 | G101: 1270.008319 | H101: 0.0069993837 | I101: 0.5423761773 | J101: 810.1167594 | K101: 3.062982979e-08 | L101: 228515.2659 | M101: 5
D102: 35 | E102: 12 | F102: =SVE_PREoS_Vector8_moli_Mwi_Tci_Pci_wi_Vs_AntA_AntB_AntC_kijm_lijm_Initialy2_TinC_PinPa($B$8:$B$12,$E$8:$E$12,$F$8:$F$12,$G$8:$G$12,$H$8:$H$12,$L$9,$M$9,$N$9,$O$9,$R$8:$V$12,$Y$8:$AC$12,0,D102,E102*1000000) -> 0.5526510021 | G102: 1270.008319 | H102: 0.007301161198 | I102: 0.5526510021 | J102: 818.7758603 | K102: 2.935358689e-08 | L102: 248731.483 | M102: 5
D103: 35 | E103: 12.5 | F103: =SVE_PREoS_Vector8_moli_Mwi_Tci_Pci_wi_Vs_AntA_AntB_AntC_kijm_lijm_Initialy2_TinC_PinPa($B$8:$B$12,$E$8:$E$12,$F$8:$F$12,$G$8:$G$12,$H$8:$H$12,$L$9,$M$9,$N$9,$O$9,$R$8:$V$12,$Y$8:$AC$12,0,D103,E103*1000000) -> 0.5631204741 | G103: 1270.008319 | H103: 0.007583073952 | I103: 0.5631204741 | J103: 826.8633589 | K103: 2.817944341e-08 | L103: 269099.4936 | M103: 5
D104: 35 | E104: 13 | F104: =SVE_PREoS_Vector8_moli_Mwi_Tci_Pci_wi_Vs_AntA_AntB_AntC_kijm_lijm_Initialy2_TinC_PinPa($B$8:$B$12,$E$8:$E$12,$F$8:$F$12,$G$8:$G$12,$H$8:$H$12,$L$9,$M$9,$N$9,$O$9,$R$8:$V$12,$Y$8:$AC$12,0,D104,E104*1000000) -> 0.5737882807 | G104: 1270.008319 | H104: 0.007846797808 | I104: 0.5737882807 | J104: 834.4547714 | K104: 2.709561866e-08 | L104: 289596.5545 | M104: 5
D105: 35 | E105: 13.5 | F105: =SVE_PREoS_Vector8_moli_Mwi_Tci_Pci_wi_Vs_AntA_AntB_AntC_kijm_lijm_Initialy2_TinC_PinPa($B$8:$B$12,$E$8:$E$12,$F$8:$F$12,$G$8:$G$12,$H$8:$H$12,$L$9,$M$9,$N$9,$O$9,$R$8:$V$12,$Y$8:$AC$12,0,D105,E105*1000000) -> 0.5846581793 | G105: 1270.008319 | H105: 0.008093786055 | I105: 0.5846581793 | J105: 841.611282 | K105: 2.609207723e-08 | L105: 310200.9082 | M105: 5
D106: 35 | E106: 14 | F106: =SVE_PREoS_Vector8_moli_Mwi_Tci_Pci_wi_Vs_AntA_AntB_AntC_kijm_lijm_Initialy2_TinC_PinPa($B$8:$B$12,$E$8:$E$12,$F$8:$F$12,$G$8:$G$12,$H$8:$H$12,$L$9,$M$9,$N$9,$O$9,$R$8:$V$12,$Y$8:$AC$12,0,D106,E106*1000000) -> 0.5957339982 | G106: 1270.008319 | H106: 0.008325307477 | I106: 0.5957339982 | J106: 848.3831366 | K106: 2.516021733e-08 | L106: 330891.7156 | M106: 5
D107: 35 | E107: 14.5 | F107: =SVE_PREoS_Vector8_moli_Mwi_Tci_Pci_wi_Vs_AntA_AntB_AntC_kijm_lijm_Initialy2_TinC_PinPa($B$8:$B$12,$E$8:$E$12,$F$8:$F$12,$G$8:$G$12,$H$8:$H$12,$L$9,$M$9,$N$9,$O$9,$R$8:$V$12,$Y$8:$AC$12,0,D107,E107*1000000) -> 0.6070196385 | G107: 1270.008319 | H107: 0.008542497635 | I107: 0.6070196385 | J107: 854.8123925 | K107: 2.429262363e-08 | L107: 351649.8574 | M107: 5
D108: 35 | E108: 15 | F108: =SVE_PREoS_Vector8_moli_Mwi_Tci_Pci_wi_Vs_AntA_AntB_AntC_kijm_lijm_Initialy2_TinC_PinPa($B$8:$B$12,$E$8:$E$12,$F$8:$F$12,$G$8:$G$12,$H$8:$H$12,$L$9,$M$9,$N$9,$O$9,$R$8:$V$12,$Y$8:$AC$12,0,D108,E108*1000000) -> 0.618519075 | G108: 1270.008319 | H108: 0.008745513819 | I108: 0.618519075 | J108: 860.9243362 | K108: 2.348286951e-08 | L108: 372421.0031 | M108: 4
D109: 35 | E109: 15.5 | F109: =SVE_PREoS_Vector8_moli_Mwi_Tci_Pci_wi_Vs_AntA_AntB_AntC_kijm_lijm_Initialy2_TinC_PinPa($B$8:$B$12,$E$8:$E$12,$F$8:$F$12,$G$8:$G$12,$H$8:$H$12,$L$9,$M$9,$N$9,$O$9,$R$8:$V$12,$Y$8:$AC$12,0,D109,E109*1000000) -> 0.6302363579 | G109: 1270.008319 | H109: 0.008937103198 | I109: 0.6302363579 | J109: 866.7713569 | K109: 2.272535759e-08 | L109: 393265.6796 | M109: 4
D110: 35 | E110: 16 | F110: =SVE_PREoS_Vector8_moli_Mwi_Tci_Pci_wi_Vs_AntA_AntB_AntC_kijm_lijm_Initialy2_TinC_PinPa($B$8:$B$12,$E$8:$E$12,$F$8:$F$12,$G$8:$G$12,$H$8:$H$12,$L$9,$M$9,$N$9,$O$9,$R$8:$V$12,$Y$8:$AC$12,0,D110,E110*1000000) -> 0.6421756141 | G110: 1270.008319 | H110: 0.009117043765 | I110: 0.6421756141 | J110: 872.3663706 | K110: 2.201519016e-08 | L110: 414125.1425 | M110: 4
D111: 35 | E111: 16.5 | F111: =SVE_PREoS_Vector8_moli_Mwi_Tci_Pci_wi_Vs_AntA_AntB_AntC_kijm_lijm_Initialy2_TinC_PinPa($B$8:$B$12,$E$8:$E$12,$F$8:$F$12,$G$8:$G$12,$H$8:$H$12,$L$9,$M$9,$N$9,$O$9,$R$8:$V$12,$Y$8:$AC$12,0,D111,E111*1000000) -> 0.6543410487 | G111: 1270.008319 | H111: 0.009286073949 | I111: 0.6543410487 | J111: 877.7317797 | K111: 2.134806319e-08 | L111: 434984.3762 | M111: 4
D112: 35 | E112: 17 | F112: =SVE_PREoS_Vector8_moli_Mwi_Tci_Pci_wi_Vs_AntA_AntB_AntC_kijm_lijm_Initialy2_TinC_PinPa($B$8:$B$12,$E$8:$E$12,$F$8:$F$12,$G$8:$G$12,$H$8:$H$12,$L$9,$M$9,$N$9,$O$9,$R$8:$V$12,$Y$8:$AC$12,0,D112,E112*1000000) -> 0.6667369464 | G112: 1270.008319 | H112: 0.009444865505 | I112: 0.6667369464 | J112: 882.8870963 | K112: 2.072017898e-08 | L112: 455829.3398 | M112: 4
D113: 35 | E113: 17.5 | F113: =SVE_PREoS_Vector8_moli_Mwi_Tci_Pci_wi_Vs_AntA_AntB_AntC_kijm_lijm_Initialy2_TinC_PinPa($B$8:$B$12,$E$8:$E$12,$F$8:$F$12,$G$8:$G$12,$H$8:$H$12,$L$9,$M$9,$N$9,$O$9,$R$8:$V$12,$Y$8:$AC$12,0,D113,E113*1000000) -> 0.6793676731 | G113: 1270.008319 | H113: 0.009594031806 | I113: 0.6793676731 | J113: 887.8494221 | K113: 2.012817387e-08 | L113: 476646.9065 | M113: 4
D114: 35 | E114: 18 | F114: =SVE_PREoS_Vector8_moli_Mwi_Tci_Pci_wi_Vs_AntA_AntB_AntC_kijm_lijm_Initialy2_TinC_PinPa($B$8:$B$12,$E$8:$E$12,$F$8:$F$12,$G$8:$G$12,$H$8:$H$12,$L$9,$M$9,$N$9,$O$9,$R$8:$V$12,$Y$8:$AC$12,0,D114,E114*1000000) -> 0.6922376776 | G114: 1270.008319 | H114: 0.009734134791 | I114: 0.6922376776 | J114: 892.6338326 | K114: 1.956905792e-08 | L114: 497424.8034 | M114: 4
D115: 35 | E115: 18.5 | F115: =SVE_PREoS_Vector8_moli_Mwi_Tci_Pci_wi_Vs_AntA_AntB_AntC_kijm_lijm_Initialy2_TinC_PinPa($B$8:$B$12,$E$8:$E$12,$F$8:$F$12,$G$8:$G$12,$H$8:$H$12,$L$9,$M$9,$N$9,$O$9,$R$8:$V$12,$Y$8:$AC$12,0,D115,E115*1000000) -> 0.7053514925 | G115: 1270.008319 | H115: 0.009865690849 | I115: 0.7053514925 | J115: 897.2536865 | K115: 1.904016447e-08 | L115: 518151.5562 | M115: 4
D116: 35 | E116: 19 | F116: =SVE_PREoS_Vector8_moli_Mwi_Tci_Pci_wi_Vs_AntA_AntB_AntC_kijm_lijm_Initialy2_TinC_PinPa($B$8:$B$12,$E$8:$E$12,$F$8:$F$12,$G$8:$G$12,$H$8:$H$12,$L$9,$M$9,$N$9,$O$9,$R$8:$V$12,$Y$8:$AC$12,0,D116,E116*1000000) -> 0.7187137368 | G116: 1270.008319 | H116: 0.009989175824 | I116: 0.7187137368 | J116: 901.7208784 | K116: 1.853910751e-08 | L116: 538816.4355 | M116: 4
D117: 35 | E117: 19.5 | F117: =SVE_PREoS_Vector8_moli_Mwi_Tci_Pci_wi_Vs_AntA_AntB_AntC_kijm_lijm_Initialy2_TinC_PinPa($B$8:$B$12,$E$8:$E$12,$F$8:$F$12,$G$8:$G$12,$H$8:$H$12,$L$9,$M$9,$N$9,$O$9,$R$8:$V$12,$Y$8:$AC$12,0,D117,E117*1000000) -> 0.7323291167 | G117: 1270.008319 | H117: 0.01010502932 | I117: 0.7323291167 | J117: 906.0460459 | K117: 1.806374578e-08 | L117: 559409.4075 | M117: 4
D118: 35 | E118: 20 | F118: =SVE_PREoS_Vector8_moli_Mwi_Tci_Pci_wi_Vs_AntA_AntB_AntC_kijm_lijm_Initialy2_TinC_PinPa($B$8:$B$12,$E$8:$E$12,$F$8:$F$12,$G$8:$G$12,$H$8:$H$12,$L$9,$M$9,$N$9,$O$9,$R$8:$V$12,$Y$8:$AC$12,0,D118,E118*1000000) -> 0.7462024276 | G118: 1270.008319 | H118: 0.01021365843 | I118: 0.7462024276 | J118: 910.2387415 | K118: 1.761215213e-08 | L118: 579921.088 | M118: 4
D119: 35 | E119: 22 | F119: =SVE_PREoS_Vector8_moli_Mwi_Tci_Pci_wi_Vs_AntA_AntB_AntC_kijm_lijm_Initialy2_TinC_PinPa($B$8:$B$12,$E$8:$E$12,$F$8:$F$12,$G$8:$G$12,$H$8:$H$12,$L$9,$M$9,$N$9,$O$9,$R$8:$V$12,$Y$8:$AC$12,0,D119,E119*1000000) -> 0.804374106 | G119: 1270.008319 | H119: 0.01058310438 | I119: 0.804374106 | J119: 925.8452855 | K119: 1.601104739e-08 | L119: 660987.6367 | M119: 4
D120: 35 | E120: 24 | F120: =SVE_PREoS_Vector8_moli_Mwi_Tci_Pci_wi_Vs_AntA_AntB_AntC_kijm_lijm_Initialy2_TinC_PinPa($B$8:$B$12,$E$8:$E$12,$F$8:$F$12,$G$8:$G$12,$H$8:$H$12,$L$9,$M$9,$N$9,$O$9,$R$8:$V$12,$Y$8:$AC$12,0,D120,E120*1000000) -> 0.867080672 | G120: 1270.008319 | H120: 0.01086287505 | I120: 0.867080672 | J120: 939.8966497 | K120: 1.467679344e-08 | L120: 740139.5337 | M120: 3
D121: 35 | E121: 26 | F121: =SVE_PREoS_Vector8_moli_Mwi_Tci_Pci_wi_Vs_AntA_AntB_AntC_kijm_lijm_Initialy2_TinC_PinPa($B$8:$B$12,$E$8:$E$12,$F$8:$F$12,$G$8:$G$12,$H$8:$H$12,$L$9,$M$9,$N$9,$O$9,$R$8:$V$12,$Y$8:$AC$12,0,D121,E121*1000000) -> 0.9346756517 | G121: 1270.008319 | H121: 0.01106893059 | I121: 0.9346756517 | J121: 952.6958402 | K121: 1.354780933e-08 | L121: 817027.3373 | M121: 3
D122: 35 | E122: 28 | F122: =SVE_PREoS_Vector8_moli_Mwi_Tci_Pci_wi_Vs_AntA_AntB_AntC_kijm_lijm_Initialy2_TinC_PinPa($B$8:$B$12,$E$8:$E$12,$F$8:$F$12,$G$8:$G$12,$H$8:$H$12,$L$9,$M$9,$N$9,$O$9,$R$8:$V$12,$Y$8:$AC$12,0,D122,E122*1000000) -> 1.007540131 | G122: 1270.008319 | H122: 0.01121337147 | I122: 1.007540131 | J122: 964.4721656 | K122: 1.258010867e-08 | L122: 891357.282 | M122: 2
D123: 35 | E123: 30 | F123: =SVE_PREoS_Vector8_moli_Mwi_Tci_Pci_wi_Vs_AntA_AntB_AntC_kijm_lijm_Initialy2_TinC_PinPa($B$8:$B$12,$E$8:$E$12,$F$8:$F$12,$G$8:$G$12,$H$8:$H$12,$L$9,$M$9,$N$9,$O$9,$R$8:$V$12,$Y$8:$AC$12,0,D123,E123*1000000) -> 1.086084904 | G123: 1270.008319 | H123: 0.01130614326 | I123: 1.086084904 | J123: 975.3923526 | K123: 1.174143475e-08 | L123: 962926.891 | M123: 3
D124: 35 | E124: 32 | F124: =SVE_PREoS_Vector8_moli_Mwi_Tci_Pci_wi_Vs_AntA_AntB_AntC_kijm_lijm_Initialy2_TinC_PinPa($B$8:$B$12,$E$8:$E$12,$F$8:$F$12,$G$8:$G$12,$H$8:$H$12,$L$9,$M$9,$N$9,$O$9,$R$8:$V$12,$Y$8:$AC$12,0,D124,E124*1000000) -> 1.17075279 | G124: 1270.008319 | H124: 0.01135531975 | I124: 1.17075279 | J124: 985.588308 | K124: 1.100759508e-08 | L124: 1031589.522 | M124: 3
D125: 35 | E125: 34 | F125: =SVE_PREoS_Vector8_moli_Mwi_Tci_Pci_wi_Vs_AntA_AntB_AntC_kijm_lijm_Initialy2_TinC_PinPa($B$8:$B$12,$E$8:$E$12,$F$8:$F$12,$G$8:$G$12,$H$8:$H$12,$L$9,$M$9,$N$9,$O$9,$R$8:$V$12,$Y$8:$AC$12,0,D125,E125*1000000) -> 1.262021127 | G125: 1270.008319 | H125: 0.0113674955 | I125: 1.262021127 | J125: 995.1606219 | K125: 1.036008949e-08 | L125: 1097239.122 | M125: 3
D126: 35 | E126: 36 | F126: =SVE_PREoS_Vector8_moli_Mwi_Tci_Pci_wi_Vs_AntA_AntB_AntC_kijm_lijm_Initialy2_TinC_PinPa($B$8:$B$12,$E$8:$E$12,$F$8:$F$12,$G$8:$G$12,$H$8:$H$12,$L$9,$M$9,$N$9,$O$9,$R$8:$V$12,$Y$8:$AC$12,0,D126,E126*1000000) -> 1.360404467 | G126: 1270.008319 | H126: 0.01134751988 | I126: 1.360404467 | J126: 1004.167839 | K126: 9.784528962e-09 | L126: 1159741.049 | M126: 4
D127: 35 | E127: 38 | F127: =SVE_PREoS_Vector8_moli_Mwi_Tci_Pci_wi_Vs_AntA_AntB_AntC_kijm_lijm_Initialy2_TinC_PinPa($B$8:$B$12,$E$8:$E$12,$F$8:$F$12,$G$8:$G$12,$H$8:$H$12,$L$9,$M$9,$N$9,$O$9,$R$8:$V$12,$Y$8:$AC$12,0,D127,E127*1000000) -> 1.466457473 | G127: 1270.008319 | H127: 0.01130085608 | I127: 1.466457473 | J127: 1012.709326 | K127: 9.269553754e-09 | L127: 1219137.013 | M127: 4
D128: 35 | E128: 40 | F128: =SVE_PREoS_Vector8_moli_Mwi_Tci_Pci_wi_Vs_AntA_AntB_AntC_kijm_lijm_Initialy2_TinC_PinPa($B$8:$B$12,$E$8:$E$12,$F$8:$F$12,$G$8:$G$12,$H$8:$H$12,$L$9,$M$9,$N$9,$O$9,$R$8:$V$12,$Y$8:$AC$12,0,D128,E128*1000000) -> 1.580778051 | G128: 1270.008319 | H128: 0.01123105913 | I128: 1.580778051 | J128: 1020.82622 | K128: 8.806076066e-09 | L128: 1275376.12 | M128: 4
D129: 35 | E129: 42 | F129: =SVE_PREoS_Vector8_moli_Mwi_Tci_Pci_wi_Vs_AntA_AntB_AntC_kijm_lijm_Initialy2_TinC_PinPa($B$8:$B$12,$E$8:$E$12,$F$8:$F$12,$G$8:$G$12,$H$8:$H$12,$L$9,$M$9,$N$9,$O$9,$R$8:$V$12,$Y$8:$AC$12,0,D129,E129*1000000) -> 1.704010714 | G129: 1270.008319 | H129: 0.01114144397 | I129: 1.704010714 | J129: 1028.563819 | K129: 8.38673911e-09 | L129: 1328459.586 | M129: 4
D130: 35 | E130: 44 | F130: =SVE_PREoS_Vector8_moli_Mwi_Tci_Pci_wi_Vs_AntA_AntB_AntC_kijm_lijm_Initialy2_TinC_PinPa($B$8:$B$12,$E$8:$E$12,$F$8:$F$12,$G$8:$G$12,$H$8:$H$12,$L$9,$M$9,$N$9,$O$9,$R$8:$V$12,$Y$8:$AC$12,0,D130,E130*1000000) -> 1.836850222 | G130: 1270.008319 | H130: 0.01103485352 | I130: 1.836850222 | J130: 1035.960269 | K130: 8.005523696e-09 | L130: 1378404.953 | M130: 4
D131: 35 | E131: 46 | F131: =SVE_PREoS_Vector8_moli_Mwi_Tci_Pci_wi_Vs_AntA_AntB_AntC_kijm_lijm_Initialy2_TinC_PinPa($B$8:$B$12,$E$8:$E$12,$F$8:$F$12,$G$8:$G$12,$H$8:$H$12,$L$9,$M$9,$N$9,$O$9,$R$8:$V$12,$Y$8:$AC$12,0,D131,E131*1000000) -> 1.980045495 | G131: 1270.008319 | H131: 0.01091373924 | I131: 1.980045495 | J131: 1043.047994 | K131: 7.657457449e-09 | L131: 1425243.211 | M131: 4
D132: 35 | E132: 48 | F132: =SVE_PREoS_Vector8_moli_Mwi_Tci_Pci_wi_Vs_AntA_AntB_AntC_kijm_lijm_Initialy2_TinC_PinPa($B$8:$B$12,$E$8:$E$12,$F$8:$F$12,$G$8:$G$12,$H$8:$H$12,$L$9,$M$9,$N$9,$O$9,$R$8:$V$12,$Y$8:$AC$12,0,D132,E132*1000000) -> 2.134403837 | G132: 1270.008319 | H132: 0.01078022522 | I132: 2.134403837 | J132: 1049.85478 | K132: 7.338396722e-09 | L132: 1469016.412 | M132: 4
D133: 35 | E133: 50 | F133: =SVE_PREoS_Vector8_moli_Mwi_Tci_Pci_wi_Vs_AntA_AntB_AntC_kijm_lijm_Initialy2_TinC_PinPa($B$8:$B$12,$E$8:$E$12,$F$8:$F$12,$G$8:$G$12,$H$8:$H$12,$L$9,$M$9,$N$9,$O$9,$R$8:$V$12,$Y$8:$AC$12,0,D133,E133*1000000) -> 2.300795487 | G133: 1270.008319 | H133: 0.01063615963 | I133: 2.300795487 | J133: 1056.404619 | K133: 7.044860853e-09 | L133: 1509775.686 | M133: 4

Sheet Comparisons
D1: Make calculations with Sheet 1 and then copy and paste them here to compare some different cases
B3: CO2(1) + Naphthalene (2) | M3: CO2 (1) + Naphthalene (2) + Ethanol (3) | X3: CO2 (1) + Naphthalene (2) + Hexane (3)
E4: Data Table for Calculations | M4: CO2:Ethanol = 95:5 mole ratio | X4: CO2:hexane = 95:5 mole ratio
I5: Enhancement | J5: Number of | T5: Enhancement | U5: Number of | AE5: Enhancement | AF5: Number of
C6: Solid phase properties | G6: Vapor phase properties | I6: Factor | J6: Iterations | K6: Notes | N6: Solid phase properties | R6: Vapor phase properties | T6: Factor | U6: Iterations | V6: Notes | Y6: Solid phase properties | AC6: Vapor phase properties | AE6: Factor | AF6: Iterations | AG6: Notes
B7: P [MPa] | C7: fs [Pa] | D7: rho [kg/m3] | E7: y(2) [-] | F7: fv (2)[Pa] | G7: rho [kg/m3] | H7: y(2)ideal [-] | I7: E [-] | J7: N | M7: P [MPa] | N7: fs [Pa] | O7: rho [kg/m3] | P7: y(2) [-] | Q7: fv (2)[Pa] | R7: rho [kg/m3] | S7: y(2)ideal [-] | T7: E [-] | U7: N | X7: P [MPa] | Y7: fs [Pa] | Z7: rho [kg/m3] | AA7: y(2) [-] | AB7: fv (2)[Pa] | AC7: rho [kg/m3] | AD7: y(2)ideal [-] | AE7: E [-] | AF7: N
B8: 0.1 | C8: 46.12128001 | D8: 996.8895801 | E8: 0.0004773415938 | F8: 46.12128001 | G8: 1.699966938 | H8: 0.0004589413204 | I8: 1.040092867 | J8: 2 | K8: Number of substances: 2 | M8: 0.1 | N8: 46.12128001 | O8: 996.8895801 | P8: 0.0004787315043 | Q8: 46.12128001 | R8: 1.705281249 | S8: 0.0004589413204 | T8: 1.043121382 | U8: 2 | V8: Number of substances: 3 | X8: 0.1 | Y8: 46.12128001 | Z8: 996.8895801 | AA8: 0.0004793590312 | AB8: 46.12128001 | AC8: 1.78329823 | AD8: 0.0004589413204 | AE8: 1.044488718 | AF8: 2 | AG8: Number of substances: 3
B9: 0.2 | C9: 46.3496573 | D9: 996.8895801 | E9: 0.0002482680652 | F9: 46.3496573 | G9: 3.414660928 | H9: 0.0002294706602 | I9: 1.081916377 | J9: 2 | M9: 0.2 | N9: 46.3496573 | O9: 996.8895801 | P9: 0.0002497323683 | Q9: 46.3496573 | R9: 3.42809552 | S9: 0.0002294706602 | T9: 1.088297598 | U9: 2 | X9: 0.2 | Y9: 46.3496573 | Z9: 996.8895801 | AA9: 0.0002503934525 | AB9: 46.3496573 | AC9: 3.586258008 | AD9: 0.0002294706602 | AE9: 1.091178508 | AF9: 2
B10: 0.3 | C10: 46.57916544 | D10: 996.8895801 | E10: 0.0001721980577 | F10: 46.57916544 | G10: 5.145900393 | H10: 0.0001529804401 | I10: 1.125621403 | J10: 2 | M10: 0.3 | N10: 46.57916544 | O10: 996.8895801 | P10: 0.0001737408194 | Q10: 46.57916544 | R10: 5.170407455 | S10: 0.0001529804401 | T10: 1.135706102 | U10: 2 | X10: 0.3 | Y10: 46.57916544 | Z10: 996.8895801 | AA10: 0.0001744373063 | AB10: 46.57916544 | AC10: 5.410886508 | AD10: 0.0001529804401 | AE10: 1.140258887 | AF10: 2
B11: 0.4 | C11: 46.80981002 | D11: 996.8895801 | E11: 0.0001343899263 | F11: 46.80981002 | G11: 6.894030557 | H11: 0.0001147353301 | I11: 1.171303784 | J11: 2 | M11: 0.4 | N11: 46.80981002 | O11: 996.8895801 | P11: 0.0001360158269 | Q11: 46.80981002 | R11: 6.932719294 | S11: 0.0001147353301 | T11: 1.185474664 | U11: 2 | X11: 0.4 | Y11: 46.80981002 | Z11: 996.8895801 | AA11: 0.0001367498419 | AB11: 46.80981002 | AC11: 7.257768038 | AD11: 0.0001147353301 | AE11: 1.191872127 | AF11: 2
B12: 0.5 | C12: 47.04159668 | D12: 996.8895801 | E12: 0.0001118958523 | F12: 47.04159668 | G12: 8.659408129 | H12: 9.178826407e-05 | I12: 1.219064915 | J12: 2 | M12: 0.5 | N12: 47.04159668 | O12: 996.8895801 | P12: 0.0001136099691 | Q12: 47.04159668 | R12: 8.715554407 | S12: 9.178826407e-05 | T12: 1.237739598 | U12: 2 | X12: 0.5 | Y12: 47.04159668 | Z12: 996.8895801 | AA12: 0.0001143838199 | AB12: 47.04159668 | AC12: 9.127512504 | AD12: 9.178826407e-05 | AE12: 1.246170423 | AF12: 2
B13: 0.6 | C13: 47.27453108 | D13: 996.8895801 | E13: 9.706701769e-05 | F13: 47.27453108 | G13: 10.44240184 | H13: 7.649022006e-05 | I13: 1.269012138 | J13: 2 | M13: 0.6 | N13: 47.27453108 | O13: 996.8895801 | P13: 9.887481139e-05 | Q13: 47.27453108 | R13: 10.51945855 | S13: 7.649022006e-05 | T13: 1.29264645 | U13: 2 | X13: 0.6 | Y13: 47.27453108 | Z13: 996.8895801 | AA13: 9.969098271e-05 | AB13: 47.27453108 | AC13: 11.020757 | AD13: 7.649022006e-05 | AE13: 1.30331672 | AF13: 2
B14: 0.7 | C14: 47.50861888 | D14: 996.8895801 | E14: 8.662577341e-05 | F14: 47.50861888 | G14: 12.24339302 | H14: 6.556304576e-05 | I14: 1.321259139 | J14: 2 | M14: 0.7 | N14: 47.50861888 | O14: 996.8895801 | P14: 8.853310687e-05 | Q14: 47.50861888 | R14: 12.34500121 | S14: 6.556304576e-05 | T14: 1.350350732 | U14: 2 | X14: 0.7 | Y14: 47.50861888 | Z14: 996.8895801 | AA14: 8.939426932e-05 | AB14: 47.50861888 | AC14: 12.93816749 | AD14: 6.556304576e-05 | AE14: 1.363485608 | AF14: 2
B15: 0.8 | C15: 47.74386581 | D15: 996.8895801 | E15: 7.893368371e-05 | F15: 47.74386581 | G15: 14.06277614 | H15: 5.736766504e-05 | I15: 1.37592638 | J15: 2 | M15: 0.8 | N15: 47.74386581 | O15: 996.8895801 | P15: 8.094684998e-05 | Q15: 47.74386581 | R15: 14.19277706 | S15: 5.736766504e-05 | T15: 1.411018732 | U15: 2 | X15: 0.8 | Y15: 47.74386581 | Z15: 996.8895801 | AA15: 8.185587364e-05 | AB15: 47.74386581 | AC15: 14.88044068 | AD15: 5.736766504e-05 | AE15: 1.426864307 | AF15: 2
B16: 0.9 | C16: 47.98027761 | D16: 996.8895801 | E16: 7.308087572e-05 | F16: 47.98027761 | G16: 15.90095952 | H16: 5.099348004e-05 | I16: 1.433141564 | J16: 2 | M16: 0.9 | N16: 47.98027761 | O16: 996.8895801 | P16: 7.520663192e-05 | Q16: 47.98027761 | R16: 16.06340752 | S16: 5.099348004e-05 | T16: 1.474828387 | U16: 2 | X16: 0.9 | Y16: 47.98027761 | Z16: 996.8895801 | AA16: 7.616660252e-05 | AB16: 47.98027761 | AC16: 16.84830595 | AD16: 5.099348004e-05 | AE16: 1.493653747 | AF16: 2
B17: 1 | C17: 48.21786004 | D17: 996.8895801 | E17: 6.852178099e-05 | F17: 48.21786004 | G17: 17.75836593 | H17: 4.589413204e-05 | I17: 1.493040133 | J17: 2 | M17: 1 | N17: 48.21786004 | O17: 996.8895801 | P17: 7.07673866e-05 | Q17: 48.21786004 | R17: 17.95754245 | S17: 4.589413204e-05 | T17: 1.541970258 | U17: 2 | X17: 1 | Y17: 48.21786004 | Z17: 996.8895801 | AA17: 7.178162387e-05 | AB17: 48.21786004 | AC17: 18.84252755 | AD17: 4.589413204e-05 | AE17: 1.564069755 | AF17: 2
B18: 1.1 | C18: 48.4566189 | D18: 996.8895801 | E18: 6.490956521e-05 | F18: 48.4566189 | G18: 19.63543333 | H18: 4.172193821e-05 | I18: 1.555765815 | J18: 2 | M18: 1.1 | N18: 48.4566189 | O18: 996.8895801 | P18: 6.728282457e-05 | Q18: 48.4566189 | R18: 19.875862 | S18: 4.172193821e-05 | T18: 1.612648584 | U18: 2 | X18: 1.1 | Y18: 48.4566189 | Z18: 996.8895801 | AA18: 6.83549027e-05 | AB18: 48.4566189 | AC18: 20.86390695 | AD18: 4.172193821e-05 | AE18: 1.638344373 | AF18: 2
B19: 1.2 | C19: 48.69656001 | D19: 996.8895801 | E19: 6.201334466e-05 | F19: 48.69656001 | G19: 21.53261563 | H19: 3.824511003e-05 | I19: 1.621471205 | J19: 2 | M19: 1.2 | N19: 48.69656001 | O19: 996.8895801 | P19: 6.452265409e-05 | Q19: 48.69656001 | R19: 21.81907856 | S19: 3.824511003e-05 | T19: 1.687082454 | U19: 2 | X19: 1.2 | Y19: 48.69656001 | Z19: 996.8895801 | AA19: 6.565642446e-05 | AB19: 48.69656001 | AC19: 22.91328534 | AD19: 3.824511003e-05 | AE19: 1.7167273 | AF19: 2
B20: 1.3 | C20: 48.93768923 | D20: 996.8895801 | E20: 5.967361215e-05 | F20: 48.93768923 | G20: 23.45038347 | H20: 3.530317849e-05 | I20: 1.690318399 | J20: 2 | M20: 1.3 | N20: 48.93768923 | O20: 996.8895801 | P20: 6.23280119e-05 | Q20: 48.93768923 | R20: 23.78793897 | S20: 3.530317849e-05 | T20: 1.765507089 | U20: 2 | X20: 1.3 | Y20: 48.93768923 | Z20: 996.8895801 | AA20: 6.352762827e-05 | AB20: 48.93768923 | AC20: 24.99154643 | AD20: 3.530317849e-05 | AE20: 1.799487496 | AF20: 2
B21: 1.4 | C21: 49.18001245 | D21: 996.8895801 | E21: 5.77767679e-05 | F21: 49.18001245 | G21: 25.38922511 | H21: 3.278152288e-05 | I21: 1.762479678 | J21: 2 | M21: 1.4 | N21: 49.18001245 | O21: 996.8895801 | P21: 6.058599951e-05 | Q21: 49.18001245 | R21: 25.7832268 | S21: 3.278152288e-05 | T21: 1.848175258 | U21: 2 | X21: 1.4 | Y21: 49.18001245 | Z21: 996.8895801 | AA21: 6.185594593e-05 | AB21: 49.18001245 | AC21: 27.09961946 | AD21: 3.278152288e-05 | AE21: 1.88691496 | AF21: 2
B22: 1.5 | C22: 49.42353556 | D22: 996.8895801 | E22: 5.623983969e-05 | F22: 49.42353556 | G22: 27.34964731 | H22: 3.059608802e-05 | I22: 1.83813825 | J22: 2 | M22: 1.5 | N22: 49.42353556 | O22: 996.8895801 | P22: 5.921440942e-05 | Q22: 49.42353556 | R22: 27.80576495 | S22: 3.059608802e-05 | T22: 1.93535884 | U22: 2 | X22: 1.5 | Y22: 49.42353556 | Z22: 996.8895801 | AA22: 6.055953125e-05 | AB22: 49.42353556 | AC22: 29.23848251 | AD22: 3.059608802e-05 | AE22: 1.97932269 | AF22: 2
B23: 1.6 | C23: 49.66826453 | D23: 996.8895801 | E23: 5.50009349e-05 | F23: 49.66826453 | G23: 29.33217631 | H23: 2.868383252e-05 | I23: 1.917489054 | J23: 2 | M23: 1.6 | N23: 49.66826453 | O23: 996.8895801 | P23: 5.815218381e-05 | Q23: 49.66826453 | R23: 29.85641842 | S23: 2.868383252e-05 | T23: 2.027350556 | U23: 2 | X23: 1.6 | Y23: 49.66826453 | Z23: 996.8895801 | AA23: 5.957772216e-05 | AB23: 49.66826453 | AC23: 31.40916611 | AD23: 2.868383252e-05 | AE23: 2.077048878 | AF23: 2
B24: 1.7 | C24: 49.91420531 | D24: 996.8895801 | E24: 5.401306413e-05 | F24: 49.91420531 | G24: 31.33735889 | H24: 2.699654826e-05 | I24: 2.000739636 | J24: 2 | M24: 1.7 | N24: 49.91420531 | O24: 996.8895801 | P24: 5.735324576e-05 | Q24: 49.91420531 | R24: 31.93609735 | S24: 2.699654826e-05 | T24: 2.124465884 | U24: 2 | X24: 1.7 | Y24: 49.91420531 | Z24: 996.8895801 | AA24: 5.886487579e-05 | AB24: 49.91420531 | AC24: 33.61275717 | AD24: 2.699654826e-05 | AE24: 2.18045934 | AF24: 2
B25: 1.8 | C25: 50.16136391 | D25: 996.8895801 | E25: 5.324002562e-05 | F25: 50.16136391 | G25: 33.36576343 | H25: 2.549674002e-05 | I25: 2.088111091 | J25: 2 | M25: 1.8 | N25: 50.16136391 | O25: 996.8895801 | P25: 5.678239208e-05 | Q25: 50.16136391 | R25: 34.04576034 | S25: 2.549674002e-05 | T25: 2.227045184 | U25: 2 | X25: 1.8 | Y25: 50.16136391 | Z25: 996.8895801 | AA25: 5.838626576e-05 | AB25: 50.16136391 | AC25: 35.85040336 | AD25: 2.549674002e-05 | AE25: 2.289950234 | AF25: 2
B26: 1.9 | C26: 50.40974635 | D26: 996.8895801 | E26: 5.265359129e-05 | F26: 50.40974635 | G26: 35.41798116 | H26: 2.415480633e-05 | I26: 2.179839099 | J26: 2 | M26: 1.9 | N26: 50.40974635 | O26: 996.8895801 | P26: 5.641248885e-05 | Q26: 50.40974635 | R26: 36.18641808 | S26: 2.415480633e-05 | T26: 2.335456061 | U26: 2 | X26: 1.9 | Y26: 50.40974635 | Z26: 996.8895801 | AA26: 5.811528272e-05 | AB26: 50.40974635 | AC26: 38.1233179 | AD26: 2.415480633e-05 | AE26: 2.405951094 | AF26: 2
B27: 2 | C27: 50.6593587 | D27: 996.8895801 | E27: 5.223153907e-05 | F27: 50.6593587 | G27: 37.49462736 | H27: 2.294706602e-05 | I27: 2.276175047 | J27: 2 | M27: 2 | N27: 50.6593587 | O27: 996.8895801 | P27: 5.622251457e-05 | Q27: 50.6593587 | R27: 38.3591374 | S27: 2.294706602e-05 | T27: 2.450095996 | U27: 2 | X27: 2 | Y27: 50.6593587 | Z27: 996.8895801 | AA27: 5.803148309e-05 | AB27: 50.6593587 | AC27: 40.4327848 | AD27: 2.294706602e-05 | AE27: 2.528928232 | AF27: 2
B28: 2.1 | C28: 50.91020705 | D28: 996.8895801 | E28: 5.195624964e-05 | F28: 50.91020705 | G28: 39.59634279 | H28: 2.185434859e-05 | I28: 2.377387247 | J28: 2 | M28: 2.1 | N28: 50.91020705 | O28: 996.8895801 | P28: 5.619617414e-05 | Q28: 50.91020705 | R28: 40.56504659 | S28: 2.185434859e-05 | T28: 2.571395524 | U28: 1 | X28: 2.1 | Y28: 50.91020705 | Z28: 996.8895801 | AA28: 5.811920433e-05 | AB28: 50.91020705 | AC28: 42.7801647 | AD28: 2.185434859e-05 | AE28: 2.659388547 | AF28: 2
B29: 2.2 | C29: 51.16229752 | D29: 996.8895801 | E29: 5.181368808e-05 | F29: 51.16229752 | G29: 41.72379507 | H29: 2.086096911e-05 | I29: 2.483762274 | J29: 2 | M29: 2.2 | N29: 51.16229752 | O29: 996.8895801 | P29: 5.632086816e-05 | Q29: 51.16229752 | R29: 42.80533544 | S29: 2.086096911e-05 | T29: 2.699820314 | U29: 2 | X29: 2.2 | Y29: 51.16229752 | Z29: 996.8895801 | AA29: 5.836656779e-05 | AB29: 51.16229752 | AC29: 45.16690132 | AD29: 2.086096911e-05 | AE29: 2.797883813 | AF29: 2
B30: 2.3 | C30: 51.41563626 | D30: 996.8895801 | E30: 5.179265791e-05 | F30: 51.41563626 | G30: 43.8776811 | H30: 1.995397045e-05 | I30: 2.595606626 | J30: 1 | M30: 2.3 | N30: 51.41563626 | O30: 996.8895801 | P30: 5.658701136e-05 | Q30: 51.41563626 | R30: 45.08127042 | S30: 1.995397045e-05 | T30: 2.835877275 | U30: 2 | X30: 2.3 | Y30: 51.41563626 | Z30: 996.8895801 | AA30: 5.876475349e-05 | AB30: 51.41563626 | AC30: 47.59452886 | AD30: 1.995397045e-05 | AE30: 2.945015561 | AF30: 2
B31: 2.4 | C31: 51.67022945 | D31: 996.8895801 | E31: 5.188422079e-05 | F31: 51.67022945 | G31: 46.05872489 | H31: 1.912255501e-05 | I31: 2.713247302 | J31: 2 | M31: 2.4 | N31: 51.67022945 | O31: 996.8895801 | P31: 5.698743639e-05 | Q31: 51.67022945 | R31: 47.39419059 | S31: 1.912255501e-05 | T31: 2.980116221 | U31: 2 | X31: 2.4 | Y31: 51.67022945 | Z31: 996.8895801 | AA31: 5.930746534e-05 | AB31: 51.67022945 | AC31: 50.06467936 | AD31: 1.912255501e-05 | AE31: 3.101440435 | AF31: 2
B32: 2.5 | C32: 51.92608329 | D32: 996.8895801 | E32: 5.208131365e-05 | F32: 51.92608329 | G32: 48.26768689 | H32: 1.835765281e-05 | I32: 2.83703555 | J32: 2 | M32: 2.5 | N32: 51.92608329 | O32: 996.8895801 | P32: 5.751701911e-05 | Q32: 51.92608329 | R32: 49.74551941 | S32: 1.835765281e-05 | T32: 3.133135793 | U32: 2 | X32: 2.5 | Y32: 51.92608329 | Z32: 996.8895801 | AA32: 5.999054219e-05 | AB32: 51.92608329 | AC32: 52.57909228 | AD32: 1.835765281e-05 | AE32: 3.267876498 | AF32: 2
B33: 2.6 | C33: 52.18320404 | D33: 996.8895801 | E33: 5.237838658e-05 | F33: 52.18320404 | G33: 50.50535852 | H33: 1.765158924e-05 | I33: 2.967346784 | J33: 2 | M33: 2.6 | N33: 52.18320404 | O33: 996.8895801 | P33: 5.817237326e-05 | Q33: 52.18320404 | R33: 52.13677095 | S33: 1.765158924e-05 | T33: 3.295588428 | U33: 2 | X33: 2.6 | Y33: 52.18320404 | Z33: 996.8895801 | AA33: 6.081167028e-05 | AB33: 52.18320404 | AC33: 55.13962408 | AD33: 1.765158924e-05 | AE33: 3.445110207 | AF33: 2
B34: 2.7 | C34: 52.44159797 | D34: 996.8895801 | E34: 5.277117505e-05 | F34: 52.44159797 | G34: 52.77256793 | H34: 1.699782668e-05 | I34: 3.104583665 | J34: 2 | M34: 2.7 | N34: 52.44159797 | O34: 996.8895801 | P34: 5.895162962e-05 | Q34: 52.44159797 | R34: 54.56955809 | S34: 1.699782668e-05 | T34: 3.4681863 | U34: 2 | X34: 2.7 | Y34: 52.44159797 | Z34: 996.8895801 | AA34: 6.177017754e-05 | AB34: 52.44159797 | AC34: 57.74825947 | AD34: 1.699782668e-05 | AE34: 3.634004435 | AF34: 2
B35: 2.8 | C35: 52.70127138 | D35: 996.8895801 | E35: 5.325650483e-05 | F35: 52.70127138 | G35: 55.07018158 | H35: 1.639076144e-05 | I35: 3.249178205 | J35: 2 | M35: 2.8 | N35: 52.70127138 | O35: 996.8895801 | P35: 5.985427545e-05 | Q35: 52.70127138 | R35: 57.04560169 | S35: 1.639076144e-05 | T35: 3.651708047 | U35: 2 | X35: 2.8 | Y35: 52.70127138 | Z35: 996.8895801 | AA35: 6.28668904e-05 | AB35: 52.70127138 | AC35: 60.40712396 | AD35: 1.639076144e-05 | AE35: 3.83550762 | AF35: 2
B36: 2.9 | C36: 52.9622306 | D36: 996.8895801 | E36: 5.3832144e-05 | F36: 52.9622306 | G36: 57.39910668 | H36: 1.582556277e-05 | I36: 3.401594293 | J36: 2 | M36: 2.9 | N36: 52.9622306 | O36: 996.8895801 | P36: 6.088104168e-05 | Q36: 52.9622306 | R36: 59.56674088 | S36: 1.582556277e-05 | T36: 3.847006426 | U36: 2 | X36: 2.9 | Y36: 52.9622306 | Z36: 996.8895801 | AA36: 6.410404144e-05 | AB36: 52.9622306 | AC36: 63.11849799 | AD36: 1.582556277e-05 | AE36: 4.050664255 | AF36: 2
B37: 3 | C37: 53.22448201 | D37: 996.8895801 | E37: 5.44966885e-05 | F37: 53.22448201 | G37: 59.76029382 | H37: 1.529804401e-05 | I37: 3.562330482 | J37: 2 | M37: 3 | N37: 53.22448201 | O37: 996.8895801 | P37: 6.203382915e-05 | Q37: 53.22448201 | R37: 62.1349446 | S37: 1.529804401e-05 | T37: 4.055017041 | U37: 2 | X37: 3 | Y37: 53.22448201 | Z37: 996.8895801 | AA37: 6.548521943e-05 | AB37: 53.22448201 | AC37: 65.88483303 | AD37: 1.529804401e-05 | AE37: 4.280626947 | AF37: 2
B38: 3.1 | C38: 53.488032 | D38: 996.8895801 | E38: 5.524947408e-05 | F38: 53.488032 | G38: 62.15473991 | H38: 1.480455872e-05 | I38: 3.73192306 | J38: 2 | M38: 3.1 | N38: 53.488032 | O38: 996.8895801 | P38: 6.33156678e-05 | Q38: 53.488032 | R38: 64.75232468 | S38: 1.480455872e-05 | T38: 4.276768325 | U38: 2 | X38: 3.1 | Y38: 53.488032 | Z38: 996.8895801 | AA38: 6.701535661e-05 | AB38: 53.488032 | AC38: 68.70876973 | AD38: 1.480455872e-05 | AE38: 4.526670323 | AF38: 2
B39: 3.2 | C39: 53.75288701 | D39: 996.8895801 | E39: 5.609050932e-05 | F39: 53.75288701 | G39: 64.58349127 | H39: 1.434191626e-05 | I39: 3.910949437 | J39: 2 | M39: 3.2 | N39: 53.75288701 | O39: 996.8895801 | P39: 6.473070456e-05 | Q39: 53.75288701 | R39: 67.42115058 | S39: 1.434191626e-05 | T39: 4.513393007 | U39: 2 | X39: 3.2 | Y39: 53.75288701 | Z39: 996.8895801 | AA39: 6.87007497e-05 | AB39: 53.75288701 | AC39: 71.59315873 | AD39: 1.434191626e-05 | AE39: 4.790207142 | AF39: 2
B40: 3.3 | C40: 54.01905348 | D40: 996.8895801 | E40: 5.702042586e-05 | F40: 54.01905348 | G40: 67.04764704 | H40: 1.390731274e-05 | I40: 4.1000319 | J40: 2 | M40: 3.3 | N40: 54.01905348 | O40: 996.8895801 | P40: 6.628421777e-05 | Q40: 54.01905348 | R40: 70.14386621 | S40: 1.390731274e-05 | T40: 4.766141312 | U40: 2 | X40: 3.3 | Y40: 54.01905348 | Z40: 996.8895801 | AA40: 7.054911361e-05 | AB40: 54.01905348 | AC40: 74.54108441 | AD40: 1.390731274e-05 | AE40: 5.072807014 | AF40: 2
B41: 3.4 | C41: 54.28653793 | D41: 996.8895801 | E41: 5.804044287e-05 | F41: 54.28653793 | G41: 69.54836288 | H41: 1.349827413e-05 | I41: 4.299841766 | J41: 2 | M41: 3.4 | N41: 54.28653793 | O41: 996.8895801 | P41: 6.79826568e-05 | Q41: 54.28653793 | R41: 72.92310905 | S41: 1.349827413e-05 | T41: 5.03639622 | U41: 2 | X41: 3.4 | Y41: 54.28653793 | Z41: 996.8895801 | AA41: 7.25696678e-05 | AB41: 54.28653793 | AC41: 77.55589219 | AD41: 1.349827413e-05 | AE41: 5.376218256 | AF41: 2
B42: 3.5 | C42: 54.55534687 | D42: 996.8895801 | E42: 5.915234356e-05 | F42: 54.55534687 | G42: 72.08685504 | H42: 1.311260915e-05 | I42: 4.511103997 | J42: 2 | M42: 3.5 | N42: 54.55534687 | O42: 996.8895801 | P42: 6.983370692e-05 | Q42: 54.55534687 | R42: 75.76173212 | S42: 1.311260915e-05 | T42: 5.325691181 | U42: 2 | X42: 3.5 | Y42: 54.55534687 | Z42: 996.8895801 | AA42: 7.477325724e-05 | AB42: 54.55534687 | AC42: 80.64122004 | AD42: 1.311260915e-05 | AE42: 5.702393503 | AF42: 2
B43: 3.6 | C43: 54.82548686 | D43: 996.8895801 | E43: 6.03584622e-05 | F43: 54.82548686 | G43: 74.66440471 | H43: 1.274837001e-05 | I43: 4.734602318 | J43: 2 | M43: 3.6 | N43: 54.82548686 | O43: 996.8895801 | P43: 7.184638077e-05 | Q43: 54.82548686 | R43: 78.66282908 | S43: 1.274837001e-05 | T43: 5.635730742 | U43: 2 | X43: 3.6 | Y43: 54.82548686 | Z43: 996.8895801 | AA43: 7.717251115e-05 | AB43: 54.82548686 | AC43: 83.80103502 | AD43: 1.274837001e-05 | AE43: 6.053519869 | AF43: 2
B44: 3.7 | C44: 55.0969645 | D44: 996.8895801 | E44: 6.166168037e-05 | F44: 55.0969645 | G44: 77.28236291 | H44: 1.240381947e-05 | I44: 4.971184926 | J44: 2 | M44: 3.7 | N44: 55.0969645 | O44: 996.8895801 | P44: 7.403113844e-05 | Q44: 55.0969645 | R44: 81.62976338 | S44: 1.240381947e-05 | T44: 5.968414699 | U44: 2 | X44: 3.7 | Y44: 55.0969645 | Z44: 996.8895801 | AA44: 7.978204453e-05 | AB44: 55.0969645 | AC44: 87.03967575 | AD44: 1.240381947e-05 | AE44: 6.432054637 | AF44: 2
B45: 3.8 | C45: 55.3697864 | D45: 996.8895801 | E45: 6.306543181e-05 | F45: 55.3697864 | G45: 79.94215573 | H45: 1.207740317e-05 | I45: 5.221770851 | J45: 2 | M45: 3.8 | N45: 55.3697864 | O45: 996.8895801 | P45: 7.640003971e-05 | Q45: 55.3697864 | R45: 84.66620189 | S45: 1.207740317e-05 | T45: 6.325866467 | U45: 2 | X45: 3.8 | Y45: 55.3697864 | Z45: 996.8895801 | AA45: 8.261870924e-05 | AB45: 55.3697864 | AC45: 90.36190202 | AD45: 1.207740317e-05 | AE45: 6.840767679 | AF45: 2
B46: 3.9 | C46: 55.64395923 | D46: 996.8895801 | E46: 6.457371528e-05 | F46: 55.64395923 | G46: 82.64529011 | H46: 1.176772616e-05 | I46: 5.487357063 | J46: 2 | M46: 3.9 | N46: 55.64395923 | O46: 996.8895801 | P46: 7.896693302e-05 | Q46: 55.64395923 | R46: 87.77615394 | S46: 1.176772616e-05 | T46: 6.71046657 | U46: 2 | X46: 3.9 | Y46: 55.64395923 | Z46: 996.8895801 | AA46: 8.570191613e-05 | AB46: 55.64395923 | AC46: 93.77295774 | AD46: 1.176772616e-05 | AE46: 7.282793204 | AF46: 2
B47: 4 | C47: 55.91948967 | D47: 996.8895801 | E47: 6.619111512e-05 | F47: 55.91948967 | G47: 85.39336022 | H47: 1.147353301e-05 | I47: 5.769026426 | J47: 2 | M47: 4 | N47: 55.91948967 | O47: 996.8895801 | P47: 8.174770383e-05 | Q47: 55.91948967 | R47: 90.96402282 | S47: 1.147353301e-05 | T47: 7.124893768 | U47: 2 | X47: 4 | Y47: 55.91948967 | Z47: 996.8895801 | AA47: 8.905398967e-05 | AB47: 55.91948967 | AC47: 97.27862946 | AD47: 1.147353301e-05 | AE47: 7.76168854 | AF47: 2
B48: 4.1 | C48: 56.19638444 | D48: 996.8895801 | E48: 6.792282959e-05 | F48: 56.19638444 | G48: 88.18805436 | H48: 1.119369074e-05 | I48: 6.067956599 | J48: 2 | M48: 4.1 | N48: 56.19638444 | O48: 996.8895801 | P48: 8.476052129e-05 | Q48: 56.19638444 | R48: 94.2346458 | S48: 1.119369074e-05 | T48: 7.572169292 | U48: 2 | X48: 4.1 | Y48: 56.19638444 | Z48: 996.8895801 | AA48: 9.270067358e-05 | AB48: 56.19638444 | AC48: 100.8853421 | AD48: 1.119369074e-05 | AE48: 8.281511052 | AF48: 2
B49: 4.2 | C49: 56.47465031 | D49: 996.8895801 | E49: 6.977470688e-05 | F49: 56.47465031 | G49: 91.03116251 | H49: 1.092717429e-05 | I49: 6.38543003 | J49: 2 | M49: 4.2 | N49: 56.47465031 | O49: 996.8895801 | P49: 8.802623501e-05 | Q49: 56.47465031 | R49: 97.59337531 | S49: 1.092717429e-05 | T49: 8.055718033 | U49: 2 | X49: 4.2 | Y49: 56.47465031 | Z49: 996.8895801 | AA49: 9.667169636e-05 | AB49: 56.47465031 | AC49: 104.6002518 | AD49: 1.092717429e-05 | AE49: 8.846907147 | AF49: 2
B50: 4.3 | C50: 56.75429405 | D50: 996.8895801 | E50: 7.175330708e-05 | F50: 56.75429405 | G50: 93.92459154 | H50: 1.067305396e-05 | I50: 6.722846838 | J50: 2 | M50: 4.3 | N50: 56.75429405 | O50: 996.8895801 | P50: 9.156878005e-05 | Q50: 56.75429405 | R50: 101.0461468 | S50: 1.067305396e-05 | T50: 8.579435687 | U50: 2 | X50: 4.3 | Y50: 56.75429405 | Z50: 996.8895801 | AA50: 0.0001010014994 | AB50: 56.75429405 | AC50: 108.4313681 | AD50: 1.067305396e-05 | AE50: 9.463223902 | AF50: 2
B51: 4.4 | C51: 57.0353225 | D51: 996.8895801 | E51: 7.386590763e-05 | F51: 57.0353225 | G51: 96.87035569 | H51: 1.043048455e-05 | I51: 7.081733092 | J51: 2 | M51: 4.4 | N51: 57.0353225 | O51: 996.8895801 | P51: 9.5415712e-05 | Q51: 57.0353225 | R51: 104.5995737 | S51: 1.043048455e-05 | T51: 9.147773674 | U51: 2 | X51: 4.4 | Y51: 57.0353225 | Z51: 996.8895801 | AA51: 0.0001057301411 | AB51: 57.0353225 | AC51: 112.3877012 | AD51: 1.043048455e-05 | AE51: 10.13664711 | AF51: 2
B52: 4.5 | C52: 57.31774251 | D52: 996.8895801 | E52: 7.61206259e-05 | F52: 57.31774251 | G52: 99.87060995 | H52: 1.019869601e-05 | I52: 7.463760645 | J52: 2 | M52: 4.5 | N52: 57.31774251 | O52: 996.8895801 | P52: 9.959886287e-05 | Q52: 57.31774251 | R52: 108.261059 | S52: 1.019869601e-05 | T52: 9.765842887 | U52: 2 | X52: 4.5 | Y52: 57.31774251 | Z52: 996.8895801 | AA52: 0.0001109044353 | AB52: 57.31774251 | AC52: 116.4794436 | AD52: 1.019869601e-05 | AE52: 10.87437405 | AF52: 2
B53: 4.6 | C53: 57.60156097 | D53: 996.8895801 | E53: 7.852646178e-05 | F53: 57.60156097 | G53: 102.9276491 | H53: 9.976985225e-06 | I53: 7.870760556 | J53: 2 | M53: 4.6 | N53: 57.60156097 | O53: 996.8895801 | P53: 0.0001041551587 | Q53: 57.60156097 | R53: 112.0389338 | S53: 9.976985225e-06 | T53: 10.43954224 | U53: 2 | X53: 4.6 | Y53: 57.60156097 | Z53: 996.8895801 | AA53: 0.0001165793957 | AB53: 57.60156097 | AC53: 120.7181957 | AD53: 9.976985225e-06 | AE53: 11.68483195 | AF53: 2
B54: 4.7 | C54: 57.88678481 | D54: 996.8895801 | E54: 8.109339246e-05 | F54: 57.88678481 | G54: 106.0439237 | H54: 9.764708944e-06 | I54: 8.304742408 | J54: 2 | M54: 4.7 | N54: 57.88678481 | O54: 996.8895801 | P54: 0.0001091276472 | Q54: 57.88678481 | R54: 115.9426258 | S54: 9.764708944e-06 | T54: 11.1757194 | U54: 2 | X54: 4.7 | Y54: 57.88678481 | Z54: 996.8895801 | AA54: 0.0001228200906 | AB54: 57.88678481 | AC54: 125.1172497 | AD54: 9.764708944e-06 | AE54: 12.57795714 | AF54: 2
B55: 4.8 | C55: 58.17342098 | D55: 996.8895801 | E55: 8.383247439e-05 | F55: 58.17342098 | G55: 109.2220546 | H55: 9.561277507e-06 | I55: 8.767915619 | J55: 2 | M55: 4.8 | N55: 58.17342098 | O55: 996.8895801 | P55: 0.0001145668017 | Q55: 58.17342098 | R55: 119.9828713 | S55: 9.561277507e-06 | T55: 11.98237386 | U55: 2 | X55: 4.8 | Y55: 58.17342098 | Z55: 996.8895801 | AA55: 0.0001297040488 | AB55: 58.17342098 | AC55: 129.691951 | AD55: 9.561277507e-06 | AE55: 13.56555635 | AF55: 2
B56: 4.9 | C56: 58.46147647 | D56: 996.8895801 | E56: 8.675596147e-05 | F56: 58.46147647 | G56: 112.4648498 | H56: 9.366149395e-06 | I56: 9.262713823 | J56: 2 | M56: 4.9 | N56: 58.46147647 | O56: 996.8895801 | P56: 0.0001205321934 | Q56: 58.46147647 | R56: 124.1719815 | S56: 9.366149395e-06 | T56: 12.86891639 | U56: 2 | X56: 4.9 | Y56: 58.46147647 | Z56: 996.8895801 | AA56: 0.0001373244271 | AB56: 58.46147647 | AC56: 134.4601644 | AD56: 9.366149395e-06 | AE56: 14.66178055 | AF56: 2
B57: 5 | C57: 58.75095832 | D57: 996.8895801 | E57: 8.987744216e-05 | F57: 58.75095832 | G57: 115.7753228 | H57: 9.178826407e-06 | I57: 9.791822852 | J57: 2 | M57: 5 | N57: 58.75095832 | O57: 996.8895801 | P57: 0.0001270946627 | Q57: 58.75095832 | R57: 128.5241833 | S57: 9.178826407e-06 | T57: 13.84650466 | U57: 2 | X57: 5 | Y57: 58.75095832 | Z57: 996.8895801 | AA57: 0.0001457942393 | AB57: 58.75095832 | AC57: 139.4428846 | AD57: 9.178826407e-06 | AE57: 15.88375604 | AF57: 2
B58: 5.1 | C58: 59.04187359 | D58: 996.8895801 | E58: 9.321199856e-05 | F58: 59.04187359 | G58: 119.1567136 | H58: 8.998849419e-06 | I58: 10.35821295 | J58: 2 | M58: 5.1 | N58: 59.04187359 | O58: 996.8895801 | P58: 0.0001343391766 | Q58: 59.04187359 | R58: 133.0560596 | S58: 8.998849419e-06 | T58: 14.92848367 | U58: 2 | X58: 5.1 | Y58: 59.04187359 | Z58: 996.8895801 | AA58: 0.0001552521034 | AB58: 59.04187359 | AC58: 144.6650496 | AD58: 8.998849419e-06 | AE58: 17.2524393 | AF58: 2
B59: 5.2 | C59: 59.33422938 | D59: 996.8895801 | E59: 9.677639119e-05 | F59: 59.33422938 | G59: 122.6125128 | H59: 8.825794622e-06 | I59: 10.96517598 | J59: 2 | M59: 5.2 | N59: 59.33422938 | O59: 996.8895801 | P59: 0.0001423686505 | Q59: 59.33422938 | R59: 137.7871295 | S59: 8.825794622e-06 | T59: 16.13097252 | U59: 2 | X59: 5.2 | Y59: 59.33422938 | Z59: 996.8895801 | AA59: 0.000165870202 | AB59: 59.33422938 | AC59: 150.1566453 | AD59: 8.825794622e-06 | AE59: 18.79379807 | AF59: 2
B60: 5.3 | C60: 59.62803281 | D60: 996.8895801 | E60: 0.0001005892742 | F60: 59.62803281 | G60: 126.1464884 | H60: 8.659270195e-06 | I60: 11.61636858 | J60: 2 | M60: 5.3 | N60: 59.62803281 | O60: 996.8895801 | P60: 0.0001513091474 | Q60: 59.62803281 | R60: 142.7406243 | S60: 8.659270195e-06 | T60: 17.47366048 | U60: 2 | X60: 5.3 | Y60: 59.62803281 | Z60: 996.8895801 | AA60: 0.0001778655611 | AB60: 59.62803281 | AC60: 155.9542387 | AD60: 8.659270195e-06 | AE60: 20.5404794 | AF60: 2
B61: 5.4 | C61: 59.92329106 | D61: 996.8895801 | E61: 0.0001046714466 | F61: 59.92329106 | G61: 129.7627164 | H61: 8.49891334e-06 | I61: 12.31586232 | J61: 2 | M61: 5.4 | N61: 59.92329106 | O61: 996.8895801 | P61: 0.0001613170989 | Q61: 59.92329106 | R61: 147.9445481 | S61: 8.49891334e-06 | T61: 18.98090879 | U61: 2 | X61: 5.4 | Y61: 59.92329106 | Z61: 996.8895801 | AA61: 0.0001915164411 | AB61: 59.92329106 | AC61: 162.1031592 | AD61: 8.49891334e-06 | AE61: 22.53422685 | AF61: 2
B62: 5.5 | C62: 60.22001134 | D62: 996.8895801 | E62: 0.0001090461463 | F62: 60.22001134 | G62: 133.4656167 | H62: 8.344387643e-06 | I62: 13.06820237 | J62: 2 | M62: 5.5 | N62: 60.22001134 | O62: 996.8895801 | P62: 0.0001725895669 | Q62: 60.22001134 | R62: 153.4331593 | S62: 8.344387643e-06 | T62: 20.68331127 | U62: 2 | X62: 5.5 | Y62: 60.22001134 | Z62: 996.8895801 | AA62: 0.0002071871063 | AB62: 60.22001134 | AC62: 168.6607565 | AD62: 8.344387643e-06 | AE62: 24.82951598 | AF62: 2
B63: 5.6 | C63: 60.51820087 | D63: 996.8895801 | E63: 0.0001137393961 | F63: 60.51820087 | G63: 137.2599928 | H63: 8.195380721e-06 | I63: 13.87847618 | J63: 2 | M63: 5.6 | N63: 60.51820087 | O63: 996.8895801 | P63: 0.0001853792211 | Q63: 60.51820087 | R63: 159.2490957 | S63: 8.195380721e-06 | T63: 22.61996451 | U63: 2 | X63: 5.6 | Y63: 60.51820087 | Z63: 996.8895801 | AA63: 0.0002253656423 | AB63: 60.51820087 | AC63: 175.7011606 | AD63: 8.195380721e-06 | AE63: 27.49910589 | AF63: 2
B64: 5.7 | C64: 60.81786694 | D64: 996.8895801 | E64: 0.0001187804111 | F64: 60.81786694 | G64: 141.1510792 | H64: 8.051602111e-06 | I64: 14.75239454 | J64: 2 | M64: 5.7 | N64: 60.81786694 | O64: 996.8895801 | P64: 0.000200017304 | Q64: 60.81786694 | R64: 165.4466303 | S64: 8.051602111e-06 | T64: 24.84192602 | U64: 2 | X64: 5.7 | Y64: 60.81786694 | Z64: 996.8895801 | AA64: 0.0002467265669 | AB64: 60.81786694 | AC64: 183.3231799 | AD64: 8.051602111e-06 | AE64: 30.64316436 | AF64: 2
B65: 5.8 | C65: 61.11901685 | D65: 996.8895801 | E65: 0.0001242020819 | F65: 61.11901685 | G65: 145.1445951 | H65: 7.912781385e-06 | I65: 15.69638738 | J65: 2 | M65: 5.8 | N65: 61.11901685 | O65: 996.8895801 | P65: 0.0002169483026 | Q65: 61.11901685 | R65: 172.0963142 | S65: 7.912781385e-06 | T65: 27.41745184 | U65: 2 | X65: 5.8 | Y65: 61.11901685 | Z65: 996.8895801 | AA65: 0.0002722371787 | AB65: 61.11901685 | AC65: 191.6632409 | AD65: 7.912781385e-06 | AE65: 34.40473904 | AF65: 2
B66: 5.9 | C66: 61.42165796 | D66: 996.8895801 | E66: 0.00013004155 | F66: 61.42165796 | G66: 149.2468073 | H66: 7.778666447e-06 | I66: 16.71771773 | J66: 2 | M66: 5.9 | N66: 61.42165796 | O66: 996.8895801 | P66: 0.0002367892574 | Q66: 61.42165796 | R66: 179.2931259 | S66: 7.778666447e-06 | T66: 30.440855 | U66: 2 | X66: 5.9 | Y66: 61.42165796 | Z66: 996.8895801 | AA66: 0.0003033587628 | AB66: 61.42165796 | AC66: 200.9198269 | AD66: 7.778666447e-06 | AE66: 38.9988136 | AF66: 3
B67: 6 | C67: 61.72579765 | D67: 996.8895801 | E67: 0.0001363408949 | F67: 61.72579765 | G67: 153.4646038 | H67: 7.649022006e-06 | I67: 17.82461794 | J67: 2 | M67: 6 | N67: 61.72579765 | O67: 996.8895801 | P67: 0.0002604310675 | Q67: 61.72579765 | R67: 187.1698386 | S67: 7.649022006e-06 | T67: 34.04762953 | U67: 2 | X67: 6 | Y67: 61.72579765 | Z67: 996.8895801 | AA67: 0.0003424271075 | AB67: 61.72579765 | AC67: 211.3962942 | AD67: 7.649022006e-06 | AE67: 44.76743657 | AF67: 3
B68: 6.1 | C68: 62.03144334 | D68: 996.8895801 | E68: 0.0001431479615 | F68: 62.03144334 | G68: 157.8055797 | H68: 7.523628203e-06 | I68: 19.02645341 | J68: 2 | M68: 6.1 | N68: 62.03144334 | O68: 996.8895801 | P68: 0.0002892345936 | Q68: 62.03144334 | R68: 195.922932 | S68: 7.523628203e-06 | T68: 38.44349904 | U68: 3 | X68: 6.1 | Y68: 62.03144334 | Z68: 996.8895801 | AA68: 0.0003935805205 | AB68: 62.03144334 | AC68: 223.6080957 | AD68: 7.523628203e-06 | AE68: 52.31259572 | AF68: 3
B69: 6.2 | C69: 62.33860248 | D69: 996.8895801 | E69: 0.0001505173596 | F69: 62.33860248 | G69: 162.2781394 | H69: 7.402279361e-06 | I69: 20.33392045 | J69: 2 | M69: 6.2 | N69: 62.33860248 | O69: 996.8895801 | P69: 0.0003254182318 | Q69: 62.33860248 | R69: 205.8610935 | S69: 7.402279361e-06 | T69: 43.96189552 | U69: 3 | X69: 6.2 | Y69: 62.33860248 | Z69: 996.8895801 | AA69: 0.0004652813449 | AB69: 62.33860248 | AC69: 238.5595411 | AD69: 7.402279361e-06 | AE69: 62.85649625 | AF69: 3
B70: 6.3 | C70: 62.64728258 | D70: 996.8895801 | E70: 0.0001585116796 | F70: 62.64728258 | G70: 166.8916162 | H70: 7.284782863e-06 | I70: 21.7592868 | J70: 2 | M70: 6.3 | N70: 62.64728258 | O70: 996.8895801 | P70: 0.000373045512 | Q70: 62.64728258 | R70: 217.530771 | S70: 7.284782863e-06 | T70: 51.20887184 | U70: 3 | X70: 6.3 | Y70: 62.64728258 | Z70: 996.8895801 | AA70: 0.0005803403024 | AB70: 62.64728258 | AC70: 258.8141591 | AD70: 7.284782863e-06 | AE70: 79.66473584 | AF70: 3
B71: 6.4 | C71: 62.95749115 | D71: 996.8895801 | E71: 0.0001672029785 | F71: 62.95749115 | G71: 171.6564156 | H71: 7.170958131e-06 | I71: 23.31668592 | J71: 2 | M71: 6.4 | N71: 62.95749115 | O71: 996.8895801 | P71: 0.000440998124 | Q71: 62.95749115 | R71: 232.0811142 | S71: 7.170958131e-06 | T71: 61.49779652 | U71: 3 | X71: 6.4 | Y71: 62.95749115 | Z71: 996.8895801 | AA71: 0.0009052124334 | AB71: 62.95749115 | AC71: 301.6286213 | AD71: 7.170958131e-06 | AE71: 126.2331221 | AF71: 6
B72: 6.5 | C72: 63.26923578 | D72: 996.8895801 | E72: 0.000176674865 | F72: 63.26923578 | G72: 176.5842622 | H72: 7.060635698e-06 | I72: 25.02251534 | J72: 2 | M72: 6.5 | N72: 63.26923578 | O72: 996.8895801 | P72: 0.0005578512122 | Q72: 63.26923578 | R72: 253.0536912 | S72: 7.060635698e-06 | T72: 79.00863833 | U72: 4 | X72: 6.5 | Y72: 63.26923578 | Z72: 996.8895801 | AA72: 0.00966317597 | AB72: 63.26923578 | AC72: 602.3330041 | AD72: 7.060635698e-06 | AE72: 1368.598577 | AF72: 11
B73: 6.6 | C73: 63.58252406 | D73: 996.8895801 | E73: 0.0001870240916 | F73: 63.58252406 | G73: 181.6881958 | H73: 6.953656369e-06 | I73: 26.89579146 | J73: 2 | M73: 6.6 | N73: 63.58252406 | O73: 996.8895801 | P73: 0.0227254488 | Q73: 63.58252406 | R73: 740.6615968 | S73: 6.953656369e-06 | T73: 3268.129397 | U73: 13 | X73: 6.6 | Y73: 63.58252406 | Z73: 996.8895801 | AA73: 0.01028769196 | AB73: 63.58252406 | AC73: 612.5634504 | AD73: 6.953656369e-06 | AE73: 1479.465106 | AF73: 6
B74: 6.7 | C74: 63.89736364 | D74: 996.8895801 | E74: 0.0001983642841 | F74: 63.89736364 | G74: 186.9830906 | H74: 6.849870453e-06 | I74: 28.95883731 | J74: 2 | M74: 6.7 | N74: 63.89736364 | O74: 996.8895801 | P74: 0.02325640097 | Q74: 63.89736364 | R74: 744.9410236 | S74: 6.849870453e-06 | T74: 3395.159241 | U74: 6 | X74: 6.7 | Y74: 63.89736364 | Z74: 996.8895801 | AA74: 0.01086641725 | AB74: 63.89736364 | AC74: 621.6018731 | AD74: 6.849870453e-06 | AE74: 1586.368286 | AF74: 6
B75: 6.8 | C75: 64.2137622 | D75: 996.8895801 | E75: 0.0002108291108 | F75: 64.2137622 | G75: 192.4858249 | H75: 6.749137064e-06 | I75: 31.23793588 | J75: 2 | M75: 6.8 | N75: 64.2137622 | O75: 996.8895801 | P75: 0.02377383839 | Q75: 64.2137622 | R75: 749.0287127 | S75: 6.749137064e-06 | T75: 3522.500457 | U75: 6 | X75: 6.8 | Y75: 64.2137622 | Z75: 996.8895801 | AA75: 0.01140615875 | AB75: 64.2137622 | AC75: 629.6972653 | AD75: 6.749137064e-06 | AE75: 1690.017352 | AF75: 6
B76: 6.9 | C76: 64.53172747 | D76: 996.8895801 | E76: 0.0002245770515 | F76: 64.53172747 | G76: 198.2157073 | H76: 6.651323483e-06 | I76: 33.76426543 | J76: 2 | M76: 6.9 | N76: 64.53172747 | O76: 996.8895801 | P76: 0.02427882459 | Q76: 64.53172747 | R76: 752.9427362 | S76: 6.651323483e-06 | T76: 3650.224599 | U76: 6 | X76: 6.9 | Y76: 64.53172747 | Z76: 996.8895801 | AA76: 0.01191510577 | AB76: 64.53172747 | AC76: 637.0593292 | AD76: 6.651323483e-06 | AE76: 1791.388706 | AF76: 6
B77: 7 | C77: 64.85126719 | D77: 996.8895801 | E77: 0.0002397974279 | F77: 64.85126719 | G77: 204.1949695 | H77: 6.556304576e-06 | I77: 36.57508969 | J77: 2 | M77: 7 | N77: 64.85126719 | O77: 996.8895801 | P77: 0.02477247849 | Q77: 64.85126719 | R77: 756.6994649 | S77: 6.556304576e-06 | T77: 3778.420938 | U77: 6 | X77: 7 | Y77: 64.85126719 | Z77: 996.8895801 | AA77: 0.01239893931 | AB77: 64.85126719 | AC77: 643.8315564 | AD77: 6.556304576e-06 | AE77: 1891.147545 | AF77: 6
B78: 7.1 | C78: 65.17238916 | D78: 996.8895801 | E78: 0.0002567182928 | F78: 65.17238916 | G78: 210.4493912 | H78: 6.463962258e-06 | I78: 39.71531432 | J78: 2 | M78: 7.1 | N78: 65.17238916 | O78: 996.8895801 | P78: 0.02525576999 | Q78: 65.17238916 | R78: 760.3129414 | S78: 6.463962258e-06 | T78: 3907.165448 | U78: 6 | X78: 7.1 | Y78: 65.17238916 | Z78: 996.8895801 | AA78: 0.0128558013 | AB78: 65.17238916 | AC78: 650.0616515 | AD78: 6.463962258e-06 | AE78: 1988.842259 | AF78: 5
B79: 7.2 | C79: 65.49510123 | D79: 996.8895801 | E79: 0.0002756168824 | F79: 65.49510123 | G79: 217.0090994 | H79: 6.374185005e-06 | I79: 43.23954862 | J79: 2 | M79: 7.2 | N79: 65.49510123 | O79: 996.8895801 | P79: 0.02572953909 | Q79: 65.49510123 | R79: 763.7952813 | S79: 6.374185005e-06 | T79: 4036.522171 | U79: 6 | X79: 7.2 | Y79: 65.49510123 | Z79: 996.8895801 | AA79: 0.013300875 | AB79: 65.49510123 | AC79: 655.9405696 | AD79: 6.374185005e-06 | AE79: 2086.67853 | AF79: 5
B80: 7.3 | C80: 65.81941126 | D80: 996.8895801 | E80: 0.0002968336584 | F80: 65.81941126 | G80: 223.9096019 | H80: 6.286867402e-06 | I80: 47.21487499 | J80: 2 | M80: 7.3 | N80: 65.81941126 | O80: 996.8895801 | P80: 0.02617911774 | Q80: 65.81941126 | R80: 767.0977035 | S80: 6.286867402e-06 | T80: 4164.095736 | U80: 5 | X80: 7.3 | Y80: 65.81941126 | Z80: 996.8895801 | AA80: 0.01373048749 | AB80: 65.81941126 | AC80: 661.4681049 | AD80: 6.286867402e-06 | AE80: 2183.995083 | AF80: 5
B81: 7.4 | C81: 66.14532716 | D81: 996.8895801 | E81: 0.0003207914643 | F81: 66.14532716 | G81: 231.1931433 | H81: 6.201909734e-06 | I81: 51.72462645 | J81: 2 | M81: 7.4 | N81: 66.14532716 | O81: 996.8895801 | P81: 0.02663492404 | Q81: 66.14532716 | R81: 770.346147 | S81: 6.201909734e-06 | T81: 4294.632651 | U81: 5 | X81: 7.4 | Y81: 66.14532716 | Z81: 996.8895801 | AA81: 0.01414639801 | AB81: 66.14532716 | AC81: 666.6894321 | AD81: 6.201909734e-06 | AE81: 2280.974509 | AF81: 5
B82: 7.5 | C82: 66.4728569 | D82: 996.8895801 | E82: 0.0003480285266 | F82: 66.4728569 | G82: 238.9116897 | H82: 6.119217605e-06 | I82: 56.8746773 | J82: 3 | M82: 7.5 | N82: 66.4728569 | O82: 996.8895801 | P82: 0.0270842644 | Q82: 66.4728569 | R82: 773.4954959 | S82: 6.119217605e-06 | T82: 4426.099241 | U82: 5 | X82: 7.5 | Y82: 66.4728569 | Z82: 996.8895801 | AA82: 0.01455014423 | AB82: 66.4728569 | AC82: 671.6418748 | AD82: 6.119217605e-06 | AE82: 2377.778528 | AF82: 5
B83: 7.6 | C83: 66.80200845 | D83: 996.8895801 | E83: 0.000379213998 | F83: 66.80200845 | G83: 247.1252104 | H83: 6.038701584e-06 | I83: 62.797274 | J83: 3 | M83: 7.6 | N83: 66.80200845 | O83: 996.8895801 | P83: 0.0275266019 | Q83: 66.80200845 | R83: 776.548931 | S83: 6.038701584e-06 | T83: 4558.36433 | U83: 5 | X83: 7.6 | Y83: 66.80200845 | Z83: 996.8895801 | AA83: 0.01494299341 | AB83: 66.80200845 | AC83: 676.3559366 | AD83: 6.038701584e-06 | AE83: 2474.537481 | AF83: 5
B84: 7.7 | C84: 67.13278985 | D84: 996.8895801 | E84: 0.0004152320459 | F84: 67.13278985 | G84: 255.9106644 | H84: 5.960276888e-06 | I84: 69.66656982 | J84: 3 | M84: 7.7 | N84: 67.13278985 | O84: 996.8895801 | P84: 0.02796231001 | Q84: 67.13278985 | R84: 779.5126019 | S84: 5.960276888e-06 | T84: 4691.444799 | U84: 5 | X84: 7.7 | Y84: 67.13278985 | Z84: 996.8895801 | AA84: 0.01532600305 | AB84: 67.13278985 | AC84: 680.8568983 | AD84: 5.960276888e-06 | AE84: 2571.357563 | AF84: 5
B85: 7.8 | C85: 67.46520917 | D85: 996.8895801 | E85: 0.0004572438971 | F85: 67.46520917 | G85: 265.3631697 | H85: 5.883863081e-06 | I85: 77.71151212 | J85: 3 | M85: 7.8 | N85: 67.46520917 | O85: 996.8895801 | P85: 0.02839179239 | Q85: 67.46520917 | R85: 782.392273 | S85: 5.883863081e-06 | T85: 4825.36592 | U85: 5 | X85: 7.8 | Y85: 67.46520917 | Z85: 996.8895801 | AA85: 0.01570006673 | AB85: 67.46520917 | AC85: 685.1659791 | AD85: 5.883863081e-06 | AE85: 2668.326321 | AF85: 5
B86: 7.9 | C86: 67.79927452 | D86: 996.8895801 | E86: 0.0005068129492 | F86: 67.79927452 | G86: 275.603315 | H86: 5.809383802e-06 | I86: 87.24039699 | J86: 3 | M86: 7.9 | N86: 67.79927452 | O86: 996.8895801 | P86: 0.02881541888 | Q86: 67.79927452 | R86: 785.1931505 | S86: 5.809383802e-06 | T86: 4960.150656 | U86: 5 | X86: 7.9 | Y86: 67.79927452 | Z86: 996.8895801 | AA86: 0.01606594777 | AB86: 67.79927452 | AC86: 689.3011884 | AD86: 5.809383802e-06 | AE86: 2765.516675 | AF86: 5
B87: 8 | C87: 68.13499405 | D87: 996.8895801 | E87: 0.0005660916521 | F87: 68.13499405 | G87: 286.7863668 | H87: 5.736766504e-06 | I87: 98.67782691 | J87: 3 | M87: 8 | N87: 68.13499405 | O87: 996.8895801 | P87: 0.0292335251 | Q87: 68.13499405 | R87: 787.9199396 | S87: 5.736766504e-06 | T87: 5095.819234 | U87: 5 | X87: 8 | Y87: 68.13499405 | Z87: 996.8895801 | AA87: 0.01642430457 | AB87: 68.13499405 | AC87: 693.2779605 | AD87: 5.736766504e-06 | AE87: 2862.989901 | AF87: 5
B88: 8.1 | C88: 68.47237595 | D88: 996.8895801 | E88: 0.0006381221964 | F88: 68.47237595 | G88: 299.1160001 | H88: 5.665942227e-06 | I88: 112.6241975 | J88: 3 | M88: 8.1 | N88: 68.47237595 | O88: 996.8895801 | P88: 0.02964641645 | Q88: 68.47237595 | R88: 790.5769081 | S88: 5.665942227e-06 | T88: 5232.389472 | U88: 5 | X88: 8.1 | Y88: 68.47237595 | Z88: 996.8895801 | AA88: 0.01677570979 | AB88: 68.47237595 | AC88: 697.1096376 | AD88: 5.665942227e-06 | AE88: 2960.797891 | AF88: 5
B89: 8.2 | C89: 68.81142846 | D89: 996.8895801 | E89: 0.0007273032674 | F89: 68.81142846 | G89: 312.8607198 | H89: 5.59684537e-06 | I89: 129.9487871 | J89: 3 | M89: 8.2 | N89: 68.81142846 | O89: 996.8895801 | P89: 0.03005437179 | Q89: 68.81142846 | R89: 793.1679403 | S89: 5.59684537e-06 | T89: 5369.8771 | U89: 5 | X89: 8.2 | Y89: 68.81142846 | Z89: 996.8895801 | AA89: 0.01712066541 | AB89: 68.81142846 | AC89: 700.8078428 | AD89: 5.59684537e-06 | AE89: 3058.984888 | AF89: 5
B90: 8.3 | C90: 69.15215984 | D90: 996.8895801 | E90: 0.0008401691865 | F90: 69.15215984 | G90: 328.377714 | H90: 5.529413498e-06 | I90: 151.9454435 | J90: 3 | M90: 8.3 | N90: 69.15215984 | O90: 996.8895801 | P90: 0.03045764653 | Q90: 69.15215984 | R90: 795.6965834 | S90: 5.529413498e-06 | T90: 5508.29605 | U90: 5 | X90: 8.3 | Y90: 69.15215984 | Z90: 996.8895801 | AA90: 0.01745961436 | AB90: 69.15215984 | AC90: 704.382772 | AD90: 5.529413498e-06 | AE90: 3157.588841 | AF90: 5
B91: 8.4 | C91: 69.49457842 | D91: 996.8895801 | E91: 0.0009867232922 | F91: 69.49457842 | G91: 346.1451351 | H91: 5.463587147e-06 | I91: 180.5999 | J91: 4 | M91: 8.4 | N91: 69.49457842 | O91: 996.8895801 | P91: 0.03085647539 | Q91: 69.49457842 | R91: 798.1660868 | S91: 5.463587147e-06 | T91: 5647.658683 | U91: 5 | X91: 8.4 | Y91: 69.49457842 | Z91: 996.8895801 | AA91: 0.01779294992 | AB91: 69.49457842 | AC91: 707.8434251 | AD91: 5.463587147e-06 | AE91: 3256.642466 | AF91: 5
B92: 8.5 | C92: 69.83869253 | D92: 996.8895801 | E92: 0.001181499679 | F92: 69.83869253 | G92: 366.6928257 | H92: 5.399309651e-06 | I92: 218.8242118 | J92: 4 | M92: 8.5 | N92: 69.83869253 | O92: 996.8895801 | P92: 0.03125107463 | Q92: 69.83869253 | R92: 800.5794354 | S92: 5.399309651e-06 | T92: 5787.975992 | U92: 5 | X92: 8.5 | Y92: 69.83869253 | Z92: 996.8895801 | AA92: 0.01812102324 | AB92: 69.83869253 | AC92: 711.1977916 | AD92: 5.399309651e-06 | AE92: 3356.174105 | AF92: 5
B93: 8.6 | C93: 70.18451058 | D93: 996.8895801 | E93: 0.001444506288 | F93: 70.18451058 | G93: 390.4759948 | H93: 5.336526981e-06 | I93: 270.6828417 | J93: 5 | M93: 8.6 | N93: 70.18451058 | O93: 996.8895801 | P93: 0.03164164408 | Q93: 70.18451058 | R93: 802.9393786 | S93: 5.336526981e-06 | T93: 5929.257772 | U93: 5 | X93: 8.6 | Y93: 70.18451058 | Z93: 996.8895801 | AA93: 0.0184441494 | AB93: 70.18451058 | AC93: 714.4530012 | AD93: 5.336526981e-06 | AE93: 3456.208405 | AF93: 5
B94: 8.7 | C94: 70.53204101 | D94: 996.8895801 | E94: 0.001793443002 | F94: 70.53204101 | G94: 417.1849672 | H94: 5.27518759e-06 | I94: 339.9771043 | J94: 5 | M94: 8.7 | N94: 70.53204101 | O94: 996.8895801 | P94: 0.0320283688 | Q94: 70.53204101 | R94: 805.2484556 | S94: 5.27518759e-06 | T94: 6071.512766 | U94: 5 | X94: 8.7 | Y94: 70.53204101 | Z94: 996.8895801 | AA94: 0.01875380259 | AB94: 70.53204101 | AC94: 717.5705032 | AD94: 5.27518759e-06 | AE94: 3555.096813 | AF94: 4
B95: 8.8 | C95: 70.8812923 | D95: 996.8895801 | E95: 0.002226148273 | F95: 70.8812923 | G95: 445.1055552 | H95: 5.215242277e-06 | I95: 426.854239 | J95: 6 | M95: 8.8 | N95: 70.8812923 | O95: 996.8895801 | P95: 0.03241142063 | Q95: 70.8812923 | R95: 807.5090165 | S95: 5.215242277e-06 | T95: 6214.748789 | U95: 5 | X95: 8.8 | Y95: 70.8812923 | Z95: 996.8895801 | AA95: 0.01906746505 | AB95: 70.8812923 | AC95: 720.6452685 | AD95: 5.215242277e-06 | AE95: 3656.103406 | AF95: 4
B96: 8.9 | C96: 71.23227296 | D96: 996.8895801 | E96: 0.002707202817 | F96: 71.23227296 | G96: 471.5452936 | H96: 5.156644049e-06 | I96: 524.9931527 | J96: 6 | M96: 8.9 | N96: 71.23227296 | O96: 996.8895801 | P96: 0.03279095944 | Q96: 71.23227296 | R96: 809.7232415 | S96: 5.156644049e-06 | T96: 6358.972837 | U96: 5 | X96: 8.9 | Y96: 71.23227296 | Z96: 996.8895801 | AA96: 0.0193773802 | AB96: 71.23227296 | AC96: 723.6403249 | AD96: 5.156644049e-06 | AE96: 3757.750199 | AF96: 4
B97: 9 | C97: 71.58499156 | D97: 996.8895801 | E97: 0.00319575216 | F97: 71.58499156 | G97: 494.8990018 | H97: 5.099348004e-06 | I97: 626.6981892 | J97: 6 | M97: 9 | N97: 71.58499156 | O97: 996.8895801 | P97: 0.03316713431 | Q97: 71.58499156 | R97: 811.8931575 | S97: 5.099348004e-06 | T97: 6504.19118 | U97: 5 | X97: 9 | Y97: 71.58499156 | Z97: 996.8895801 | AA97: 0.01968335181 | AB97: 71.58499156 | AC97: 726.5583048 | AD97: 5.099348004e-06 | AE97: 3859.974215 | AF97: 4
B98: 9.1 | C98: 71.93945671 | D98: 996.8895801 | E98: 0.003667963341 | F98: 71.93945671 | G98: 514.9904221 | H98: 5.043311213e-06 | I98: 727.2926826 | J98: 6 | M98: 9.1 | N98: 71.93945671 | O98: 996.8895801 | P98: 0.03354008451 | Q98: 71.93945671 | R98: 814.0206525 | S98: 5.043311213e-06 | T98: 6650.409443 | U98: 5 | X98: 9.1 | Y98: 71.93945671 | Z98: 996.8895801 | AA98: 0.01998555458 | AB98: 71.93945671 | AC98: 729.4034151 | AD98: 5.043311213e-06 | AE98: 3962.784316 | AF98: 4
B99: 9.2 | C99: 72.29567705 | D99: 996.8895801 | E99: 0.004115919613 | F99: 72.29567705 | G99: 532.2958517 | H99: 4.988492613e-06 | I99: 825.0828322 | J99: 6 | M99: 9.2 | N99: 72.29567705 | O99: 996.8895801 | P99: 0.03390994039 | Q99: 72.29567705 | R99: 816.1074885 | S99: 4.988492613e-06 | T99: 6797.632677 | U99: 5 | X99: 9.2 | Y99: 72.29567705 | Z99: 996.8895801 | AA99: 0.02028416727 | AB99: 72.29567705 | AC99: 732.1795895 | AD99: 4.988492613e-06 | AE99: 4066.191703 | AF99: 4
B100: 9.3 | C100: 72.65366128 | D100: 996.8895801 | E100: 0.004539216132 | F100: 72.65366128 | G100: 547.3760187 | H100: 4.934852907e-06 | I100: 919.8280512 | J100: 6 | M100: 9.3 | N100: 72.65366128 | O100: 996.8895801 | P100: 0.03427682417 | Q100: 72.65366128 | R100: 818.1553128 | S100: 4.934852907e-06 | T100: 6945.865423 | U100: 5 | X100: 9.3 | Y100: 72.65366128 | Z100: 996.8895801 | AA100: 0.02057935546 | AB100: 72.65366128 | AC100: 734.8904371 | AD100: 4.934852907e-06 | AE100: 4170.206458 | AF100: 4
B101: 9.4 | C101: 73.01341812 | D101: 996.8895801 | E101: 0.004938380052 | F101: 73.01341812 | G101: 560.6576567 | H101: 4.882354472e-06 | I101: 1011.475115 | J101: 5 | M101: 9.4 | N101: 73.01341812 | O101: 996.8895801 | P101: 0.03464085065 | Q101: 73.01341812 | R101: 820.1656681 | S101: 4.882354472e-06 | T101: 7095.111764 | U101: 5 | X101: 9.4 | Y101: 73.01341812 | Z101: 996.8895801 | AA101: 0.02087127205 | AB101: 73.01341812 | AC101: 737.5392741 | AD101: 4.882354472e-06 | AE101: 4274.837512 | AF101: 4
B102: 9.5 | C102: 73.37495636 | D102: 996.8895801 | E102: 0.005319284128 | F102: 73.37495636 | G102: 572.5843193 | H102: 4.830961267e-06 | I102: 1101.081924 | J102: 5 | M102: 9.5 | N102: 73.37495636 | O102: 996.8895801 | P102: 0.03500212779 | Q102: 73.37495636 | R102: 822.1400014 | S102: 4.830961267e-06 | T102: 7245.375374 | U102: 5 | X102: 9.5 | Y102: 73.37495636 | Z102: 996.8895801 | AA102: 0.02116005856 | AB102: 73.37495636 | AC102: 740.1291555 | AD102: 4.830961267e-06 | AE102: 4380.09278 | AF102: 4
B103: 9.6 | C103: 73.73828482 | D103: 996.8895801 | E103: 0.005682878641 | F103: 73.73828482 | G103: 583.3803877 | H103: 4.780638754e-06 | I103: 1188.727895 | J103: 5 | M103: 9.6 | N103: 73.73828482 | O103: 996.8895801 | P103: 0.03536075734 | Q103: 73.73828482 | R103: 824.0796721 | S103: 4.780638754e-06 | T103: 7396.659561 | U103: 5 | X103: 9.6 | Y103: 73.73828482 | Z103: 996.8895801 | AA103: 0.02144584634 | AB103: 73.73828482 | AC103: 742.6629027 | AD103: 4.780638754e-06 | AE103: 4485.97927 | AF103: 4
B104: 9.7 | C104: 74.10341237 | D104: 996.8895801 | E104: 0.006031193788 | F104: 74.10341237 | G104: 593.244019 | H104: 4.731353818e-06 | I104: 1274.728972 | J104: 5 | M104: 9.7 | N104: 74.10341237 | O104: 996.8895801 | P104: 0.03571683527 | Q104: 74.10341237 | R104: 825.9859592 | S104: 4.731353818e-06 | T104: 7548.967303 | U104: 5 | X104: 9.7 | Y104: 74.10341237 | Z104: 996.8895801 | AA104: 0.02172875751 | AB104: 74.10341237 | AC104: 745.1431273 | AD104: 4.731353818e-06 | AE104: 4592.503192 | AF104: 4
B105: 9.8 | C105: 74.4703479 | D105: 996.8895801 | E105: 0.006366082693 | F105: 74.4703479 | G105: 602.3300085 | H105: 4.683074697e-06 | I105: 1359.380985 | J105: 5 | M105: 9.8 | N105: 74.4703479 | O105: 996.8895801 | P105: 0.03607045226 | Q105: 74.4703479 | R105: 827.8600675 | S105: 4.683074697e-06 | T105: 7702.301285 | U105: 5 | X105: 9.8 | Y105: 74.4703479 | Z105: 996.8895801 | AA105: 0.02200890589 | AB105: 74.4703479 | AC105: 747.5722522 | AD105: 4.683074697e-06 | AE105: 4699.670047 | AF105: 4
B106: 9.9 | C106: 74.83910037 | D106: 996.8895801 | E106: 0.00668908554 | F106: 74.83910037 | G106: 610.7580795 | H106: 4.635770913e-06 | I106: 1442.928407 | J106: 5 | M106: 9.9 | N106: 74.83910037 | O106: 996.8895801 | P106: 0.03642169408 | Q106: 74.83910037 | R106: 829.7031336 | S106: 4.635770913e-06 | T106: 7856.663922 | U106: 5 | X106: 9.9 | Y106: 74.83910037 | Z106: 996.8895801 | AA106: 0.02228639775 | AB106: 74.83910037 | AC106: 749.9525297 | AD106: 4.635770913e-06 | AE106: 4807.484703 | AF106: 4
B107: 10 | C107: 75.20967879 | D107: 996.8895801 | E107: 0.00700148812 | F107: 75.20967879 | G107: 618.6224526 | H107: 4.589413204e-06 | I107: 1525.573708 | J107: 5 | M107: 10 | N107: 75.20967879 | O107: 996.8895801 | P107: 0.03674737379 | Q107: 75.20967879 | R107: 831.4720131 | S107: 4.589413204e-06 | T107: 8006.987422 | U107: 4 | X107: 10 | Y107: 75.20967879 | Z107: 996.8895801 | AA107: 0.02256133255 | AB107: 75.20967879 | AC107: 752.2860578 | AD107: 4.589413204e-06 | AE107: 4915.951462 | AF107: 4
B108: 10.1 | C108: 75.58209219 | D108: 996.8895801 | E108: 0.007304371351 | F108: 75.58209219 | G108: 625.9984704 | H108: 4.543973469e-06 | I108: 1607.485475 | J108: 5 | M108: 10.1 | N108: 75.58209219 | O108: 996.8895801 | P108: 0.03711491394 | Q108: 75.58209219 | R108: 833.2958045 | S108: 4.543973469e-06 | T108: 8167.942483 | U108: 5 | X108: 10.1 | Y108: 75.58209219 | Z108: 996.8895801 | AA108: 0.02283380349 | AB108: 75.58209219 | AC108: 754.5747945 | AD108: 4.543973469e-06 | AE108: 5025.074121 | AF108: 4
B109: 10.2 | C109: 75.95634965 | D109: 996.8895801 | E109: 0.00759865089 | F109: 75.95634965 | G109: 632.947253 | H109: 4.499424709e-06 | I109: 1688.804987 | J109: 5 | M109: 10.2 | N109: 75.95634965 | O109: 996.8895801 | P109: 0.0374382722 | Q109: 75.95634965 | R109: 835.0134128 | S109: 4.499424709e-06 | T109: 8320.67978 | U109: 4 | X109: 10.2 | Y109: 75.95634965 | Z109: 996.8895801 | AA109: 0.02310389807 | AB109: 75.95634965 | AC109: 756.82057 | AD109: 4.499424709e-06 | AE109: 5134.856023 | AF109: 4
B110: 10.3 | C110: 76.33246031 | D110: 996.8895801 | E110: 0.007885108418 | F110: 76.33246031 | G110: 639.5190278 | H110: 4.455740974e-06 | I110: 1769.651437 | J110: 5 | M110: 10.3 | N110: 76.33246031 | O110: 996.8895801 | P110: 0.037801912 | Q110: 76.33246031 | R110: 836.7810381 | S110: 4.455740974e-06 | T110: 8483.866594 | U110: 5 | X110: 10.3 | Y110: 76.33246031 | Z110: 996.8895801 | AA110: 0.0233716986 | AB110: 76.33246031 | AC110: 759.0250981 | AD110: 4.455740974e-06 | AE110: 5245.300104 | AF110: 4
B111: 10.4 | C111: 76.71043335 | D111: 996.8895801 | E111: 0.008164416269 | F111: 76.71043335 | G111: 645.755554 | H111: 4.412897311e-06 | I111: 1850.12605 | J111: 5 | M111: 10.4 | N111: 76.71043335 | O111: 996.8895801 | P111: 0.03812124315 | Q111: 76.71043335 | R111: 838.4470462 | S111: 4.412897311e-06 | T111: 8638.597381 | U111: 4 | X111: 10.4 | Y111: 76.71043335 | Z111: 996.8895801 | AA111: 0.02363728258 | AB111: 76.71043335 | AC111: 761.1899864 | AD111: 4.412897311e-06 | AE111: 5356.408934 | AF111: 4
B112: 10.5 | C112: 77.09027799 | D112: 996.8895801 | E112: 0.008434124322 | F112: 77.09027799 | G112: 651.6506261 | H112: 4.370869718e-06 | I112: 1929.621532 | J112: 4 | M112: 10.5 | N112: 77.09027799 | O112: 996.8895801 | P112: 0.03848091286 | Q112: 77.09027799 | R112: 840.1614332 | S112: 4.370869718e-06 | T112: 8803.948721 | U112: 5 | X112: 10.5 | Y112: 77.09027799 | Z112: 996.8895801 | AA112: 0.02390072313 | AB112: 77.09027799 | AC112: 763.3167448 | AD112: 4.370869718e-06 | AE112: 5468.18475 | AF112: 4
B113: 10.6 | C113: 77.47200349 | D113: 996.8895801 | E113: 0.008700795239 | F113: 77.47200349 | G113: 657.3181773 | H113: 4.329635098e-06 | I113: 2009.590888 | J113: 4 | M113: 10.6 | N113: 77.47200349 | O113: 996.8895801 | P113: 0.0387964253 | Q113: 77.47200349 | R113: 841.7789541 | S113: 4.329635098e-06 | T113: 8960.668607 | U113: 4 | X113: 10.6 | Y113: 77.47200349 | Z113: 996.8895801 | AA113: 0.02416208931 | AB113: 77.47200349 | AC113: 765.4067937 | AD113: 4.329635098e-06 | AE113: 5580.629491 | AF113: 4
B114: 10.7 | C114: 77.85561917 | D114: 996.8895801 | E114: 0.008961898855 | F114: 77.85561917 | G114: 662.7412378 | H114: 4.289171218e-06 | I114: 2089.424366 | J114: 4 | M114: 10.7 | N114: 77.85561917 | O114: 996.8895801 | P114: 0.03912754866 | Q114: 77.85561917 | R114: 843.402632 | S114: 4.289171218e-06 | T114: 9122.403064 | U114: 4 | X114: 10.7 | Y114: 77.85561917 | Z114: 996.8895801 | AA114: 0.02442144643 | AB114: 77.85561917 | AC114: 767.461471 | AD114: 4.289171218e-06 | AE114: 5693.744826 | AF114: 4
B115: 10.8 | C115: 78.24113438 | D115: 996.8895801 | E115: 0.009217778101 | F115: 78.24113438 | G115: 667.9410903 | H115: 4.24945667e-06 | I115: 2169.166276 | J115: 4 | M115: 10.8 | N115: 78.24113438 | O115: 996.8895801 | P115: 0.03945990557 | Q115: 78.24113438 | R115: 845.0082024 | S115: 4.24945667e-06 | T115: 9285.87079 | U115: 4 | X115: 10.8 | Y115: 78.24113438 | Z115: 996.8895801 | AA115: 0.02467885636 | AB115: 78.24113438 | AC115: 769.4820387 | AD115: 4.24945667e-06 | AE115: 5807.53218 | AF115: 4
B116: 10.9 | C116: 78.62855854 | D116: 996.8895801 | E116: 0.00946865444 | F116: 78.62855854 | G116: 672.9347923 | H116: 4.210470829e-06 | I116: 2248.835065 | J116: 4 | M116: 10.9 | N116: 78.62855854 | O116: 996.8895801 | P116: 0.03979106248 | Q116: 78.62855854 | R116: 846.5921256 | S116: 4.210470829e-06 | T116: 9450.501878 | U116: 4 | X116: 10.9 | Y116: 78.62855854 | Z116: 996.8895801 | AA116: 0.02493437774 | AB116: 78.62855854 | AC116: 771.4696887 | AD116: 4.210470829e-06 | AE116: 5921.992754 | AF116: 4
B117: 11 | C117: 79.0179011 | D117: 996.8895801 | E117: 0.00971507926 | F117: 79.0179011 | G117: 677.7428709 | H117: 4.172193821e-06 | I117: 2328.530187 | J117: 4 | M117: 11 | N117: 79.0179011 | O117: 996.8895801 | P117: 0.04012063763 | Q117: 79.0179011 | R117: 848.1543292 | S117: 4.172193821e-06 | T117: 9616.196982 | U117: 4 | X117: 11 | Y117: 79.0179011 | Z117: 996.8895801 | AA117: 0.02518806625 | AB117: 79.0179011 | AC117: 773.425548 | AD117: 4.172193821e-06 | AE117: 6037.127548 | AF117: 4
B118: 11.1 | C118: 79.40917155 | D118: 996.8895801 | E118: 0.009957223291 | F118: 79.40917155 | G118: 682.3781944 | H118: 4.13460649e-06 | I118: 2408.263837 | J118: 4 | M118: 11.1 | N118: 79.40917155 | O118: 996.8895801 | P118: 0.04044860336 | Q118: 79.40917155 | R118: 849.6953061 | S118: 4.13460649e-06 | T118: 9782.939069 | U118: 4 | X118: 11.1 | Y118: 79.40917155 | Z118: 996.8895801 | AA118: 0.02543997481 | AB118: 79.40917155 | AC118: 775.3506834 | AD118: 4.13460649e-06 | AE118: 6152.937378 | AF118: 4
B119: 11.2 | C119: 79.80237944 | D119: 996.8895801 | E119: 0.01019533643 | F119: 79.80237944 | G119: 686.8536984 | H119: 4.09769036e-06 | I119: 2488.069017 | J119: 4 | M119: 11.2 | N119: 79.80237944 | O119: 996.8895801 | P119: 0.04077499231 | Q119: 79.80237944 | R119: 851.215624 | S119: 4.09769036e-06 | T119: 9950.725586 | U119: 4 | X119: 11.2 | Y119: 79.80237944 | Z119: 996.8895801 | AA119: 0.02569015376 | AB119: 79.80237944 | AC119: 777.246106 | AD119: 4.09769036e-06 | AE119: 6269.422894 | AF119: 4
B120: 11.3 | C120: 80.19753437 | D120: 996.8895801 | E120: 0.01042964625 | F120: 80.19753437 | G120: 691.1808938 | H120: 4.061427614e-06 | I120: 2567.975412 | J120: 4 | M120: 11.3 | N120: 80.19753437 | O120: 996.8895801 | P120: 0.04109984625 | Q120: 80.19753437 | R120: 852.7158422 | S120: 4.061427614e-06 | T120: 10119.55651 | U120: 4 | X120: 11.3 | Y120: 80.19753437 | Z120: 996.8895801 | AA120: 0.02593865102 | AB120: 80.19753437 | AC120: 779.112775 | AD120: 4.061427614e-06 | AE120: 6386.584593 | AF120: 4
B121: 11.4 | C121: 80.59464598 | D121: 996.8895801 | E121: 0.01066035927 | F121: 80.59464598 | G121: 695.3700552 | H121: 4.025801056e-06 | I121: 2648.009459 | J121: 4 | M121: 11.4 | N121: 80.59464598 | O121: 996.8895801 | P121: 0.04142320709 | Q121: 80.59464598 | R121: 854.1964994 | S121: 4.025801056e-06 | T121: 10289.43222 | U121: 4 | X121: 11.4 | Y121: 80.59464598 | Z121: 996.8895801 | AA121: 0.02618551232 | AB121: 80.59464598 | AC121: 780.9516013 | AD121: 4.025801056e-06 | AE121: 6504.422835 | AF121: 4
B122: 11.5 | C122: 80.99372395 | D122: 996.8895801 | E122: 0.01088766353 | F122: 80.99372395 | G122: 699.4303927 | H122: 3.99079409e-06 | I122: 2728.194761 | J122: 4 | M122: 11.5 | N122: 80.99372395 | O122: 996.8895801 | P122: 0.04174511545 | Q122: 80.99372395 | R122: 855.6581118 | S122: 3.99079409e-06 | T122: 10460.35313 | U122: 4 | X122: 11.5 | Y122: 80.99372395 | Z122: 996.8895801 | AA122: 0.02643078124 | AB122: 80.99372395 | AC122: 782.7634509 | AD122: 3.99079409e-06 | AE122: 6622.937851 | AF122: 4
B123: 11.6 | C123: 81.39477802 | D123: 996.8895801 | E123: 0.01111173078 | F123: 81.39477802 | G123: 703.3701956 | H123: 3.956390693e-06 | I123: 2808.552452 | J123: 4 | M123: 11.6 | N123: 81.39477802 | O123: 996.8895801 | P123: 0.04206561038 | Q123: 81.39477802 | R123: 857.1011742 | S123: 3.956390693e-06 | T123: 10632.31962 | U123: 4 | X123: 11.6 | Y123: 81.39477802 | Z123: 996.8895801 | AA123: 0.02667449943 | AB123: 81.39477802 | AC123: 784.5491477 | AD123: 3.956390693e-06 | AE123: 6742.129759 | AF123: 4
B124: 11.7 | C124: 81.79781798 | D124: 996.8895801 | E124: 0.01133271845 | F124: 81.79781798 | G124: 707.1969528 | H124: 3.922575388e-06 | I124: 2889.101504 | J124: 4 | M124: 11.7 | N124: 81.79781798 | O124: 996.8895801 | P124: 0.04238472947 | Q124: 81.79781798 | R124: 858.5261615 | S124: 3.922575388e-06 | T124: 10805.33203 | U124: 4 | X124: 11.7 | Y124: 81.79781798 | Z124: 996.8895801 | AA124: 0.0269167067 | AB124: 81.79781798 | AC124: 786.3094766 | AD124: 3.922575388e-06 | AE124: 6861.99857 | AF124: 4
B125: 11.8 | C125: 82.20285365 | D125: 996.8895801 | E125: 0.01155077122 | F125: 82.20285365 | G125: 710.9174536 | H125: 3.889333223e-06 | I125: 2969.858985 | J125: 4 | M125: 11.8 | N125: 82.20285365 | O125: 996.8895801 | P125: 0.04270250887 | Q125: 82.20285365 | R125: 859.9335291 | S125: 3.889333223e-06 | T125: 10979.39066 | U125: 4 | X125: 11.8 | Y125: 82.20285365 | Z125: 996.8895801 | AA125: 0.02715744114 | AB125: 82.20285365 | AC125: 788.0451855 | AD125: 3.889333223e-06 | AE125: 6982.544199 | AF125: 4
B126: 11.9 | C126: 82.60989493 | D126: 996.8895801 | E126: 0.01176602243 | F126: 82.60989493 | G126: 714.5378733 | H126: 3.856649751e-06 | I126: 3050.840286 | J126: 4 | M126: 11.9 | N126: 82.60989493 | O126: 996.8895801 | P126: 0.04301898338 | Q126: 82.60989493 | R126: 861.3237146 | S126: 3.856649751e-06 | T126: 11154.49578 | U126: 4 | X126: 11.9 | Y126: 82.60989493 | Z126: 996.8895801 | AA126: 0.0273967392 | AB126: 82.60989493 | AC126: 789.7569881 | AD126: 3.856649751e-06 | AE126: 7103.766473 | AF126: 4
B127: 12 | C127: 83.01895175 | D127: 996.8895801 | E127: 0.0119785953 | F127: 83.01895175 | G127: 718.063846 | H127: 3.824511003e-06 | I127: 3132.059312 | J127: 4 | M127: 12 | N127: 83.01895175 | O127: 996.8895801 | P127: 0.04333418652 | Q127: 83.01895175 | R127: 862.6971385 | S127: 3.824511003e-06 | T127: 11330.64763 | U127: 4 | X127: 12 | Y127: 83.01895175 | Z127: 996.8895801 | AA127: 0.02763463583 | AB127: 83.01895175 | AC127: 791.4455658 | AD127: 3.824511003e-06 | AE127: 7225.665139 | AF127: 4
B128: 12.1 | C128: 83.43003408 | D128: 996.8895801 | E128: 0.01218860397 | F128: 83.43003408 | G128: 721.500527 | H128: 3.792903474e-06 | I128: 3213.528646 | J128: 4 | M128: 12.1 | N128: 83.43003408 | O128: 996.8895801 | P128: 0.0436481506 | Q128: 83.43003408 | R128: 864.0542049 | S128: 3.792903474e-06 | T128: 11507.8464 | U128: 4 | X128: 12.1 | Y128: 83.43003408 | Z128: 996.8895801 | AA128: 0.02787116452 | AB128: 83.43003408 | AC128: 793.1115697 | AD128: 3.792903474e-06 | AE128: 7348.239868 | AF128: 4
B129: 12.2 | C129: 83.84315195 | D129: 996.8895801 | E129: 0.0123961544 | F129: 83.84315195 | G129: 724.8526462 | H129: 3.761814101e-06 | I129: 3295.259698 | J129: 4 | M129: 12.2 | N129: 83.84315195 | O129: 996.8895801 | P129: 0.04396090677 | Q129: 83.84315195 | R129: 865.3953028 | S129: 3.761814101e-06 | T129: 11686.09229 | U129: 4 | X129: 12.2 | Y129: 83.84315195 | Z129: 996.8895801 | AA129: 0.02810635744 | AB129: 83.84315195 | AC129: 794.7556226 | AD129: 3.761814101e-06 | AE129: 7471.490267 | AF129: 4
B130: 12.3 | C130: 84.25831544 | D130: 996.8895801 | E130: 0.0126013452 | F130: 84.25831544 | G130: 728.1245542 | H130: 3.731230247e-06 | I130: 3377.262825 | J130: 4 | M130: 12.3 | N130: 84.25831544 | O130: 996.8895801 | P130: 0.04427248511 | Q130: 84.25831544 | R130: 866.7208065 | S130: 3.731230247e-06 | T130: 11865.38546 | U130: 4 | X130: 12.3 | Y130: 84.25831544 | Z130: 996.8895801 | AA130: 0.02834024546 | AB130: 84.25831544 | AC130: 796.3783203 | AD130: 3.731230247e-06 | AE130: 7595.415878 | AF130: 4
B131: 12.4 | C131: 84.67553469 | D131: 996.8895801 | E131: 0.01280426831 | F131: 84.67553469 | G131: 731.3202626 | H131: 3.70113968e-06 | I131: 3459.547441 | J131: 4 | M131: 12.4 | N131: 84.67553469 | O131: 996.8895801 | P131: 0.04458291461 | Q131: 84.67553469 | R131: 868.0310766 | S131: 3.70113968e-06 | T131: 12045.72604 | U131: 4 | X131: 12.4 | Y131: 84.67553469 | Z131: 996.8895801 | AA131: 0.02857285825 | AB131: 84.67553469 | AC131: 797.9802335 | AD131: 3.70113968e-06 | AE131: 7720.016188 | AF131: 4
B132: 12.5 | C132: 85.09481986 | D132: 996.8895801 | E132: 0.01300484954 | F132: 85.09481986 | G132: 734.4416673 | H132: 3.671530563e-06 | I132: 3542.07852 | J132: 4 | M132: 12.5 | N132: 85.09481986 | O132: 996.8895801 | P132: 0.04489222332 | Q132: 85.09481986 | R132: 869.3264603 | S132: 3.671530563e-06 | T132: 12227.11416 | U132: 4 | X132: 12.5 | Y132: 85.09481986 | Z132: 996.8895801 | AA132: 0.02880422433 | AB132: 85.09481986 | AC132: 799.5619091 | AD132: 3.671530563e-06 | AE132: 7845.290633 | AF132: 4
B133: 12.6 | C133: 85.5161812 | D133: 996.8895801 | E133: 0.01320350499 | F133: 85.5161812 | G133: 737.4960439 | H133: 3.642391431e-06 | I133: 3624.954989 | J133: 4 | M133: 12.6 | N133: 85.5161812 | O133: 996.8895801 | P133: 0.0452004383 | Q133: 85.5161812 | R133: 870.6072927 | S133: 3.642391431e-06 | T133: 12409.54992 | U133: 4 | X133: 12.6 | Y133: 85.5161812 | Z133: 996.8895801 | AA133: 0.02903437118 | AB133: 85.5161812 | AC133: 801.1238716 | AD133: 3.642391431e-06 | AE133: 7971.238601 | AF133: 4
B134: 12.7 | C134: 85.93962898 | D134: 996.8895801 | E134: 0.01340013573 | F134: 85.93962898 | G134: 740.4845387 | H134: 3.613711184e-06 | I134: 3708.136884 | J134: 4 | M134: 12.7 | N134: 85.93962898 | O134: 996.8895801 | P134: 0.04550758575 | Q134: 85.93962898 | R134: 871.8738969 | S134: 3.613711184e-06 | T134: 12593.03343 | U134: 4 | X134: 12.7 | Y134: 85.93962898 | Z134: 996.8895801 | AA134: 0.02926332521 | AB134: 85.93962898 | AC134: 802.6666243 | AD134: 3.613711184e-06 | AE134: 8097.859436 | AF134: 4
B135: 12.8 | C135: 86.36517354 | D135: 996.8895801 | E135: 0.01359480901 | F135: 86.36517354 | G135: 743.4100933 | H135: 3.585479065e-06 | I135: 3791.629728 | J135: 4 | M135: 12.8 | N135: 86.36517354 | O135: 996.8895801 | P135: 0.04581369099 | Q135: 86.36517354 | R135: 873.1265845 | S135: 3.585479065e-06 | T135: 12777.56477 | U135: 4 | X135: 12.8 | Y135: 86.36517354 | Z135: 996.8895801 | AA135: 0.0294911119 | AB135: 86.36517354 | AC135: 804.1906504 | AD135: 3.585479065e-06 | AE135: 8225.152445 | AF135: 4
B136: 12.9 | C136: 86.79282524 | D136: 996.8895801 | E136: 0.01378759167 | F136: 86.79282524 | G136: 746.2754725 | H136: 3.557684654e-06 | I136: 3875.439511 | J136: 4 | M136: 12.9 | N136: 86.79282524 | O136: 996.8895801 | P136: 0.04611877851 | Q136: 86.79282524 | R136: 874.3656566 | S136: 3.557684654e-06 | T136: 12963.14401 | U136: 4 | X136: 12.9 | Y136: 86.79282524 | Z136: 996.8895801 | AA136: 0.02971775579 | AB136: 86.79282524 | AC136: 805.6964144 | AD136: 3.557684654e-06 | AE136: 8353.116895 | AF136: 4
B137: 13 | C137: 87.22259454 | D137: 996.8895801 | E137: 0.01397854672 | F137: 87.22259454 | G137: 749.0832559 | H137: 3.530317849e-06 | I137: 3959.57172 | J137: 4 | M137: 13 | N137: 87.22259454 | O137: 996.8895801 | P137: 0.04642287204 | Q137: 87.22259454 | R137: 875.5914039 | S137: 3.530317849e-06 | T137: 13149.77122 | U137: 4 | X137: 13 | Y137: 87.22259454 | Z137: 996.8895801 | AA137: 0.02994328056 | AB137: 87.22259454 | AC137: 807.1843625 | AD137: 3.530317849e-06 | AE137: 8481.752023 | AF137: 4
B138: 13.1 | C138: 87.65449192 | D138: 996.8895801 | E138: 0.01416773356 | F138: 87.65449192 | G138: 751.8358549 | H138: 3.503368858e-06 | I138: 4044.031369 | J138: 4 | M138: 13.1 | N138: 87.65449192 | O138: 996.8895801 | P138: 0.04672599454 | Q138: 87.65449192 | R138: 876.8041075 | S138: 3.503368858e-06 | T138: 13337.44645 | U138: 4 | X138: 13.1 | Y138: 87.65449192 | Z138: 996.8895801 | AA138: 0.03016770905 | AB138: 87.65449192 | AC138: 808.6549242 | AD138: 3.503368858e-06 | AE138: 8611.057036 | AF138: 4
B139: 13.2 | C139: 88.0885279 | D139: 996.8895801 | E139: 0.01435520831 | F139: 88.0885279 | G139: 754.5355263 | H139: 3.476828184e-06 | I139: 4128.823038 | J139: 4 | M139: 13.2 | N139: 88.0885279 | O139: 996.8895801 | P139: 0.04702816829 | Q139: 88.0885279 | R139: 878.0040389 | S139: 3.476828184e-06 | T139: 13526.16977 | U139: 4 | X139: 13.2 | Y139: 88.0885279 | Z139: 996.8895801 | AA139: 0.03039106333 | AB139: 88.0885279 | AC139: 810.1085127 | AD139: 3.476828184e-06 | AE139: 8741.031113 | AF139: 4
B140: 13.3 | C140: 88.52471309 | D140: 996.8895801 | E140: 0.01454102403 | F140: 88.52471309 | G140: 757.1843864 | H140: 3.450686619e-06 | I140: 4213.950914 | J140: 4 | M140: 13.3 | N140: 88.52471309 | O140: 996.8895801 | P140: 0.04732941483 | Q140: 88.52471309 | R140: 879.1914609 | S140: 3.450686619e-06 | T140: 13715.94122 | U140: 4 | X140: 13.3 | Y140: 88.52471309 | Z140: 996.8895801 | AA140: 0.03061336472 | AB140: 88.52471309 | AC140: 811.545526 | AD140: 3.450686619e-06 | AE140: 8871.673407 | AF140: 4
B141: 13.4 | C141: 88.96305812 | D141: 996.8895801 | E141: 0.01472523097 | F141: 88.96305812 | G141: 759.784422 | H141: 3.424935227e-06 | I141: 4299.418821 | J141: 4 | M141: 13.4 | N141: 88.96305812 | O141: 996.8895801 | P141: 0.04762975511 | Q141: 88.96305812 | R141: 880.3666276 | S141: 3.424935227e-06 | T141: 13906.76085 | U141: 4 | X141: 13.4 | Y141: 88.96305812 | Z141: 996.8895801 | AA141: 0.03083463379 | AB141: 88.96305812 | AC141: 812.9663474 | AD141: 3.424935227e-06 | AE141: 9002.983051 | AF141: 4
B142: 13.5 | C142: 89.4035737 | D142: 996.8895801 | E142: 0.01490787676 | F142: 89.4035737 | G142: 762.337501 | H142: 3.399565336e-06 | I142: 4385.230254 | J142: 4 | M142: 13.5 | N142: 89.4035737 | O142: 996.8895801 | P142: 0.04792920939 | Q142: 89.4035737 | R142: 881.5297852 | S142: 3.399565336e-06 | T142: 14098.62869 | U142: 4 | X142: 13.5 | Y142: 89.4035737 | Z142: 996.8895801 | AA142: 0.03105489049 | AB142: 89.4035737 | AC142: 814.3713466 | AD142: 3.399565336e-06 | AE142: 9134.959154 | AF142: 4
B143: 13.6 | C143: 89.84627055 | D143: 996.8895801 | E143: 0.01508900661 | F143: 89.84627055 | G143: 764.8453824 | H143: 3.374568532e-06 | I143: 4471.388407 | J143: 4 | M143: 13.6 | N143: 89.84627055 | O143: 996.8895801 | P143: 0.04822779737 | Q143: 89.84627055 | R143: 882.6811719 | S143: 3.374568532e-06 | T143: 14291.5448 | U143: 4 | X143: 13.6 | Y143: 89.84627055 | Z143: 996.8895801 | AA143: 0.03127415406 | AB143: 89.84627055 | AC143: 815.7608801 | AD143: 3.374568532e-06 | AE143: 9267.600811 | AF143: 4
B144: 13.7 | C144: 90.2911595 | D144: 996.8895801 | E144: 0.01526866349 | F144: 90.2911595 | G144: 767.309724 | H144: 3.349936645e-06 | I144: 4557.896195 | J144: 4 | M144: 13.7 | N144: 90.2911595 | O144: 996.8895801 | P144: 0.04852553815 | Q144: 90.2911595 | R144: 883.8210186 | S144: 3.349936645e-06 | T144: 14485.50922 | U144: 4 | X144: 13.7 | Y144: 90.2911595 | Z144: 996.8895801 | AA144: 0.03149244317 | AB144: 90.2911595 | AC144: 817.1352918 | AD144: 3.349936645e-06 | AE144: 9400.907095 | AF144: 4
B145: 13.8 | C145: 90.73825139 | D145: 996.8895801 | E145: 0.01544688826 | F145: 90.73825139 | G145: 769.7320909 | H145: 3.325661742e-06 | I145: 4644.756279 | J145: 4 | M145: 13.8 | N145: 90.73825139 | O145: 996.8895801 | P145: 0.0488224503 | Q145: 90.73825139 | R145: 884.9495489 | S145: 3.325661742e-06 | T145: 14680.52198 | U145: 4 | X145: 13.8 | Y145: 90.73825139 | Z145: 996.8895801 | AA145: 0.03170977588 | AB145: 90.73825139 | AC145: 818.4949137 | AD145: 3.325661742e-06 | AE145: 9534.877068 | AF145: 4
B146: 13.9 | C146: 91.18755713 | D146: 996.8895801 | E146: 0.01562371985 | F146: 91.18755713 | G146: 772.1139619 | H146: 3.301736118e-06 | I146: 4731.971087 | J146: 4 | M146: 13.9 | N146: 91.18755713 | O146: 996.8895801 | P146: 0.04911855183 | Q146: 91.18755713 | R146: 886.0669796 | S146: 3.301736118e-06 | T146: 14876.58313 | U146: 4 | X146: 13.9 | Y146: 91.18755713 | Z146: 996.8895801 | AA146: 0.03190893043 | AB146: 91.18755713 | AC146: 819.8110296 | AD146: 3.301736118e-06 | AE146: 9664.28851 | AF146: 3
B147: 14 | C147: 91.63908769 | D147: 996.8895801 | E147: 0.01579919535 | F147: 91.63908769 | G147: 774.4567361 | H147: 3.278152288e-06 | I147: 4819.542829 | J147: 4 | M147: 14 | N147: 91.63908769 | O147: 996.8895801 | P147: 0.04941386026 | Q147: 91.63908769 | R147: 887.1735212 | S147: 3.278152288e-06 | T147: 15073.69271 | U147: 4 | X147: 14 | Y147: 91.63908769 | Z147: 996.8895801 | AA147: 0.03214014656 | AB147: 91.63908769 | AC147: 821.1685857 | AD147: 3.278152288e-06 | AE147: 9804.348222 | AF147: 4
B148: 14.1 | C148: 92.09285407 | D148: 996.8895801 | E148: 0.01597335018 | F148: 92.09285407 | G148: 776.7617385 | H148: 3.254902981e-06 | I148: 4907.473517 | J148: 4 | M148: 14.1 | N148: 92.09285407 | O148: 996.8895801 | P148: 0.04970839261 | Q148: 92.09285407 | R148: 888.2693775 | S148: 3.254902981e-06 | T148: 15271.85077 | U148: 4 | X148: 14.1 | Y148: 92.09285407 | Z148: 996.8895801 | AA148: 0.03233870526 | AB148: 92.09285407 | AC148: 822.4597072 | AD148: 3.254902981e-06 | AE148: 9935.382235 | AF148: 3
B149: 14.2 | C149: 92.54886735 | D149: 996.8895801 | E149: 0.01614621814 | F149: 92.54886735 | G149: 779.0302255 | H149: 3.231981129e-06 | I149: 4995.76498 | J149: 4 | M149: 14.2 | N149: 92.54886735 | O149: 996.8895801 | P149: 0.05000216542 | Q149: 92.54886735 | R149: 889.3547466 | S149: 3.231981129e-06 | T149: 15471.05736 | U149: 4 | X149: 14.2 | Y149: 92.54886735 | Z149: 996.8895801 | AA149: 0.03256833955 | AB149: 92.54886735 | AC149: 823.7892863 | AD149: 3.231981129e-06 | AE149: 10076.89657 | AF149: 4
B150: 14.3 | C150: 93.00713866 | D150: 996.8895801 | E150: 0.01631783155 | F150: 93.00713866 | G150: 781.2633892 | H150: 3.209379863e-06 | I150: 5084.418876 | J150: 4 | M150: 14.3 | N150: 93.00713866 | O150: 996.8895801 | P150: 0.0502951948 | Q150: 93.00713866 | R150: 890.4298207 | S150: 3.209379863e-06 | T150: 15671.31251 | U150: 4 | X150: 14.3 | Y150: 93.00713866 | Z150: 996.8895801 | AA150: 0.03276514871 | AB150: 93.00713866 | AC150: 825.0544407 | AD150: 3.209379863e-06 | AE150: 10209.18374 | AF150: 3
B151: 14.4 | C151: 93.46767918 | D151: 996.8895801 | E151: 0.01648822133 | F151: 93.46767918 | G151: 783.4623622 | H151: 3.187092502e-06 | I151: 5173.436705 | J151: 4 | M151: 14.4 | N151: 93.46767918 | O151: 996.8895801 | P151: 0.05058749639 | Q151: 93.46767918 | R151: 891.4947864 | S151: 3.187092502e-06 | T151: 15872.6163 | U151: 4 | X151: 14.4 | Y151: 93.46767918 | Z151: 996.8895801 | AA151: 0.03299305515 | AB151: 93.46767918 | AC151: 826.3568507 | AD151: 3.187092502e-06 | AE151: 10352.08584 | AF151: 4
B152: 14.5 | C152: 93.93050014 | D152: 996.8895801 | E152: 0.0166574171 | F152: 93.93050014 | G152: 785.6282215 | H152: 3.165112554e-06 | I152: 5262.819825 | J152: 4 | M152: 14.5 | N152: 93.93050014 | O152: 996.8895801 | P152: 0.05087908544 | Q152: 93.93050014 | R152: 892.549825 | S152: 3.165112554e-06 | T152: 16074.96876 | U152: 4 | X152: 14.5 | Y152: 93.93050014 | Z152: 996.8895801 | AA152: 0.03318815698 | AB152: 93.93050014 | AC152: 827.5970581 | AD152: 3.165112554e-06 | AE152: 10485.61668 | AF152: 3
B153: 14.6 | C153: 94.39561284 | D153: 996.8895801 | E153: 0.01682544721 | F153: 94.39561284 | G153: 787.761992 | H153: 3.143433701e-06 | I153: 5352.569455 | J153: 4 | M153: 14.6 | N153: 94.39561284 | O153: 996.8895801 | P153: 0.05116997677 | Q153: 94.39561284 | R153: 893.5951127 | S153: 3.143433701e-06 | T153: 16278.36997 | U153: 4 | X153: 14.6 | Y153: 94.39561284 | Z153: 996.8895801 | AA153: 0.03341439225 | AB153: 94.39561284 | AC153: 828.8733827 | AD153: 3.143433701e-06 | AE153: 10629.90202 | AF153: 4
B154: 14.7 | C154: 94.86302862 | D154: 996.8895801 | E154: 0.01699233889 | F154: 94.86302862 | G154: 789.8646498 | H154: 3.122049798e-06 | I154: 5442.686691 | J154: 4 | M154: 14.7 | N154: 94.86302862 | O154: 996.8895801 | P154: 0.05146018483 | Q154: 94.86302862 | R154: 894.6308207 | S154: 3.122049798e-06 | T154: 16482.81999 | U154: 4 | X154: 14.7 | Y154: 94.86302862 | Z154: 996.8895801 | AA154: 0.0336078421 | AB154: 94.86302862 | AC154: 830.0896257 | AD154: 3.122049798e-06 | AE154: 10764.67202 | AF154: 3
B155: 14.8 | C155: 95.33275889 | D155: 996.8895801 | E155: 0.01715811824 | F155: 95.33275889 | G155: 791.9371257 | H155: 3.100954867e-06 | I155: 5533.172514 | J155: 4 | M155: 14.8 | N155: 95.33275889 | O155: 996.8895801 | P155: 0.05174972367 | Q155: 95.33275889 | R155: 895.6571155 | S155: 3.100954867e-06 | T155: 16688.31888 | U155: 4 | X155: 14.8 | Y155: 95.33275889 | Z155: 996.8895801 | AA155: 0.03383246236 | AB155: 95.33275889 | AC155: 831.340886 | AD155: 3.100954867e-06 | AE155: 10910.33691 | AF155: 4
B156: 14.9 | C156: 95.80481511 | D156: 996.8895801 | E156: 0.01732281034 | F156: 95.80481511 | G156: 793.9803077 | H156: 3.08014309e-06 | I156: 5624.027794 | J156: 4 | M156: 14.9 | N156: 95.80481511 | O156: 996.8895801 | P156: 0.052038607 | Q156: 95.80481511 | R156: 896.6741591 | S156: 3.08014309e-06 | T156: 16894.86673 | U156: 4 | X156: 14.9 | Y156: 95.80481511 | Z156: 996.8895801 | AA156: 0.0340243128 | AB156: 95.80481511 | AC156: 832.5340879 | AD156: 3.08014309e-06 | AE156: 11046.34162 | AF156: 3
B157: 15 | C157: 96.2792088 | D157: 996.8895801 | E157: 0.01747911649 | F157: 96.2792088 | G157: 795.9672759 | H157: 3.059608802e-06 | I157: 5712.859918 | J157: 3 | M157: 15 | N157: 96.2792088 | O157: 996.8895801 | P157: 0.05232684815 | Q157: 96.2792088 | R157: 897.6821088 | S157: 3.059608802e-06 | T157: 17102.46359 | U157: 4 | X157: 15 | Y157: 96.2792088 | Z157: 996.8895801 | AA157: 0.03422864922 | AB157: 96.2792088 | AC157: 833.7350386 | AD157: 3.059608802e-06 | AE157: 11187.26328 | AF157: 3
B158: 15.1 | C158: 96.75595152 | D158: 996.8895801 | E158: 0.01764879428 | F158: 96.75595152 | G158: 797.9812757 | H158: 3.039346492e-06 | I158: 5806.772715 | J158: 4 | M158: 15.1 | N158: 96.75595152 | O158: 996.8895801 | P158: 0.05261446014 | Q158: 96.75595152 | R158: 898.681118 | S158: 3.039346492e-06 | T158: 17311.10957 | U158: 4 | X158: 15.1 | Y158: 96.75595152 | Z158: 996.8895801 | AA158: 0.03443446076 | AB158: 96.75595152 | AC158: 834.9278504 | AD158: 3.039346492e-06 | AE158: 11329.56076 | AF158: 3
B159: 15.2 | C159: 97.23505492 | D159: 996.8895801 | E159: 0.0178032412 | F159: 97.23505492 | G159: 799.9156538 | H159: 3.019350792e-06 | I159: 5896.380524 | J159: 3 | M159: 15.2 | N159: 97.23505492 | O159: 996.8895801 | P159: 0.05290145565 | Q159: 97.23505492 | R159: 899.671336 | S159: 3.019350792e-06 | T159: 17520.80474 | U159: 4 | X159: 15.2 | Y159: 97.23505492 | Z159: 996.8895801 | AA159: 0.03463989958 | AB159: 97.23505492 | AC159: 836.1100613 | AD159: 3.019350792e-06 | AE159: 11472.63169 | AF159: 3
B160: 15.3 | C160: 97.71653068 | D160: 996.8895801 | E160: 0.01797093374 | F160: 97.71653068 | G160: 801.8756459 | H160: 2.999616473e-06 | I160: 5991.07716 | J160: 4 | M160: 15.3 | N160: 97.71653068 | O160: 996.8895801 | P160: 0.05318784704 | Q160: 97.71653068 | R160: 900.6529079 | S160: 2.999616473e-06 | T160: 17731.54919 | U160: 4 | X160: 15.3 | Y160: 97.71653068 | Z160: 996.8895801 | AA160: 0.03484466165 | AB160: 97.71653068 | AC160: 837.2814304 | AD160: 2.999616473e-06 | AE160: 11616.37228 | AF160: 3
B161: 15.4 | C161: 98.20039054 | D161: 996.8895801 | E161: 0.01812339625 | F161: 98.20039054 | G161: 803.7595263 | H161: 2.980138444e-06 | I161: 6081.394067 | J161: 3 | M161: 15.4 | N161: 98.20039054 | O161: 996.8895801 | P161: 0.05347364636 | Q161: 98.20039054 | R161: 901.6259753 | S161: 2.980138444e-06 | T161: 17943.34302 | U161: 4 | X161: 15.4 | Y161: 98.20039054 | Z161: 996.8895801 | AA161: 0.03504870442 | AB161: 98.20039054 | AC161: 838.4420826 | AD161: 2.980138444e-06 | AE161: 11760.76383 | AF161: 3
B162: 15.5 | C162: 98.68664632 | D162: 996.8895801 | E162: 0.01828147088 | F162: 98.68664632 | G162: 805.6421008 | H162: 2.960911744e-06 | I162: 6174.270787 | J162: 3 | M162: 15.5 | N162: 98.68664632 | O162: 996.8895801 | P162: 0.05375886538 | Q162: 98.68664632 | R162: 902.5906759 | S162: 2.960911744e-06 | T162: 18156.18634 | U162: 4 | X162: 15.5 | Y162: 98.68664632 | Z162: 996.8895801 | AA162: 0.03525202971 | AB162: 98.68664632 | AC162: 839.5921993 | AD162: 2.960911744e-06 | AE162: 11905.80225 | AF162: 3
B163: 15.6 | C163: 99.17530988 | D163: 996.8895801 | E163: 0.01843911833 | F163: 99.17530988 | G163: 807.5023653 | H163: 2.941931541e-06 | I163: 6267.691166 | J163: 3 | M163: 15.6 | N163: 99.17530988 | O163: 996.8895801 | P163: 0.05404351556 | Q163: 99.17530988 | R163: 903.547144 | S163: 2.941931541e-06 | T163: 18370.07925 | U163: 4 | X163: 15.6 | Y163: 99.17530988 | Z163: 996.8895801 | AA163: 0.03545464672 | AB163: 99.17530988 | AC163: 840.7319671 | AD163: 2.941931541e-06 | AE163: 12051.48598 | AF163: 3
B164: 15.7 | C164: 99.66639314 | D164: 996.8895801 | E164: 0.01859588767 | F164: 99.66639314 | G164: 809.3393026 | H164: 2.923193123e-06 | I164: 6361.498159 | J164: 3 | M164: 15.7 | N164: 99.66639314 | O164: 996.8895801 | P164: 0.05432760811 | Q164: 99.66639314 | R164: 904.4955106 | S164: 2.923193123e-06 | T164: 18585.02187 | U164: 4 | X164: 15.7 | Y164: 99.66639314 | Z164: 996.8895801 | AA164: 0.03565656572 | AB164: 99.66639314 | AC164: 841.8615691 | AD164: 2.923193123e-06 | AE164: 12197.8139 | AF164: 3
B165: 15.8 | C165: 100.1599081 | D165: 996.8895801 | E165: 0.01875176016 | F165: 100.1599081 | G165: 811.1533885 | H165: 2.904691901e-06 | I165: 6455.679569 | J165: 3 | M165: 15.8 | N165: 100.1599081 | O165: 996.8895801 | P165: 0.05461115396 | Q165: 100.1599081 | R165: 905.4359031 | S165: 2.904691901e-06 | T165: 18801.0143 | U165: 4 | X165: 15.8 | Y165: 100.1599081 | Z165: 996.8895801 | AA165: 0.03585779693 | AB165: 100.1599081 | AC165: 842.9811837 | AD165: 2.904691901e-06 | AE165: 12344.78497 | AF165: 3
B166: 15.9 | C166: 100.6558667 | D166: 996.8895801 | E166: 0.01890675024 | F166: 100.6558667 | G166: 812.945191 | H166: 2.886423398e-06 | I166: 6550.234541 | J166: 3 | M166: 15.9 | N166: 100.6558667 | O166: 996.8895801 | P166: 0.05489416376 | Q166: 100.6558667 | R166: 906.3684461 | S166: 2.886423398e-06 | T166: 19018.05667 | U166: 4 | X166: 15.9 | Y166: 100.6558667 | Z166: 996.8895801 | AA166: 0.03605835036 | AB166: 100.6558667 | AC166: 844.0909843 | AD166: 2.886423398e-06 | AE166: 12492.39816 | AF166: 3
B167: 16 | C167: 101.1542812 | D167: 996.8895801 | E167: 0.01906087447 | F167: 101.1542812 | G167: 814.7152649 | H167: 2.868383252e-06 | I167: 6645.163074 | J167: 3 | M167: 16 | N167: 101.1542812 | O167: 996.8895801 | P167: 0.05517664794 | Q167: 101.1542812 | R167: 907.2932608 | S167: 2.868383252e-06 | T167: 19236.14911 | U167: 4 | X167: 16 | Y167: 101.1542812 | Z167: 996.8895801 | AA167: 0.03625823578 | AB167: 101.1542812 | AC167: 845.1911399 | AD167: 2.868383252e-06 | AE167: 12640.65245 | AF167: 3
B168: 16.1 | C168: 101.6551637 | D168: 996.8895801 | E168: 0.01921414904 | F168: 101.6551637 | G168: 816.4641442 | H168: 2.850567207e-06 | I168: 6740.465194 | J168: 3 | M168: 16.1 | N168: 101.6551637 | O168: 996.8895801 | P168: 0.05545861665 | Q168: 101.6551637 | R168: 908.2104655 | S168: 2.850567207e-06 | T168: 19455.29175 | U168: 4 | X168: 16.1 | Y168: 101.6551637 | Z168: 996.8895801 | AA168: 0.03645746275 | AB168: 101.6551637 | AC168: 846.2818148 | AD168: 2.850567207e-06 | AE168: 12789.54682 | AF168: 3
B169: 16.2 | C169: 102.1585264 | D169: 996.8895801 | E169: 0.01936658966 | F169: 102.1585264 | G169: 818.192343 | H169: 2.832971113e-06 | I169: 6836.140886 | J169: 3 | M169: 16.2 | N169: 102.1585264 | O169: 996.8895801 | P169: 0.05574007985 | Q169: 102.1585264 | R169: 909.1201759 | S169: 2.832971113e-06 | T169: 19675.48472 | U169: 4 | X169: 16.2 | Y169: 102.1585264 | Z169: 996.8895801 | AA169: 0.03665604056 | AB169: 102.1585264 | AC169: 847.3631689 | AD169: 2.832971113e-06 | AE169: 12939.08024 | AF169: 3
B170: 16.3 | C170: 102.6643815 | D170: 996.8895801 | E170: 0.01951821151 | F170: 102.6643815 | G170: 819.9003561 | H170: 2.815590922e-06 | I170: 6932.190098 | J170: 3 | M170: 16.3 | N170: 102.6643815 | O170: 996.8895801 | P170: 0.05598083998 | Q170: 102.6643815 | R170: 909.998075 | S170: 2.815590922e-06 | T170: 19882.44796 | U170: 3 | X170: 16.3 | Y170: 102.6643815 | Z170: 996.8895801 | AA170: 0.03685397831 | AB170: 102.6643815 | AC170: 848.4353581 | AD170: 2.815590922e-06 | AE170: 13089.25172 | AF170: 3
B171: 16.4 | C171: 103.1727415 | D171: 996.8895801 | E171: 0.01966902933 | F171: 103.1727415 | G171: 821.5886601 | H171: 2.798422685e-06 | I171: 7028.612736 | J171: 3 | M171: 16.4 | N171: 103.1727415 | O171: 996.8895801 | P171: 0.05629063259 | Q171: 103.1727415 | R171: 910.9110503 | S171: 2.798422685e-06 | T171: 20115.12874 | U171: 4 | X171: 16.4 | Y171: 103.1727415 | Z171: 996.8895801 | AA171: 0.03705128488 | AB171: 103.1727415 | AC171: 849.4985342 | AD171: 2.798422685e-06 | AE171: 13240.06022 | AF171: 3
B172: 16.5 | C172: 103.6836187 | D172: 996.8895801 | E172: 0.01981905736 | F172: 103.6836187 | G172: 823.2577145 | H172: 2.781462548e-06 | I172: 7125.408673 | J172: 3 | M172: 16.5 | N172: 103.6836187 | O172: 996.8895801 | P172: 0.05657856018 | Q172: 103.6836187 | R172: 911.8037071 | S172: 2.781462548e-06 | T172: 20341.29858 | U172: 4 | X172: 16.5 | Y172: 103.6836187 | Z172: 996.8895801 | AA172: 0.03724796895 | AB172: 103.6836187 | AC172: 850.5528451 | AD172: 2.781462548e-06 | AE172: 13391.50476 | AF172: 3
B173: 16.6 | C173: 104.1970256 | D173: 996.8895801 | E173: 0.01996830944 | F173: 104.1970256 | G173: 824.9079622 | H173: 2.764706749e-06 | I173: 7222.577747 | J173: 3 | M173: 16.6 | N173: 104.1970256 | O173: 996.8895801 | P173: 0.05681957661 | Q173: 104.1970256 | R173: 912.6622843 | S173: 2.764706749e-06 | T173: 20551.75531 | U173: 3 | X173: 16.6 | Y173: 104.1970256 | Z173: 996.8895801 | AA173: 0.03744403898 | AB173: 104.1970256 | AC173: 851.5984347 | AD173: 2.764706749e-06 | AE173: 13543.58432 | AF173: 3
B174: 16.7 | C174: 104.7129748 | D174: 996.8895801 | E174: 0.02011679898 | F174: 104.7129748 | G174: 826.5398304 | H174: 2.748151619e-06 | I174: 7320.119763 | J174: 3 | M174: 16.7 | N174: 104.7129748 | O174: 996.8895801 | P174: 0.05712868633 | Q174: 104.7129748 | R174: 913.5536443 | S174: 2.748151619e-06 | T174: 20788.0402 | U174: 4 | X174: 16.7 | Y174: 104.7129748 | Z174: 996.8895801 | AA174: 0.03763950326 | AB174: 104.7129748 | AC174: 852.6354436 | AD174: 2.748151619e-06 | AE174: 13696.29791 | AF174: 3
B175: 16.8 | C175: 105.2314787 | D175: 996.8895801 | E175: 0.02026453897 | F175: 105.2314787 | G175: 828.1537314 | H175: 2.731793574e-06 | I175: 7418.034499 | J175: 3 | M175: 16.8 | N175: 105.2314787 | O175: 996.8895801 | P175: 0.05741558616 | Q175: 105.2314787 | R175: 914.4254017 | S175: 2.731793574e-06 | T175: 21017.542 | U175: 4 | X175: 16.8 | Y175: 105.2314787 | Z175: 996.8895801 | AA175: 0.03783436989 | AB175: 105.2314787 | AC175: 853.6640087 | AD175: 2.731793574e-06 | AE175: 13849.64452 | AF175: 3
B176: 16.9 | C176: 105.7525501 | D176: 996.8895801 | E176: 0.02041154205 | F176: 105.7525501 | G176: 829.7500634 | H176: 2.715629115e-06 | I176: 7516.321704 | J176: 3 | M176: 16.9 | N176: 105.7525501 | O176: 996.8895801 | P176: 0.05765520526 | Q176: 105.7525501 | R176: 915.2644471 | S176: 2.715629115e-06 | T176: 21230.88346 | U176: 3 | X176: 16.9 | Y176: 105.7525501 | Z176: 996.8895801 | AA176: 0.03802864677 | AB176: 105.7525501 | AC176: 854.6842637 | AD176: 2.715629115e-06 | AE176: 14003.62316 | AF176: 3
B177: 17 | C177: 106.2762017 | D177: 996.8895801 | E177: 0.02055782048 | F177: 106.2762017 | G177: 831.3292111 | H177: 2.699654826e-06 | I177: 7614.981102 | J177: 3 | M177: 17 | N177: 106.2762017 | O177: 996.8895801 | P177: 0.05796295959 | Q177: 106.2762017 | R177: 916.1346793 | S177: 2.699654826e-06 | T177: 21470.50765 | U177: 4 | X177: 17 | Y177: 106.2762017 | Z177: 996.8895801 | AA177: 0.03822234165 | AB177: 106.2762017 | AC177: 855.6963387 | AD177: 2.699654826e-06 | AE177: 14158.23285 | AF177: 3
B178: 17.1 | C178: 106.8024462 | D178: 996.8895801 | E178: 0.02070338615 | F178: 106.8024462 | G178: 832.8915459 | H178: 2.68386737e-06 | I178: 7714.01239 | J178: 3 | M178: 17.1 | N178: 106.8024462 | O178: 996.8895801 | P178: 0.05820683941 | Q178: 106.8024462 | R178: 916.9639767 | S178: 2.68386737e-06 | T178: 21687.67356 | U178: 3 | X178: 17.1 | Y178: 106.8024462 | Z178: 996.8895801 | AA178: 0.03841546209 | AB178: 106.8024462 | AC178: 856.7003608 | AD178: 2.68386737e-06 | AE178: 14313.47261 | AF178: 3
B179: 17.2 | C179: 107.3312965 | D179: 996.8895801 | E179: 0.02084825064 | F179: 107.3312965 | G179: 834.4374273 | H179: 2.66826349e-06 | I179: 7813.415246 | J179: 3 | M179: 17.2 | N179: 107.3312965 | O179: 996.8895801 | P179: 0.05851606751 | Q179: 107.3312965 | R179: 917.8218726 | S179: 2.66826349e-06 | T179: 21930.3932 | U179: 4 | X179: 17.2 | Y179: 107.3312965 | Z179: 996.8895801 | AA179: 0.03860801551 | AB179: 107.3312965 | AC179: 857.6964543 | AD179: 2.66826349e-06 | AE179: 14469.34144 | AF179: 3
B180: 17.3 | C180: 107.8627655 | D180: 996.8895801 | E180: 0.02099242518 | F180: 107.8627655 | G180: 835.9672027 | H180: 2.652840002e-06 | I180: 7913.189325 | J180: 3 | M180: 17.3 | N180: 107.8627655 | O180: 996.8895801 | P180: 0.058759652 | Q180: 107.8627655 | R180: 918.6391565 | S180: 2.652840002e-06 | T180: 22149.71576 | U180: 3 | X180: 17.3 | Y180: 107.8627655 | Z180: 996.8895801 | AA180: 0.03880000914 | AB180: 107.8627655 | AC180: 858.68474 | AD180: 2.652840002e-06 | AE180: 14625.83839 | AF180: 3
B181: 17.4 | C181: 108.3968661 | D181: 996.8895801 | E181: 0.02113592073 | F181: 108.3968661 | G181: 837.4812083 | H181: 2.637593795e-06 | I181: 8013.334261 | J181: 3 | M181: 17.4 | N181: 108.3968661 | O181: 996.8895801 | P181: 0.05906833252 | Q181: 108.3968661 | R181: 919.4839446 | S181: 2.637593795e-06 | T181: 22394.7799 | U181: 4 | X181: 17.4 | Y181: 108.3968661 | Z181: 996.8895801 | AA181: 0.03899145009 | AB181: 108.3968661 | AC181: 859.6653363 | AD181: 2.637593795e-06 | AE181: 14782.96247 | AF181: 3
B182: 17.5 | C182: 108.9336115 | D182: 996.8895801 | E182: 0.0212787479 | F182: 108.9336115 | G182: 838.9797696 | H182: 2.622521831e-06 | I182: 8113.849673 | J182: 3 | M182: 17.5 | N182: 108.9336115 | O182: 996.8895801 | P182: 0.05931116064 | Q182: 108.9336115 | R182: 920.2892766 | S182: 2.622521831e-06 | T182: 22616.0789 | U182: 3 | X182: 17.5 | Y182: 108.9336115 | Z182: 996.8895801 | AA182: 0.0391823453 | AB182: 108.9336115 | AC182: 860.6383586 | AD182: 2.622521831e-06 | AE182: 14940.71273 | AF182: 3
B183: 17.6 | C183: 109.4730146 | D183: 996.8895801 | E183: 0.02142091704 | F183: 109.4730146 | G183: 840.4632018 | H183: 2.607621138e-06 | I183: 8214.735158 | J183: 3 | M183: 17.6 | N183: 109.4730146 | O183: 996.8895801 | P183: 0.05961910227 | Q183: 109.4730146 | R183: 921.1211967 | S183: 2.607621138e-06 | T183: 22863.40657 | U183: 4 | X183: 17.6 | Y183: 109.4730146 | Z183: 996.8895801 | AA183: 0.03937270156 | AB183: 109.4730146 | AC183: 861.6039196 | AD183: 2.607621138e-06 | AE183: 15099.0882 | AF183: 3
B184: 17.7 | C184: 110.0150887 | D184: 996.8895801 | E184: 0.02156243824 | F184: 110.0150887 | G184: 841.93181 | H184: 2.592888816e-06 | I184: 8315.990301 | J184: 3 | M184: 17.7 | N184: 110.0150887 | O184: 996.8895801 | P184: 0.05986114864 | Q184: 110.0150887 | R184: 921.9148663 | S184: 2.592888816e-06 | T184: 23086.66237 | U184: 3 | X184: 17.7 | Y184: 110.0150887 | Z184: 996.8895801 | AA184: 0.03956252554 | AB184: 110.0150887 | AC184: 862.5621296 | AD184: 2.592888816e-06 | AE184: 15258.08793 | AF184: 3
B185: 17.8 | C185: 110.5598469 | D185: 996.8895801 | E185: 0.02170332129 | F185: 110.5598469 | G185: 843.38589 | H185: 2.578322024e-06 | I185: 8417.614668 | J185: 3 | M185: 17.8 | N185: 110.5598469 | O185: 996.8895801 | P185: 0.06016835601 | Q185: 110.5598469 | R185: 922.73425 | S185: 2.578322024e-06 | T185: 23336.2456 | U185: 4 | X185: 17.8 | Y185: 110.5598469 | Z185: 996.8895801 | AA185: 0.03975182374 | AB185: 110.5598469 | AC185: 863.5130961 | AD185: 2.578322024e-06 | AE185: 15417.71096 | AF185: 3
B186: 17.9 | C186: 111.1073027 | D186: 996.8895801 | E186: 0.02184357575 | F186: 111.1073027 | G186: 844.8257286 | H186: 2.563917991e-06 | I186: 8519.607815 | J186: 3 | M186: 17.9 | N186: 111.1073027 | O186: 996.8895801 | P186: 0.06040964167 | Q186: 111.1073027 | R186: 923.5165589 | S186: 2.563917991e-06 | T186: 23561.45629 | U186: 3 | X186: 17.9 | Y186: 111.1073027 | Z186: 996.8895801 | AA186: 0.03994060258 | AB186: 111.1073027 | AC186: 864.4569243 | AD186: 2.563917991e-06 | AE186: 15577.95636 | AF186: 3
B187: 18 | C187: 111.6574692 | D187: 996.8895801 | E187: 0.02198321092 | F187: 111.6574692 | G187: 846.2516038 | H187: 2.549674002e-06 | I187: 8621.969281 | J187: 3 | M187: 18 | N187: 111.6574692 | O187: 996.8895801 | P187: 0.06071613984 | Q187: 111.6574692 | R187: 924.3237347 | S187: 2.549674002e-06 | T187: 23813.29527 | U187: 4 | X187: 18 | Y187: 111.6574692 | Z187: 996.8895801 | AA187: 0.0401288683 | AB187: 111.6574692 | AC187: 865.3937172 | AD187: 2.549674002e-06 | AE187: 15738.82318 | AF187: 3
B188: 18.1 | C188: 112.21036 | D188: 996.8895801 | E188: 0.02212223587 | F188: 112.21036 | G188: 847.6637853 | H188: 2.535587405e-06 | I188: 8724.698595 | J188: 3 | M188: 18.1 | N188: 112.21036 | O188: 996.8895801 | P188: 0.06095669 | Q188: 112.21036 | R188: 925.0949748 | S188: 2.535587405e-06 | T188: 24040.46095 | U188: 3 | X188: 18.1 | Y188: 112.21036 | Z188: 996.8895801 | AA188: 0.04031662703 | AB188: 112.21036 | AC188: 866.3235751 | AD188: 2.535587405e-06 | AE188: 15900.31049 | AF188: 3
B189: 18.2 | C189: 112.7659885 | D189: 996.8895801 | E189: 0.02226065944 | F189: 112.7659885 | G189: 849.0625348 | H189: 2.521655606e-06 | I189: 8827.795274 | J189: 3 | M189: 18.2 | N189: 112.7659885 | O189: 996.8895801 | P189: 0.06126250526 | Q189: 112.7659885 | R189: 925.8902587 | S189: 2.521655606e-06 | T189: 24294.55676 | U189: 4 | X189: 18.2 | Y189: 112.7659885 | Z189: 996.8895801 | AA189: 0.0405038848 | AB189: 112.7659885 | AC189: 867.2465965 | AD189: 2.521655606e-06 | AE189: 16062.41736 | AF189: 3
B190: 18.3 | C190: 113.3243683 | D190: 996.8895801 | E190: 0.02239849025 | F190: 113.3243683 | G190: 850.4481062 | H190: 2.507876068e-06 | I190: 8931.258823 | J190: 3 | M190: 18.3 | N190: 113.3243683 | O190: 996.8895801 | P190: 0.06150234468 | Q190: 113.3243683 | R190: 926.6507102 | S190: 2.507876068e-06 | T190: 24523.67781 | U190: 3 | X190: 18.3 | Y190: 113.3243683 | Z190: 996.8895801 | AA190: 0.04069064749 | AB190: 113.3243683 | AC190: 868.1628774 | AD190: 2.507876068e-06 | AE190: 16225.14287 | AF190: 3
B191: 18.4 | C191: 113.885513 | D191: 996.8895801 | E191: 0.02253573671 | F191: 113.885513 | G191: 851.8207463 | H191: 2.494246306e-06 | I191: 9035.088739 | J191: 3 | M191: 18.4 | N191: 113.885513 | O191: 996.8895801 | P191: 0.06180750244 | Q191: 113.885513 | R191: 927.4344057 | S191: 2.494246306e-06 | T191: 24780.03166 | U191: 4 | X191: 18.4 | Y191: 113.885513 | Z191: 996.8895801 | AA191: 0.0408769209 | AB191: 113.885513 | AC191: 869.072512 | AD191: 2.494246306e-06 | AE191: 16388.48609 | AF191: 3
B192: 18.5 | C192: 114.4494363 | D192: 996.8895801 | E192: 0.02267240703 | F192: 114.4494363 | G192: 853.1806945 | H192: 2.480763894e-06 | I192: 9139.28451 | J192: 3 | M192: 18.5 | N192: 114.4494363 | O192: 996.8895801 | P192: 0.06204665491 | Q192: 114.4494363 | R192: 928.1843375 | S192: 2.480763894e-06 | T192: 25011.1085 | U192: 3 | X192: 18.5 | Y192: 114.4494363 | Z192: 996.8895801 | AA192: 0.04106271068 | AB192: 114.4494363 | AC192: 869.9755923 | AD192: 2.480763894e-06 | AE192: 16552.44612 | AF192: 3
B193: 18.6 | C193: 115.0161519 | D193: 996.8895801 | E193: 0.0228085092 | F193: 115.0161519 | G193: 854.5281837 | H193: 2.467426454e-06 | I193: 9243.845612 | J193: 3 | M193: 18.6 | N193: 115.0161519 | O193: 996.8895801 | P193: 0.06235117951 | Q193: 115.0161519 | R193: 928.9567358 | S193: 2.467426454e-06 | T193: 25269.72158 | U193: 4 | X193: 18.6 | Y193: 115.0161519 | Z193: 996.8895801 | AA193: 0.0412480224 | AB193: 115.0161519 | AC193: 870.8722083 | AD193: 2.467426454e-06 | AE193: 16717.02204 | AF193: 3
B194: 18.7 | C194: 115.5856738 | D194: 996.8895801 | E194: 0.02294405104 | F194: 115.5856738 | G194: 855.8634398 | H194: 2.45423166e-06 | I194: 9348.771518 | J194: 3 | M194: 18.7 | N194: 115.5856738 | O194: 996.8895801 | P194: 0.06258966788 | Q194: 115.5856738 | R194: 929.6964065 | S194: 2.45423166e-06 | T194: 25502.75465 | U194: 3 | X194: 18.7 | Y194: 115.5856738 | Z194: 996.8895801 | AA194: 0.04143286152 | AB194: 115.5856738 | AC194: 871.7624481 | AD194: 2.45423166e-06 | AE194: 16882.21295 | AF194: 3
B195: 18.8 | C195: 116.1580157 | D195: 996.8895801 | E195: 0.02307904018 | F195: 116.1580157 | G195: 857.186683 | H195: 2.441177236e-06 | I195: 9454.061689 | J195: 3 | M195: 18.8 | N195: 116.1580157 | O195: 996.8895801 | P195: 0.06284698464 | Q195: 116.1580157 | R195: 930.4389871 | S195: 2.441177236e-06 | T195: 25744.53985 | U195: 3 | X195: 18.8 | Y195: 116.1580157 | Z195: 996.8895801 | AA195: 0.04161723338 | AB195: 116.1580157 | AC195: 872.6463981 | AD195: 2.441177236e-06 | AE195: 17048.01797 | AF195: 3
B196: 18.9 | C196: 116.7331917 | D196: 996.8895801 | E196: 0.02321348408 | F196: 116.7331917 | G196: 858.4981268 | H196: 2.428260954e-06 | I196: 9559.715583 | J196: 3 | M196: 18.9 | N196: 116.7331917 | O196: 996.8895801 | P196: 0.06316001732 | Q196: 116.7331917 | R196: 931.1987885 | S196: 2.428260954e-06 | T196: 26010.39118 | U196: 4 | X196: 18.9 | Y196: 116.7331917 | Z196: 996.8895801 | AA196: 0.04180114324 | AB196: 116.7331917 | AC196: 873.5241428 | AD196: 2.428260954e-06 | AE196: 17214.43619 | AF196: 3
B197: 19 | C197: 117.3112158 | D197: 996.8895801 | E197: 0.02334739002 | F197: 117.3112158 | G197: 859.7979794 | H197: 2.415480633e-06 | I197: 9665.732649 | J197: 3 | M197: 19 | N197: 117.3112158 | O197: 996.8895801 | P197: 0.06340004269 | Q197: 117.3112158 | R197: 931.9245305 | S197: 2.415480633e-06 | T197: 26247.38191 | U197: 3 | X197: 19 | Y197: 117.3112158 | Z197: 996.8895801 | AA197: 0.04198459625 | AB197: 117.3112158 | AC197: 874.3957647 | AD197: 2.415480633e-06 | AE197: 17381.46672 | AF197: 3
B198: 19.1 | C198: 117.892102 | D198: 996.8895801 | E198: 0.02348076511 | F198: 117.892102 | G198: 861.086443 | H198: 2.402834138e-06 | I198: 9772.112332 | J198: 3 | M198: 19.1 | N198: 117.892102 | O198: 996.8895801 | P198: 0.0636573179 | Q198: 117.892102 | R198: 932.652332 | S198: 2.402834138e-06 | T198: 26492.59759 | U198: 3 | X198: 19.1 | Y198: 117.892102 | Z198: 996.8895801 | AA198: 0.04216759748 | AB198: 117.892102 | AC198: 875.2613451 | AD198: 2.402834138e-06 | AE198: 17549.1087 | AF198: 3
B199: 19.2 | C199: 118.4758646 | D199: 996.8895801 | E199: 0.02361361631 | F199: 118.4758646 | G199: 862.3637146 | H199: 2.390319377e-06 | I199: 9878.854071 | J199: 3 | M199: 19.2 | N199: 118.4758646 | O199: 996.8895801 | P199: 0.06397006792 | Q199: 118.4758646 | R199: 933.396338 | S199: 2.390319377e-06 | T199: 26762.14256 | U199: 4 | X199: 19.2 | Y199: 118.4758646 | Z199: 996.8895801 | AA199: 0.04235015189 | AB199: 118.4758646 | AC199: 876.1209632 | AD199: 2.390319377e-06 | AE199: 17717.36125 | AF199: 3
B200: 19.3 | C200: 119.0625178 | D200: 996.8895801 | E200: 0.0237459504 | F200: 119.0625178 | G200: 863.6299858 | H200: 2.377934302e-06 | I200: 9985.957299 | J200: 3 | M200: 19.3 | N200: 119.0625178 | O200: 996.8895801 | P200: 0.06420937548 | Q200: 119.0625178 | R200: 934.1077025 | S200: 2.377934302e-06 | T200: 27002.16546 | U200: 3 | X200: 19.3 | Y200: 119.0625178 | Z200: 996.8895801 | AA200: 0.04253226437 | AB200: 119.0625178 | AC200: 876.9746967 | AD200: 2.377934302e-06 | AE200: 17886.22349 | AF200: 3
B201: 19.4 | C201: 119.652076 | D201: 996.8895801 | E201: 0.02387777405 | F201: 119.652076 | G201: 864.8854434 | H201: 2.365676909e-06 | I201: 10093.42145 | J201: 3 | M201: 19.4 | N201: 119.652076 | O201: 996.8895801 | P201: 0.06446570381 | Q201: 119.652076 | R201: 934.8208665 | S201: 2.365676909e-06 | T201: 27250.42611 | U201: 3 | X201: 19.4 | Y201: 119.652076 | Z201: 996.8895801 | AA201: 0.0427139397 | AB201: 119.652076 | AC201: 877.8226219 | AD201: 2.365676909e-06 | AE201: 18055.69456 | AF201: 3
... 7 more rows

Sheet Benzoic acid
E1: Construction of a sublimation curve that can be used in Sheet 1
D2: Reference: M. Colomina, P. Jimenez, C. Turrion, Vapour pressures and enthalpies of sublimation of naphthalene and benzoic acid, The Journal of Chemical Thermodynamics 14 (1982) 779-784.
D3: T [K] | E3: P [Pa] | F3: 1/T | G3: ln P
D4: 293.4 | E4: 0.0604 | F4: =1/D4 -> 0.003408316292 | G4: =LN(E4) -> -2.806766174
D5: 293.67 | E5: 0.063 | F5: =1/D5 -> 0.003405182688 | G5: =LN(E5) -> -2.764620553
D6: 295.5 | E6: 0.0781 | F6: 0.003384094755 | G6: -2.549765222
D7: 295.75 | E7: 0.0814 | F7: 0.00338123415 | G7: -2.508380006
D8: 296.59 | E8: 0.09 | F8: 0.003371657844 | G8: -2.407945609
D9: 298.38 | E9: 0.112 | F9: 0.003351431061 | G9: -2.189256408
D10: 298.95 | E10: 0.119 | F10: 0.003345040977 | G10: -2.128631786
D11: 301.19 | E11: 0.157 | F11: 0.003320163352 | G11: -1.851509474
D12: 301.71 | E12: 0.167 | F12: 0.00331444102 | G12: -1.789761467

Sheet Naphthalene
F2: Construction of a sublimation curve that can be used in Sheet 1
C3: T [oC] | D3: P [mm Hg] | E3: Pcalc [mm Hg] | F3: Pcalc [Pa] | G3: Pcalc [Pa]
C4: 40.33 | D4: 0.35 | E4: =PsubNaphthalene_TinC(C4)/101325*760 -> 0.3543323864 | F4: =PsubNaphthalene_TinC(C4) -> 47.24043296 | G4: =EXP($J$15+$J$16/(C4+273.15+$J$17)) -> 47.24043296 | I4: Reference: A. Hamilton Jones, Sublimation pressure for organic compounds, Journal of Chemical and Engineering Data 5 (1960) 196-200.
C5: 49.45 | D5: 0.74 | E5: =PsubNaphthalene_TinC(C5)/101325*760 -> 0.7666569569 | F5: =PsubNaphthalene_TinC(C5) -> 102.2125213 | G5: =EXP($J$15+$J$16/(C5+273.15+$J$17)) -> 102.2125213
C6: 54.17 | D6: 1.11 | E6: 1.121606222 | F6: 149.535198 | G6: 149.535198
C7: 60.22 | D7: 1.83 | E7: 1.794628789 | F7: 239.2641606 | G7: 239.2641606
C8: 61.2 | D8: 1.9 | E8: 1.93313567 | F8: 257.7302259 | G8: 257.7302259
C9: 65.05 | D9: 2.54 | E9: 2.576800381 | F9: 343.5451297 | G9: 343.5451297
C10: 66.35 | D10: 2.88 | E10: 2.834735355 | F10: 377.9336314 | G10: 377.9336314
C11: 70.18 | D11: 3.75 | E11: 3.737149771 | F11: 498.2456587 | G11: 498.2456587 | I11: A: | J11: 10.0896
C12: 70.98 | D12: 3.91 | E12: 3.955807257 | F12: 527.3975925 | G12: 527.3975925 | I12: B: | J12: -2926.61
C13: 75.61 | D13: 5.44 | E13: 5.466072179 | F13: 728.7496889 | G13: 728.7496889 | I13: C: | J13: 237.332
C14: 76.7 | D14: 5.92 | E14: 5.890277311 | F14: 785.3057217 | G14: 785.3057217
C15: 79.34 | D15: 6.99 | E15: 7.044161998 | F15: 939.1443611 | G15: 939.1443611 | I15: A' | J15: =J11*LN(10)+LN(101325/760) -> 28.12493257
C16: 40 | E16: 0.3442460592 | F16: 45.89569993 | G16: 45.89569993 | I16: B' | J16: =J12*LN(10) -> -6738.768559
I17: C' | J17: =J13-273.15 -> -35.818
